Departmental Family,Entity,Date,Expense Type,Expense Area,Supplier,Transaction Number,Amount
Department for Work and Pensions,Jobcentre Plus,27/05/2010,PRIME CHARGES,CHIEF OPERATING OFFICER,TELEREAL TRILLIUM,2015473155,"29,367,566.25"
Department for Work and Pensions,European Social Fund,07/05/2010,ESF NON-PREFUNDED EXPENDITURE,WWEG EUROPEAN SOCIAL FUND,WEST MIDLANDS LEARNING & SKILLS COUNCIL,5000000184,"10,363,293.00"
Department for Work and Pensions,Corporate,18/05/2010,DESKTOP,CORPORATE IT,HP ENTERPRISE SERVICES UK LTD,2015272023,"9,678,674.48"
Department for Work and Pensions,Corporate,19/05/2010,HOSTING,CORPORATE IT,HP ENTERPRISE SERVICES UK LTD,2015305779,"9,207,286.25"
Department for Work and Pensions,Employment Programmes,07/05/2010,GRANTS IN AID TO PUBLIC CORPORATIONS,EG EMPLOYMENT PROGRAMMES,REMPLOY LTD,1004197,"9,000,000.00"
Department for Work and Pensions,Employment Programmes,10/05/2010,YOUNG PERSONS GUARANTEE (YPG) AND FUTURE JOBS FUND (FJF),EG EMPLOYMENT PROGRAMMES,SALFORD CITY COUNCIL,2015157818,"7,215,000.00"
Department for Work and Pensions,Corporate,19/05/2010,FINANCIAL ASSISTANCE SCHEME,PENSIONS CLIENT DIRECTORATE,THE BOARD OF THE PENSION PROTECTION FUND AS FAS SCHEME MANAGER,1004214,"6,100,000.00"
Department for Work and Pensions,Employment Programmes,10/05/2010,YOUNG PERSONS GUARANTEE (YPG) AND FUTURE JOBS FUND (FJF),EG EMPLOYMENT PROGRAMMES,KNOWSLEY METROPOLITAN BOROUGH COUNCIL,2015156573,"5,289,197.80"
Department for Work and Pensions,Corporate,18/05/2010,HOSTING,CORPORATE IT,HP ENTERPRISE SERVICES UK LTD,2015272023,"5,259,456.79"
Department for Work and Pensions,Employment Programmes,12/05/2010,YOUNG PERSONS GUARANTEE (YPG) AND FUTURE JOBS FUND (FJF),EG EMPLOYMENT PROGRAMMES,GROUNDWORK UK,2015196134,"5,131,100.00"
Department for Work and Pensions,European Social Fund,27/05/2010,ESF NON-PREFUNDED EXPENDITURE,WWEG EUROPEAN SOCIAL FUND,SOUTH EAST LEARNING & SKILLS COUNCIL,5000000205,"4,875,691.00"
Department for Work and Pensions,European Social Fund,19/05/2010,ESF NON-PREFUNDED EXPENDITURE,WWEG EUROPEAN SOCIAL FUND,EAST OF ENGLAND LEARNING & SKILLS COUNCIL,5000000194,"4,824,173.00"
Department for Work and Pensions,Jobcentre Plus,27/05/2010,ACCOMMODATION,CHIEF OPERATING OFFICER,TELEREAL TRILLIUM,2015473156,"4,748,729.58"
Department for Work and Pensions,Corporate,27/05/2010,EXCLUDED BALANCE SHEET,HQ BALANCE SHEET ,TELEREAL TRILLIUM,2015473155,"4,672,811.15"
Department for Work and Pensions,Corporate,20/05/2010,GRANTS IN AID TO PUBLIC CORPORATIONS,PENSIONS CLIENT DIRECTORATE,PENSION PROTECTION FUND,1004218,"4,136,000.00"
Department for Work and Pensions,Jobcentre Plus,13/05/2010,MEDICAL SERVICES CONTRACT,CHIEF OPERATING OFFICER,ATOS ORIGIN MEDICAL SERVICES,2015244677,"3,489,137.81"
Department for Work and Pensions,Jobcentre Plus,24/05/2010,MEDICAL SERVICES,CHIEF OPERATING OFFICER,ATOS ORIGIN MEDICAL SERVICES,2015370011,"3,468,846.09"
Department for Work and Pensions,Employment Programmes,11/05/2010,EP GENERIC PROVIDER PAYMENTS,EG EMPLOYMENT PROGRAMMES,SERCO LTD,2015170940,"3,453,152.50"
Department for Work and Pensions,Corporate,18/05/2010,NETWORK,CORPORATE IT,BT SYNTEGRA,2015268169,"3,279,972.07"
Department for Work and Pensions,Corporate,10/05/2010,COMPUTER SERVICES,CORPORATE IT,HP ENTERPRISE SERVICES UK LTD,2015156058,"3,268,708.07"
Department for Work and Pensions,European Social Fund,19/05/2010,ESF NON-PREFUNDED EXPENDITURE,WWEG EUROPEAN SOCIAL FUND,SOUTH WEST LEARNING & SKILLS COUNCIL,5000000198,"2,966,368.00"
Department for Work and Pensions,European Social Fund,19/05/2010,ESF NON-PREFUNDED EXPENDITURE,WWEG EUROPEAN SOCIAL FUND,SOUTH WEST LEARNING & SKILLS COUNCIL,5000000196,"2,849,536.00"
Department for Work and Pensions,Jobcentre Plus,20/05/2010,CONTRACTED OUT OFFICE SERVICES,CHIEF OPERATING OFFICER,BALFOUR BEATTY WORKPLACE LTD,2015353873,"2,775,419.06"
Department for Work and Pensions,Jobcentre Plus,07/05/2010,EMPLOYMENT PROGRAMMES,HQ BALANCE SHEET ,A4E LTD,2015146134,"2,630,945.21"
Department for Work and Pensions,European Social Fund,12/05/2010,ESF NON-PREFUNDED EXPENDITURE,WWEG EUROPEAN SOCIAL FUND,EAST MIDLANDS LEARNING & SKILLS COUNCIL,5000000189,"2,580,241.00"
Department for Work and Pensions,European Social Fund,19/05/2010,ESF NON-PREFUNDED EXPENDITURE,WWEG EUROPEAN SOCIAL FUND,EAST OF ENGLAND LEARNING & SKILLS COUNCIL,5000000193,"2,547,521.00"
Department for Work and Pensions,Employment Programmes,11/05/2010,EP GENERIC PROVIDER PAYMENTS,EG EMPLOYMENT PROGRAMMES,A4E LTD,2015160893,"2,447,158.92"
Department for Work and Pensions,"Pension, Disability Carers Services",27/05/2010,PRIME CHARGES,PDCS CORE,TELEREAL TRILLIUM,2015473155,"2,420,052.35"
Department for Work and Pensions,Corporate,25/05/2010,COMPUTER SERVICES,GROUP FINANCE,HP ENTERPRISE SERVICES UK LTD,2015380492,"2,381,949.00"
Department for Work and Pensions,European Social Fund,12/05/2010,ESF NON-PREFUNDED EXPENDITURE,WWEG EUROPEAN SOCIAL FUND,YORKSHIRE & HUMBER DWP,5000000191,"2,364,010.00"
Department for Work and Pensions,European Social Fund,27/05/2010,ESF NON-PREFUNDED EXPENDITURE,WWEG EUROPEAN SOCIAL FUND,SOUTH EAST DWP,5000000204,"2,317,560.00"
Department for Work and Pensions,Corporate,24/05/2010,GRANTS IN AID TO PUBLIC CORPORATIONS,PENSIONS CLIENT DIRECTORATE,PENSION PROTECTION FUND,1004225,"2,305,000.00"
Department for Work and Pensions,Employment Programmes,11/05/2010,EP GENERIC PROVIDER PAYMENTS,EG EMPLOYMENT PROGRAMMES,CALDER UK LTD,2015161968,"2,297,929.83"
Department for Work and Pensions,Corporate,28/05/2010,NETWORK,CORPORATE IT,BT SYNTEGRA,2015489791,"2,270,211.60"
Department for Work and Pensions,Employment Programmes,11/05/2010,EP GENERIC PROVIDER PAYMENTS,EG EMPLOYMENT PROGRAMMES,MAXIMUS EMPLOYMENT UK LTD,2015168213,"2,241,844.75"
Department for Work and Pensions,Corporate,07/05/2010,NON PRIME CHARGES,GROUP FINANCE,H M REVENUE & CUSTOMS,1004195,"2,093,120.04"
Department for Work and Pensions,Corporate,18/05/2010,COMPUTER SERVICES,CORPORATE IT,BT SYNTEGRA,2015268169,"2,016,842.72"
Department for Work and Pensions,Employment Programmes,11/05/2010,EP GENERIC PROVIDER PAYMENTS,EG EMPLOYMENT PROGRAMMES,SKILLS TRAINING UK LIMITED,2015170990,"2,012,232.42"
Department for Work and Pensions,Employment Programmes,11/05/2010,EP GENERIC PROVIDER PAYMENTS,EG EMPLOYMENT PROGRAMMES,FOURSTAR EMPLOYMENT & SKILLS LTD,2015164329,"1,984,136.58"
Department for Work and Pensions,Employment Programmes,11/05/2010,EP GENERIC PROVIDER PAYMENTS,EG EMPLOYMENT PROGRAMMES,WORKING LINKS,2015171836,"1,966,361.83"
Department for Work and Pensions,Employment Programmes,11/05/2010,EP GENERIC PROVIDER PAYMENTS,EG EMPLOYMENT PROGRAMMES,A4E LTD,2015160893,"1,966,361.82"
Department for Work and Pensions,Jobcentre Plus,27/05/2010,ACCOMMODATION,CHIEF OPERATING OFFICER,TELEREAL TRILLIUM,2015473158,"1,919,952.21"
Department for Work and Pensions,European Social Fund,19/05/2010,ESF NON-PREFUNDED EXPENDITURE,WWEG EUROPEAN SOCIAL FUND,YORKSHIRE & HUMBER LEARNING & SKILLS COUNCIL,5000000201,"1,863,144.00"
Department for Work and Pensions,"Pension, Disability Carers Services",06/05/2010,NON PRIME CHARGES,PDCS CORE,H M REVENUE & CUSTOMS,2002003,"1,780,151.74"
Department for Work and Pensions,Employment Programmes,11/05/2010,EP GENERIC PROVIDER PAYMENTS,EG EMPLOYMENT PROGRAMMES,WORKING LINKS,2015171836,"1,755,418.83"
Department for Work and Pensions,Jobcentre Plus,18/05/2010,CONTRACTED OUT OFFICE SERVICES,CHIEF OPERATING OFFICER,VERTEX DATA SCIENCE LIMITED,2015279112,"1,748,962.23"
Department for Work and Pensions,Corporate,13/05/2010,APPS DEV,CHANGE MANAGEMENT DIRECTORATE,ACCENTURE UK LTD,2015244581,"1,739,846.26"
Department for Work and Pensions,Jobcentre Plus,07/05/2010,EMPLOYMENT PROGRAMMES,HQ BALANCE SHEET ,BUSINESS EMPLOYMENT SERVICES TRAINING LTD,2015146375,"1,717,027.69"
Department for Work and Pensions,Employment Programmes,11/05/2010,EP GENERIC PROVIDER PAYMENTS,EG EMPLOYMENT PROGRAMMES,INGEUS UK LTD,2015165069,"1,709,387.92"
Department for Work and Pensions,Employment Programmes,28/05/2010,EP GENERIC PROVIDER PAYMENTS,EG EMPLOYMENT PROGRAMMES,WORKING LINKS,2015551712,"1,709,387.83"
Department for Work and Pensions,Employment Programmes,11/05/2010,EP GENERIC PROVIDER PAYMENTS,EG EMPLOYMENT PROGRAMMES,SEETEC BUSINESS TECHNOLOGY CENTRE LTD,2015170937,"1,704,291.58"
Department for Work and Pensions,Corporate,07/05/2010,PROFESSIONAL FEES,PENSIONS CLIENT DIRECTORATE,ONS GEOGRAPHY,2015149851,"1,690,540.00"
Department for Work and Pensions,Employment Programmes,11/05/2010,EP GENERIC PROVIDER PAYMENTS,EG EMPLOYMENT PROGRAMMES,A4E LTD,2015160893,"1,667,872.84"
Department for Work and Pensions,Employment Programmes,11/05/2010,EP GENERIC PROVIDER PAYMENTS,EG EMPLOYMENT PROGRAMMES,REMPLOY LTD,2015169811,"1,667,658.33"
Department for Work and Pensions,Employment Programmes,07/05/2010,NDDP,EG EMPLOYMENT PROGRAMMES,SHAW TRUST LTD,2015150603,"1,637,515.88"
Department for Work and Pensions,Corporate,19/05/2010,OTHER BANKING & PO COSTS,GROUP FINANCE,ALLIANCE & LEICESTER COMMERCIAL BANK PLC,1004215,"1,619,048.69"
Department for Work and Pensions,Employment Programmes,11/05/2010,EP GENERIC PROVIDER PAYMENTS,EG EMPLOYMENT PROGRAMMES,PERTEMPS,2015169195,"1,613,304.17"
Department for Work and Pensions,Employment Programmes,11/05/2010,EP GENERIC PROVIDER PAYMENTS,EG EMPLOYMENT PROGRAMMES,SERCO LTD,2015170940,"1,613,304.00"
Department for Work and Pensions,Corporate,12/05/2010,CONTRACTED OUT OFFICE SERVICES,GROUP FINANCE,XEROX UK LIMITED 3W,2015241033,"1,612,147.00"
Department for Work and Pensions,Employment Programmes,11/05/2010,EP GENERIC PROVIDER PAYMENTS,EG EMPLOYMENT PROGRAMMES,INGEUS UK LTD,2015165069,"1,610,070.00"
Department for Work and Pensions,Employment Programmes,11/05/2010,EP GENERIC PROVIDER PAYMENTS,EG EMPLOYMENT PROGRAMMES,THE WISE GROUP,2015171477,"1,609,650.00"
Department for Work and Pensions,Employment Programmes,11/05/2010,EP GENERIC PROVIDER PAYMENTS,EG EMPLOYMENT PROGRAMMES,SERCO LTD,2015170940,"1,600,175.00"
Department for Work and Pensions,European Social Fund,19/05/2010,ESF NON-PREFUNDED EXPENDITURE,WWEG EUROPEAN SOCIAL FUND,EAST OF ENGLAND DWP,5000000192,"1,574,853.00"
Department for Work and Pensions,Employment Programmes,11/05/2010,EP GENERIC PROVIDER PAYMENTS,EG EMPLOYMENT PROGRAMMES,A4E LTD,2015160893,"1,571,179.86"
Department for Work and Pensions,Jobcentre Plus,07/05/2010,EMPLOYMENT PROGRAMMES,HQ BALANCE SHEET ,WORKING LINKS,2015151052,"1,562,137.28"
Department for Work and Pensions,Jobcentre Plus,07/05/2010,EMPLOYMENT PROGRAMMES,HQ BALANCE SHEET ,CAREERS DEVELOPMENT GROUP LTD,2015146592,"1,559,876.75"
Department for Work and Pensions,European Social Fund,19/05/2010,ESF NON-PREFUNDED EXPENDITURE,WWEG EUROPEAN SOCIAL FUND,YORKSHIRE & HUMBER LEARNING & SKILLS COUNCIL,5000000200,"1,528,513.00"
Department for Work and Pensions,Corporate,11/05/2010,IS/IT,CORPORATE IT,HP ENTERPRISE SERVICES UK LTD,2015164950,"1,489,272.56"
Department for Work and Pensions,Employment Programmes,11/05/2010,EP GENERIC PROVIDER PAYMENTS,EG EMPLOYMENT PROGRAMMES,A4E LTD,2015160893,"1,483,903.08"
Department for Work and Pensions,Employment Programmes,11/05/2010,EP GENERIC PROVIDER PAYMENTS,EG EMPLOYMENT PROGRAMMES,TNG LTD,2015171504,"1,483,903.08"
Department for Work and Pensions,Jobcentre Plus,14/05/2010,ACCOMMODATION,CHIEF OPERATING OFFICER,TELEREAL TRILLIUM,2015255769,"1,444,570.01"
Department for Work and Pensions,Corporate,18/05/2010,SIAM,CORPORATE IT,HP ENTERPRISE SERVICES UK LTD,2015272023,"1,442,671.79"
Department for Work and Pensions,Corporate,19/05/2010,TOTAL SUPPLIES & SERVICES,GROUP FINANCE,ROYAL MAIL GROUP PLC,2015337001,"1,434,205.21"
Department for Work and Pensions,Corporate,12/05/2010,OTHER GOODS AND SERVICES,WWG ,VALUATION OFFICE AGENCY,1004207,"1,420,000.00"
Department for Work and Pensions,European Social Fund,12/05/2010,ESF NON-PREFUNDED EXPENDITURE,WWEG EUROPEAN SOCIAL FUND,EAST MIDLANDS DWP,5000000188,"1,409,170.00"
Department for Work and Pensions,Corporate,07/05/2010,NON PRIME CHARGES,GROUP FINANCE,H M REVENUE & CUSTOMS,1004195,"1,389,032.05"
Department for Work and Pensions,Corporate,19/05/2010,COMPUTER SERVICES,CORPORATE IT,HP ENTERPRISE SERVICES UK LTD,2015305779,"1,311,826.64"
Department for Work and Pensions,Jobcentre Plus,07/05/2010,EMPLOYMENT PROGRAMMES,HQ BALANCE SHEET ,CAREERS DEVELOPMENT GROUP,2015146591,"1,289,565.75"
Department for Work and Pensions,Corporate,21/05/2010,POSTAGE,GROUP FINANCE,TNT UK LTD,2015367784,"1,263,509.17"
Department for Work and Pensions,European Social Fund,27/05/2010,ESF NON-PREFUNDED EXPENDITURE,WWEG EUROPEAN SOCIAL FUND,SOUTH WEST LEARNING & SKILLS COUNCIL,5000000206,"1,235,997.00"
Department for Work and Pensions,Corporate,26/05/2010,BANK COMMISSIONS,GROUP FINANCE,HSBC BANK PLC,2015414518,"1,213,620.00"
Department for Work and Pensions,Corporate,13/05/2010,GRANTS IN AID TO EXECUTIVE NDPBs,PENSIONS CLIENT DIRECTORATE,THE PENSIONS REGULATOR,1004209,"1,163,000.00"
Department for Work and Pensions,Corporate,18/05/2010,COMPUTER SERVICES,CORPORATE IT,BT SYNTEGRA,2015268169,"1,157,079.33"
Department for Work and Pensions,Employment Programmes,25/05/2010,YOUNG PERSONS GUARANTEE (YPG) AND FUTURE JOBS FUND (FJF),EG EMPLOYMENT PROGRAMMES,3SC,2015375272,"1,154,550.00"
Department for Work and Pensions,Corporate,25/05/2010,COMPUTER SERVICES,SHARED SERVICES ,FUJITSU SERVICES,2015379826,"1,153,156.00"
Department for Work and Pensions,Corporate,24/05/2010,STAFF COSTS,Corporate and Support Services,NATIONAL SCHOOL OF GOVERNMENT,2002020,"1,149,917.00"
Department for Work and Pensions,Corporate,27/05/2010,PRIME CHARGES,GROUP FINANCE,TELEREAL TRILLIUM,2015473155,"1,135,601.04"
Department for Work and Pensions,Employment Programmes,11/05/2010,EP GENERIC PROVIDER PAYMENTS,EG EMPLOYMENT PROGRAMMES,WORKING LINKS,2015171836,"1,116,648.42"
Department for Work and Pensions,Employment Programmes,11/05/2010,EP GENERIC PROVIDER PAYMENTS,EG EMPLOYMENT PROGRAMMES,DUDLEY MBC FUTURE SKILLS,2015163920,"1,106,189.50"
Department for Work and Pensions,Jobcentre Plus,07/05/2010,EMPLOYMENT PROGRAMMES,HQ BALANCE SHEET ,INGEUS UK LTD,2015148539,"1,103,605.84"
Department for Work and Pensions,Corporate,11/05/2010,IS/IT,GROUP FINANCE,COMPUTACENTER UK LTD,2015162062,"1,089,225.01"
Department for Work and Pensions,Jobcentre Plus,27/05/2010,PRIME CHARGES,CHIEF OPERATING OFFICER,TELEREAL TRILLIUM,2015473155,"1,072,978.37"
Department for Work and Pensions,Housing Benefits,14/05/2010,Housing Benefit Admin,WWG HOUSING BENEFIT,BIRMINGHAM CITY COUNCIL,2015259747,"1,067,809.00"
Department for Work and Pensions,Corporate,27/05/2010,TOTAL SUPPLIES & SERVICES,GROUP FINANCE,UK MAIL,2015479310,"1,063,669.21"
Department for Work and Pensions,Jobcentre Plus,07/05/2010,EMPLOYMENT PROGRAMMES,HQ BALANCE SHEET ,SEETEC BUSINESS TECHNOLOGY CENTRE LTD,2015150589,"1,044,738.67"
Department for Work and Pensions,European Social Fund,19/05/2010,ESF NON-PREFUNDED EXPENDITURE,WWEG EUROPEAN SOCIAL FUND,SOUTH WEST LEARNING & SKILLS COUNCIL,5000000197,"1,020,645.00"
Department for Work and Pensions,Employment Programmes,28/05/2010,YOUNG PERSONS GUARANTEE (YPG) AND FUTURE JOBS FUND (FJF),EG EMPLOYMENT PROGRAMMES,SALFORD CITY COUNCIL,2015546405,"1,006,050.00"
Department for Work and Pensions,Employment Programmes,06/05/2010,WORKSTEP,EG EMPLOYMENT PROGRAMMES,SHAW TRUST LTD,2015143302,"1,000,000.00"
Department for Work and Pensions,Jobcentre Plus,07/05/2010,EMPLOYMENT PROGRAMMES,HQ BALANCE SHEET ,SKILLS TRAINING UK LTD,2015150620,"996,390.54"
Department for Work and Pensions,Jobcentre Plus,27/05/2010,EMPLOYMENT PROGRAMMES,HQ BALANCE SHEET ,A4E LTD,2015464026,"973,674.60"
Department for Work and Pensions,Employment Programmes,12/05/2010,EP GENERIC PROVIDER PAYMENTS,EG EMPLOYMENT PROGRAMMES,A4E LTD,2015178933,"962,314.34"
Department for Work and Pensions,Corporate,27/05/2010,EXCLUDED BALANCE SHEET,HQ BALANCE SHEET ,TELEREAL TRILLIUM,2015473156,"945,287.20"
Department for Work and Pensions,Jobcentre Plus,05/05/2010,PRIME CHARGES,CHIEF OPERATING OFFICER,TELEREAL TRILLIUM,2015135713,"942,264.35"
Department for Work and Pensions,Employment Programmes,04/05/2010,OTHER CURRENT,EG EMPLOYMENT PROGRAMMES,OFSTED,2015131265,"942,043.00"
Department for Work and Pensions,Jobcentre Plus,10/05/2010,APPS DEV,TPM PROGRAMMES,HP ENTERPRISE SERVICES UK LTD,2015156058,"931,465.03"
Department for Work and Pensions,Employment Programmes,07/05/2010,YOUNG PERSONS GUARANTEE (YPG) AND FUTURE JOBS FUND (FJF),EG EMPLOYMENT PROGRAMMES,SOUTH LANARKSHIRE COUNCIL,2015150642,"895,700.00"
Department for Work and Pensions,Employment Programmes,10/05/2010,YOUNG PERSONS GUARANTEE (YPG) AND FUTURE JOBS FUND (FJF),EG EMPLOYMENT PROGRAMMES,HAMPSHIRE COUNTY COUNCIL,2015156015,"895,286.60"
Department for Work and Pensions,Employment Programmes,10/05/2010,YOUNG PERSONS GUARANTEE (YPG) AND FUTURE JOBS FUND (FJF),EG EMPLOYMENT PROGRAMMES,SCOTTISH COUNCIL FOR VOLUNTARY ORGANISATIONS,2015157837,"874,900.00"
Department for Work and Pensions,Housing Benefits,14/05/2010,Housing Benefit Admin,WWG HOUSING BENEFIT,CITY OF GLASGOW,2015259795,"867,338.00"
Department for Work and Pensions,Jobcentre Plus,28/05/2010,MISCELLANEOUS EXPENDITURE,CHIEF OPERATING OFFICER,CAPITA BUSINESS SERVICES LTD,2015494615,"865,631.54"
Department for Work and Pensions,Corporate,11/05/2010,COMPUTER SERVICES,CORPORATE IT,ACCENTURE UK LTD,2015160909,"862,179.93"
Department for Work and Pensions,Corporate,21/05/2010,COMPUTER SERVICES,CORPORATE IT,ACCENTURE UK LTD,2015363088,"862,179.93"
Department for Work and Pensions,Employment Programmes,13/05/2010,YOUNG PERSONS GUARANTEE (YPG) AND FUTURE JOBS FUND (FJF),EG EMPLOYMENT PROGRAMMES,STOKE ON TRENT CITY COUNCIL,2015249417,"842,775.00"
Department for Work and Pensions,Employment Programmes,10/05/2010,YOUNG PERSONS GUARANTEE (YPG) AND FUTURE JOBS FUND (FJF),EG EMPLOYMENT PROGRAMMES,INSPIRE FUTURES LTD,2015156114,"837,210.00"
Department for Work and Pensions,Corporate,13/05/2010,EARLY RELEASE,GROUP FINANCE,BALFOUR BEATTY WORKPLACE LTD,2015244751,"811,868.77"
Department for Work and Pensions,"Pension, Disability Carers Services",24/05/2010,TEMPORARY (TEMP) STAFF COSTS,PDCS CORE,CLUB 24 LTD T/A VENTURA,551951,"804,570.31"
Department for Work and Pensions,"Pension, Disability Carers Services",21/05/2010,TEMPORARY (TEMP) STAFF COSTS,PDCS CORE,CLUB 24 LTD T/A VENTURA,551707,"798,988.07"
Department for Work and Pensions,Corporate,19/05/2010,DESKTOP,CORPORATE IT,HP ENTERPRISE SERVICES UK LTD,2015305779,"793,126.05"
Department for Work and Pensions,Corporate,14/05/2010,APPS DEV,GROUP FINANCE,HP ENTERPRISE SERVICES UK LTD,2015255016,"777,619.30"
Department for Work and Pensions,Jobcentre Plus,20/05/2010,EMPLOYMENT PROGRAMMES,HQ BALANCE SHEET ,WORKING LINKS,2015360267,"768,441.57"
Department for Work and Pensions,Employment Programmes,19/05/2010,YOUNG PERSONS GUARANTEE (YPG) AND FUTURE JOBS FUND (FJF),EG EMPLOYMENT PROGRAMMES,CITY & COUNTY OF SWANSEA,2015293111,"767,000.00"
Department for Work and Pensions,Jobcentre Plus,07/05/2010,EMPLOYMENT PROGRAMMES,HQ BALANCE SHEET ,TRIAGE CENTRAL LTD,2015150903,"765,536.08"
Department for Work and Pensions,Jobcentre Plus,07/05/2010,EMPLOYMENT PROGRAMMES,HQ BALANCE SHEET ,REED IN PARTNERSHIP,2015150210,"754,263.71"
Department for Work and Pensions,Corporate,27/05/2010,PRIME CHARGES,SHARED SERVICES ,TELEREAL TRILLIUM,2015473155,"751,528.88"
Department for Work and Pensions,Corporate,19/05/2010,COMPUTER SERVICES,CORPORATE IT,HP ENTERPRISE SERVICES UK LTD,2015305779,"738,551.91"
Department for Work and Pensions,Employment Programmes,26/05/2010,JOBCENTRE PLUS PATHWAYS TO WORK,EG EMPLOYMENT PROGRAMMES,BARNSLEY PRIMARY CARE TRUST,2015396707,"732,465.00"
Department for Work and Pensions,Corporate,13/05/2010,IS/IT,CORPORATE IT,COMPUTACENTER UK LTD,2015245169,"720,510.00"
Department for Work and Pensions,"Pension, Disability Carers Services",20/05/2010,CONTRACTED OUT OFFICE SERVICES,PDCS CORE,BALFOUR BEATTY WORKPLACE LTD,2015353873,"716,117.21"
Department for Work and Pensions,Corporate,14/05/2010,COMPUTER SERVICES,CORPORATE IT,HP ENTERPRISE SERVICES UK LTD,2015255016,"694,121.93"
Department for Work and Pensions,Employment Programmes,19/05/2010,YOUNG PERSONS GUARANTEE (YPG) AND FUTURE JOBS FUND (FJF),EG EMPLOYMENT PROGRAMMES,BRISTOL CITY COUNCIL,2015288210,"690,300.00"
Department for Work and Pensions,Jobcentre Plus,07/05/2010,EMPLOYMENT PROGRAMMES,HQ BALANCE SHEET ,SENCIA LTD,2015150591,"668,764.54"
Department for Work and Pensions,Corporate,27/05/2010,PRIME CHARGES,GROUP FINANCE,TELEREAL TRILLIUM,2015473155,"661,551.84"
Department for Work and Pensions,Corporate,18/05/2010,PRIME BILLABLE EXTRAS,GROUP FINANCE,TRILLIUM PRIME LTD,2015278931,"653,422.78"
Department for Work and Pensions,Employment Programmes,19/05/2010,YOUNG PERSONS GUARANTEE (YPG) AND FUTURE JOBS FUND (FJF),EG EMPLOYMENT PROGRAMMES,LEEDS CITY COUNCIL,2015323058,"642,000.00"
Department for Work and Pensions,Jobcentre Plus,07/05/2010,EMPLOYMENT PROGRAMMES,HQ BALANCE SHEET ,BTCV ENTERPRISES LTD,2015146364,"633,843.60"
Department for Work and Pensions,Jobcentre Plus,07/05/2010,EMPLOYMENT PROGRAMMES,HQ BALANCE SHEET ,WORKING LINKS,2015151050,"623,415.46"
Department for Work and Pensions,Jobcentre Plus,07/05/2010,EMPLOYMENT PROGRAMMES,HQ BALANCE SHEET ,TNG NETWORK LTD,2015150880,"620,769.00"
Department for Work and Pensions,Housing Benefits,14/05/2010,Housing Benefit Admin,WWG HOUSING BENEFIT,LIVERPOOL CITY COUNCIL,2015259896,"608,982.00"
Department for Work and Pensions,Corporate,10/05/2010,INTERNATIONAL PROGRAMMES,WWG ,DCSF RM SHARED SERVICES,2015154490,"585,716.55"
Department for Work and Pensions,Employment Programmes,12/05/2010,YOUNG PERSONS GUARANTEE (YPG) AND FUTURE JOBS FUND (FJF),EG EMPLOYMENT PROGRAMMES,THE SALVATION ARMY,2015239062,"581,660.00"
Department for Work and Pensions,Employment Programmes,10/05/2010,JOBCENTRE PLUS PATHWAYS TO WORK,EG EMPLOYMENT PROGRAMMES,NHS BLACKBURN WITH DARWEN,2015157186,"577,300.00"
Department for Work and Pensions,Employment Programmes,10/05/2010,YOUNG PERSONS GUARANTEE (YPG) AND FUTURE JOBS FUND (FJF),EG EMPLOYMENT PROGRAMMES,CHESHIRE WEST & CHESTER COUNCIL,2015154277,"575,900.00"
Department for Work and Pensions,Jobcentre Plus,07/05/2010,EMPLOYMENT PROGRAMMES,HQ BALANCE SHEET ,TRAINING WEST LANCASHIRE LTD,2015150894,"575,397.96"
Department for Work and Pensions,Corporate,10/05/2010,COMPUTER SERVICES,CORPORATE IT,HP ENTERPRISE SERVICES UK LTD,2015156058,"560,489.00"
Department for Work and Pensions,Jobcentre Plus,10/05/2010,COMPUTER SERVICES,ISD,HP ENTERPRISE SERVICES UK LTD,2015156058,"558,957.86"
Department for Work and Pensions,European Social Fund,19/05/2010,ESF NON-PREFUNDED EXPENDITURE,WWEG EUROPEAN SOCIAL FUND,YORKSHIRE & HUMBER LEARNING & SKILLS COUNCIL,5000000202,"556,422.00"
Department for Work and Pensions,Housing Benefits,14/05/2010,Housing Benefit Admin,WWG HOUSING BENEFIT,LEEDS CITY COUNCIL,2015259891,"547,795.00"
Department for Work and Pensions,Housing Benefits,14/05/2010,Housing Benefit Admin,WWG HOUSING BENEFIT,MANCHESTER CITY COUNCIL,2015259929,"540,488.00"
Department for Work and Pensions,Employment Programmes,04/05/2010,YOUNG PERSONS GUARANTEE (YPG) AND FUTURE JOBS FUND (FJF),EG EMPLOYMENT PROGRAMMES,SALFORD CITY COUNCIL,2015131678,"533,550.00"
Department for Work and Pensions,Corporate,12/05/2010,ESTATES CHARGEABLE EXTRAS,GROUP FINANCE,SUNDERLAND CITY COUNCIL,550768,"533,134.22"
Department for Work and Pensions,Jobcentre Plus,07/05/2010,EMPLOYMENT PROGRAMMES,HQ BALANCE SHEET ,SHAW TRUST LTD,2015150599,"532,192.45"
Department for Work and Pensions,Corporate,17/05/2010,APPS DEV,CHANGE MANAGEMENT DIRECTORATE,HP ENTERPRISE SERVICES UK LTD,2015262632,"525,939.51"
Department for Work and Pensions,Corporate,19/05/2010,NETWORK,CORPORATE IT,BT SYNTEGRA,2015288232,"523,047.15"
Department for Work and Pensions,Jobcentre Plus,25/05/2010,COMPUTER SERVICES,TPM PROGRAMMES,ACCENTURE UK LTD,2015376210,"522,251.37"
Department for Work and Pensions,Corporate,18/05/2010,COMPUTER SERVICES,CORPORATE IT,HP ENTERPRISE SERVICES UK LTD,2015272023,"515,151.72"
Department for Work and Pensions,Employment Programmes,20/05/2010,YOUNG PERSONS GUARANTEE (YPG) AND FUTURE JOBS FUND (FJF),EG EMPLOYMENT PROGRAMMES,SCOTTISH COUNCIL FOR VOLUNTARY ORGANISATIONS,2015359697,"502,200.00"
Department for Work and Pensions,Employment Programmes,28/05/2010,JOBCENTRE PLUS PATHWAYS TO WORK,EG EMPLOYMENT PROGRAMMES,HARTLEPOOL PRIMARY CARE TRUST,2015507208,"499,840.39"
Department for Work and Pensions,Jobcentre Plus,07/05/2010,EMPLOYMENT PROGRAMMES,HQ BALANCE SHEET ,TNG BUSINESS SUPPORT LTD.,2015150875,"495,699.31"
Department for Work and Pensions,Corporate,27/05/2010,PRIME CHARGES,GROUP FINANCE,TELEREAL TRILLIUM,2015473155,"489,720.37"
Department for Work and Pensions,Corporate,27/05/2010,COMPUTER SERVICES,CORPORATE IT,ATOS ORIGIN IT SERVICES UK LTD,2015464206,"488,912.39"
Department for Work and Pensions,Employment Programmes,13/05/2010,YOUNG PERSONS GUARANTEE (YPG) AND FUTURE JOBS FUND (FJF),EG EMPLOYMENT PROGRAMMES,GLASGOW CITY COUNCIL,2015246708,"477,100.00"
Department for Work and Pensions,Jobcentre Plus,18/05/2010,JOBCENTRE PLUS PATHWAYS TO WORK,CHIEF OPERATING OFFICER,WIRRAL PCT,2015279251,"476,497.00"
Department for Work and Pensions,Employment Programmes,10/05/2010,YOUNG PERSONS GUARANTEE (YPG) AND FUTURE JOBS FUND (FJF),EG EMPLOYMENT PROGRAMMES,DUDLEY METROPOLITAN BOROUGH COUNCIL,2015155651,"473,200.00"
Department for Work and Pensions,Employment Programmes,14/05/2010,JOBCENTRE PLUS PATHWAYS TO WORK,EG EMPLOYMENT PROGRAMMES,DERBYSHIRE COUNTY COUNCIL PCT DCHS,2015252782,"471,715.18"
Department for Work and Pensions,Employment Programmes,25/05/2010,WORKSTEP,EG EMPLOYMENT PROGRAMMES,SHAW TRUST LTD,2015386778,"471,529.55"
Department for Work and Pensions,Corporate,20/05/2010,PENSIONS PROGRAMME COSTS,PENSIONS CLIENT DIRECTORATE,IMPROVEMENT & DEVELOPMENT AGENCY,1004217,"468,891.00"
Department for Work and Pensions,Employment Programmes,10/05/2010,YOUNG PERSONS GUARANTEE (YPG) AND FUTURE JOBS FUND (FJF),EG EMPLOYMENT PROGRAMMES,LANCASHIRE COUNTY COUNCIL,2015156722,"466,700.00"
Department for Work and Pensions,Corporate,11/05/2010,COMPUTER SERVICES,CORPORATE IT,HP ENTERPRISE SERVICES UK LTD,2015164950,"461,871.90"
Department for Work and Pensions,Corporate,18/05/2010,COMPUTER SERVICES,CORPORATE IT,DELL FINANCIAL SERVICES,2015269734,"456,948.34"
Department for Work and Pensions,Housing Benefits,14/05/2010,Housing Benefit Admin,WWG HOUSING BENEFIT,DURHAM COUNCIL,2015259824,"456,042.00"
Department for Work and Pensions,Housing Benefits,14/05/2010,Housing Benefit Admin,WWG HOUSING BENEFIT,BRADFORD METROPOLITAN BOROUGH COUNCIL,2015259760,"454,773.00"
Department for Work and Pensions,Jobcentre Plus,07/05/2010,EMPLOYMENT PROGRAMMES,HQ BALANCE SHEET ,A4E WALES LTD,2015153528,"451,942.35"
Department for Work and Pensions,Corporate,18/05/2010,COMPUTER SERVICES,CORPORATE IT,HP ENTERPRISE SERVICES UK LTD,2015272023,"447,909.00"
Department for Work and Pensions,Jobcentre Plus,27/05/2010,EMPLOYMENT PROGRAMMES,HQ BALANCE SHEET ,INGEUS UK LTD,2015469852,"422,177.98"
Department for Work and Pensions,Corporate,27/05/2010,COMPUTER SERVICES,CHANGE MANAGEMENT DIRECTORATE,BT SYNTEGRA,2015464572,"420,874.24"
Department for Work and Pensions,Corporate,19/05/2010,IS/IT,CORPORATE IT,HP ENTERPRISE SERVICES UK LTD,2015305779,"420,465.76"
Department for Work and Pensions,Employment Programmes,05/05/2010,EP GENERIC PROVIDER PAYMENTS,EG EMPLOYMENT PROGRAMMES,REED IN PARTNERSHIP,2015136144,"416,415.88"
Department for Work and Pensions,"Pension, Disability Carers Services",27/05/2010,ACCOMMODATION,PDCS CORE,TELEREAL TRILLIUM,2015473156,"416,100.13"
Department for Work and Pensions,Jobcentre Plus,07/05/2010,EMPLOYMENT PROGRAMMES,HQ BALANCE SHEET ,ROYAL BRITISH LEGION INDUSTRIES LTD,2015150245,"413,291.67"
Department for Work and Pensions,Employment Programmes,28/05/2010,EMPLOYMENT ZONES,EG EMPLOYMENT PROGRAMMES,INGEUS UK LTD,2015507948,"413,243.00"
Department for Work and Pensions,Employment Programmes,20/05/2010,JOBCENTRE PLUS PATHWAYS TO WORK,EG EMPLOYMENT PROGRAMMES,LANARKSHIRE NHS,2015358059,"408,549.71"
Department for Work and Pensions,Corporate,27/05/2010,EXCLUDED BALANCE SHEET,HQ BALANCE SHEET ,TELEREAL TRILLIUM,2015473158,"404,948.59"
Department for Work and Pensions,Employment Programmes,28/05/2010,EMPLOYMENT ZONES,EG EMPLOYMENT PROGRAMMES,WORKING LINKS,2015551711,"403,487.00"
Department for Work and Pensions,Jobcentre Plus,14/05/2010,APPS DEV,ISD,HP ENTERPRISE SERVICES UK LTD,2015255016,"400,740.31"
Department for Work and Pensions,Employment Programmes,28/05/2010,EMPLOYMENT ZONES,EG EMPLOYMENT PROGRAMMES,WORKING LINKS,2015551711,"398,308.00"
Department for Work and Pensions,Housing Benefits,14/05/2010,Housing Benefit Admin,WWG HOUSING BENEFIT,LONDON BOROUGH OF LAMBETH,2015259914,"395,891.00"
Department for Work and Pensions,Housing Benefits,14/05/2010,Housing Benefit Admin,WWG HOUSING BENEFIT,SHEFFIELD CITY COUNCIL,2015260009,"392,920.00"
Department for Work and Pensions,Housing Benefits,14/05/2010,Housing Benefit Admin,WWG HOUSING BENEFIT,LONDON BOROUGH OF TOWER HAMLETS,2015259922,"388,877.00"
Department for Work and Pensions,Housing Benefits,14/05/2010,Housing Benefit Admin,WWG HOUSING BENEFIT,BRISTOL CITY COUNCIL,2015259766,"387,917.00"
Department for Work and Pensions,Jobcentre Plus,07/05/2010,EMPLOYMENT PROGRAMMES,HQ BALANCE SHEET ,SHAW TRUST LTD,2015150601,"387,765.60"
Department for Work and Pensions,Jobcentre Plus,27/05/2010,EMPLOYMENT PROGRAMMES,HQ BALANCE SHEET ,WORKING LINKS,2015479726,"387,040.66"
Department for Work and Pensions,Housing Benefits,14/05/2010,Housing Benefit Admin,WWG HOUSING BENEFIT,HACKNEY LBC,2015259863,"386,918.00"
Department for Work and Pensions,Corporate,17/05/2010,APPS DEV,CHANGE MANAGEMENT DIRECTORATE,HP ENTERPRISE SERVICES UK LTD,2015262632,"384,869.63"
Department for Work and Pensions,Housing Benefits,14/05/2010,Housing Benefit Admin,WWG HOUSING BENEFIT,CORNWALL COUNCIL,2015259804,"381,859.00"
Department for Work and Pensions,Employment Programmes,18/05/2010,EMPLOYMENT ZONES,EG EMPLOYMENT PROGRAMMES,PERTEMPS,2015276475,"378,952.00"
Department for Work and Pensions,Employment Programmes,12/05/2010,EP GENERIC PROVIDER PAYMENTS,EG EMPLOYMENT PROGRAMMES,STANDGUIDE LTD,2015236303,"378,520.75"
Department for Work and Pensions,Corporate,27/05/2010,PRIME CHARGES,GROUP FINANCE,TELEREAL TRILLIUM,2015473155,"376,421.94"
Department for Work and Pensions,Corporate,14/05/2010,EMPLOYMENT ZONES,GROUP FINANCE,LEEDS CREDIT UNION,2015255787,"375,000.00"
Department for Work and Pensions,Housing Benefits,14/05/2010,Housing Benefit Admin,WWG HOUSING BENEFIT,LONDON BOROUGH OF LEWISHAM,2015259915,"367,564.00"
Department for Work and Pensions,Jobcentre Plus,05/05/2010,ACCOMMODATION,CHIEF OPERATING OFFICER,TELEREAL TRILLIUM,2015135714,"363,102.82"
Department for Work and Pensions,"Pension, Disability Carers Services",19/05/2010,MEDICAL SERVICES,PDCS CORE,ATOS ORIGIN IT SERVICES UK LTD,2015286882,"361,857.01"
Department for Work and Pensions,Employment Programmes,19/05/2010,JSP ESF DEL P COSTS,EG EMPLOYMENT PROGRAMMES,INGEUS UK LTD,2015306400,"361,641.09"
Department for Work and Pensions,Housing Benefits,14/05/2010,Housing Benefit Admin,WWG HOUSING BENEFIT,LONDON BOROUGH OF SOUTHWARK,2015259920,"357,131.00"
Department for Work and Pensions,Corporate,18/05/2010,COMPUTER SERVICES,CORPORATE IT,BT SYNTEGRA,2015268169,"355,653.70"
Department for Work and Pensions,Housing Benefits,14/05/2010,Housing Benefit Admin,WWG HOUSING BENEFIT,LONDON BOROUGH OF NEWHAM,2015259917,"354,305.00"
Department for Work and Pensions,Housing Benefits,14/05/2010,Housing Benefit Admin,WWG HOUSING BENEFIT,EDINBURGH DISTRICT COUNCIL,2015259841,"349,774.00"
Department for Work and Pensions,Jobcentre Plus,07/05/2010,EMPLOYMENT PROGRAMMES,HQ BALANCE SHEET ,WORKING LINKS,2015151049,"346,968.90"
Department for Work and Pensions,Corporate,04/05/2010,MANAGEMENT CONSULTANCY,GROUP FINANCE,KPMG LLP,2015130862,"346,187.00"
Department for Work and Pensions,Employment Programmes,20/05/2010,RESIDENTIAL TRAINING,EG EMPLOYMENT PROGRAMMES,FINCHALE TRAINING COLLEGE,2015356653,"345,549.98"
Department for Work and Pensions,Employment Programmes,10/05/2010,NDDP,EG EMPLOYMENT PROGRAMMES,SHAW TRUST LTD,2015157854,"345,246.65"
Department for Work and Pensions,Employment Programmes,17/05/2010,YOUNG PERSONS GUARANTEE (YPG) AND FUTURE JOBS FUND (FJF),EG EMPLOYMENT PROGRAMMES,CARDIFF CITY COUNCIL,2015266707,"344,500.00"
Department for Work and Pensions,Corporate,21/05/2010,IT EQUIPMENT CAPITAL,WWG ,CAPGEMINI UK PLC,2015363518,"337,364.07"
Department for Work and Pensions,Employment Programmes,24/05/2010,RESIDENTIAL TRAINING,EG EMPLOYMENT PROGRAMMES,QUEEN ELIZABETHS FOUNDATION,2015372996,"336,067.47"
Department for Work and Pensions,Housing Benefits,14/05/2010,Housing Benefit Admin,WWG HOUSING BENEFIT,LONDON BOROUGH OF BRENT,2015259900,"335,730.00"
Department for Work and Pensions,Housing Benefits,14/05/2010,Housing Benefit Admin,WWG HOUSING BENEFIT,LEICESTER CITY COUNCIL,2015259892,"333,774.00"
Department for Work and Pensions,Employment Programmes,21/05/2010,WORKSTEP,EG EMPLOYMENT PROGRAMMES,RBLI EMPLOYMENT SERVICES,2015367192,"332,332.35"
Department for Work and Pensions,Corporate,14/05/2010,COMPUTER SERVICES,CORPORATE IT,ATOS ORIGIN IT SERVICES UK LTD,2015252105,"330,585.05"
Department for Work and Pensions,Housing Benefits,14/05/2010,Housing Benefit Admin,WWG HOUSING BENEFIT,KIRKLEES METROPOLITAN BOROUGH COUNCIL,2015259888,"327,532.00"
Department for Work and Pensions,Housing Benefits,14/05/2010,Housing Benefit Admin,WWG HOUSING BENEFIT,LONDON BOROUGH OF EALING,2015259903,"322,603.00"
Department for Work and Pensions,Housing Benefits,14/05/2010,Housing Benefit Admin,WWG HOUSING BENEFIT,SANDWELL BOROUGH COUNCIL,2015260002,"320,247.00"
Department for Work and Pensions,Employment Programmes,18/05/2010,JOBCENTRE PLUS PATHWAYS TO WORK,EG EMPLOYMENT PROGRAMMES,MANCHESTER PCT,2015275405,"319,203.00"
Department for Work and Pensions,Corporate,10/05/2010,SIAM,CORPORATE IT,HP ENTERPRISE SERVICES UK LTD,2015156058,"313,949.23"
Department for Work and Pensions,Employment Programmes,18/05/2010,JOBCENTRE PLUS PATHWAYS TO WORK,EG EMPLOYMENT PROGRAMMES,NORTH STAFFORDSHIRE PCT,2015275967,"313,806.34"
Department for Work and Pensions,Housing Benefits,14/05/2010,Housing Benefit Admin,WWG HOUSING BENEFIT,LONDON BOROUGH OF ISLINGTON,2015259912,"311,891.00"
Department for Work and Pensions,Corporate,10/05/2010,DESKTOP,CORPORATE IT,HP ENTERPRISE SERVICES UK LTD,2015156058,"310,340.00"
Department for Work and Pensions,Corporate,18/05/2010,AMS,CORPORATE IT,HP ENTERPRISE SERVICES UK LTD,2015272023,"309,572.64"
Department for Work and Pensions,Corporate,14/05/2010,APPS DEV,WWG,HP ENTERPRISE SERVICES UK LTD,2015255016,"308,592.46"
Department for Work and Pensions,Housing Benefits,14/05/2010,Housing Benefit Admin,WWG HOUSING BENEFIT,SUNDERLAND CITY COUNCIL,2015260048,"306,805.00"
Department for Work and Pensions,Housing Benefits,14/05/2010,Housing Benefit Admin,WWG HOUSING BENEFIT,NOTTINGHAM CITY COUNCIL,2015259966,"304,683.00"
Department for Work and Pensions,Housing Benefits,14/05/2010,Housing Benefit Admin,WWG HOUSING BENEFIT,LONDON BOROUGH OF CAMDEN,2015259902,"301,988.00"
Department for Work and Pensions,Jobcentre Plus,07/05/2010,EMPLOYMENT PROGRAMMES,HQ BALANCE SHEET ,CROSBY TRAINING,2015146684,"301,695.74"
Department for Work and Pensions,Housing Benefits,14/05/2010,Housing Benefit Admin,WWG HOUSING BENEFIT,NORTH LANARKSHIRE COUNCIL,2015259956,"300,013.00"
Department for Work and Pensions,Corporate,21/05/2010,TEMPORARY (TEMP) STAFF COSTS,CORPORATE IT,CAPITA RESOURCING LIMITED,2015363519,"297,533.60"
Department for Work and Pensions,Housing Benefits,14/05/2010,Housing Benefit Admin,WWG HOUSING BENEFIT,LONDON BOROUGH OF HARINGEY,2015259907,"297,439.00"
Department for Work and Pensions,Housing Benefits,14/05/2010,Housing Benefit Admin,WWG HOUSING BENEFIT,CROYDON PEO%,2015259811,"297,249.00"
Department for Work and Pensions,Housing Benefits,14/05/2010,Housing Benefit Admin,WWG HOUSING BENEFIT,BRIGHTON & HOVE COUNCIL,2015259765,"296,963.00"
Department for Work and Pensions,Employment Programmes,14/05/2010,YOUNG PERSONS GUARANTEE (YPG) AND FUTURE JOBS FUND (FJF),EG EMPLOYMENT PROGRAMMES,SOCIAL ENTERPRISE LONDON,2015257224,"296,400.00"
Department for Work and Pensions,Housing Benefits,14/05/2010,Housing Benefit Admin,WWG HOUSING BENEFIT,CARDIFF CITY COUNCIL,2015259778,"295,577.00"
Department for Work and Pensions,Corporate,25/05/2010,MANAGEMENT CONSULTANCY,GROUP FINANCE,PRICEWATERHOUSE COOPERS LLP,2015384995,"295,352.50"
Department for Work and Pensions,Jobcentre Plus,17/05/2010,APPS DEV,TPM PROGRAMMES,HP ENTERPRISE SERVICES UK LTD,2015262632,"293,532.97"
Department for Work and Pensions,Corporate,28/05/2010,TEMPORARY (TEMP) STAFF COSTS,CORPORATE IT,CAPITA RESOURCING LIMITED,2015494616,"293,357.80"
Department for Work and Pensions,Housing Benefits,14/05/2010,Housing Benefit Admin,WWG HOUSING BENEFIT,KINGSTON UPON HULL CITY COUNCIL,2015259887,"292,996.00"
Department for Work and Pensions,Housing Benefits,14/05/2010,Housing Benefit Admin,WWG HOUSING BENEFIT,WALSALL BOROUGH COUNCIL,2015260075,"292,792.00"
Department for Work and Pensions,Jobcentre Plus,07/05/2010,EMPLOYMENT PROGRAMMES,HQ BALANCE SHEET ,MACLEOD ASSOCIATES VIA INTERIM,2015149626,"292,350.00"
Department for Work and Pensions,Housing Benefits,14/05/2010,Housing Benefit Admin,WWG HOUSING BENEFIT,LONDON BOROUGH OF ENFIELD,2015259904,"291,627.00"
Department for Work and Pensions,Housing Benefits,14/05/2010,Housing Benefit Admin,WWG HOUSING BENEFIT,WAKEFIELD METROPOLITAN DISTRICT COUNCIL,2015260074,"291,377.00"
Department for Work and Pensions,Housing Benefits,14/05/2010,Housing Benefit Admin,WWG HOUSING BENEFIT,COVENTRY CITY COUNCIL,2015259808,"290,752.00"
Department for Work and Pensions,Corporate,27/05/2010,PRIME CHARGES,GROUP FINANCE,TELEREAL TRILLIUM,2015473155,"290,570.94"
Department for Work and Pensions,Employment Programmes,12/05/2010,EP GENERIC PROVIDER PAYMENTS,EG EMPLOYMENT PROGRAMMES,ESG HOLDINGS LTD,2015193322,"289,556.59"
Department for Work and Pensions,Corporate,10/05/2010,TEMPORARY (TEMP) STAFF COSTS,CORPORATE IT,CAPITA RESOURCING LIMITED,2015154252,"288,520.69"
Department for Work and Pensions,Housing Benefits,14/05/2010,Housing Benefit Admin,WWG HOUSING BENEFIT,FIFE COUNCIL,2015259850,"288,157.00"
Department for Work and Pensions,Corporate,28/05/2010,PRINTING STATIONERY IT & CONSUMABLES,GROUP FINANCE,XEROX UK LIMITED 3W,2015551737,"287,359.01"
Department for Work and Pensions,Employment Programmes,20/05/2010,RESIDENTIAL TRAINING,EG EMPLOYMENT PROGRAMMES,ST LOYES COLLEGE FOUNDATION,2015359806,"286,523.33"
Department for Work and Pensions,Corporate,27/05/2010,ACCOMMODATION,GROUP FINANCE,TELEREAL TRILLIUM,2015473156,"285,051.23"
Department for Work and Pensions,Housing Benefits,14/05/2010,Housing Benefit Admin,WWG HOUSING BENEFIT,WIRRAL BOROUGH COUNCIL,2015260097,"284,708.00"
Department for Work and Pensions,Employment Programmes,12/05/2010,EP GENERIC PROVIDER PAYMENTS,EG EMPLOYMENT PROGRAMMES,JHP GROUP LTD,2015205092,"284,361.59"
Department for Work and Pensions,Jobcentre Plus,13/05/2010,EMPLOYMENT PROGRAMMES,HQ BALANCE SHEET ,BTCV ENTERPRISES LTD,2015244826,"284,329.00"
Department for Work and Pensions,Employment Programmes,12/05/2010,EP GENERIC PROVIDER PAYMENTS,EG EMPLOYMENT PROGRAMMES,REED IN PARTNERSHIP,2015228246,"281,250.00"
Department for Work and Pensions,Employment Programmes,28/05/2010,EMPLOYMENT ZONES,EG EMPLOYMENT PROGRAMMES,THE WISE GROUP,2015549710,"280,206.00"
Department for Work and Pensions,Jobcentre Plus,07/05/2010,EMPLOYMENT PROGRAMMES,HQ BALANCE SHEET ,COMMUNITY  LINKS,2015146658,"279,156.42"
Department for Work and Pensions,Corporate,28/05/2010,EMPLOYMENT ZONES,WWG,GREATER NOTTINGHAM PARTNERSHIP FFWS,2015505647,"277,045.00"
Department for Work and Pensions,Employment Programmes,12/05/2010,EP GENERIC PROVIDER PAYMENTS,EG EMPLOYMENT PROGRAMMES,A4E LTD,2015178933,"276,631.67"
Department for Work and Pensions,Jobcentre Plus,20/05/2010,EMPLOYMENT PROGRAMMES,HQ BALANCE SHEET ,SHAW TRUST LTD,2015359720,"276,586.13"
Department for Work and Pensions,Jobcentre Plus,13/05/2010,EMPLOYMENT PROGRAMMES,HQ BALANCE SHEET ,BUSINESS EMPLOYMENT SERVICES TRAINING LTD,2015244832,"275,679.52"
Department for Work and Pensions,Employment Programmes,12/05/2010,EP GENERIC PROVIDER PAYMENTS,EG EMPLOYMENT PROGRAMMES,PERTEMPS,2015225460,"274,593.67"
Department for Work and Pensions,Employment Programmes,26/05/2010,YOUNG PERSONS GUARANTEE (YPG) AND FUTURE JOBS FUND (FJF),EG EMPLOYMENT PROGRAMMES,SOUTH LANARKSHIRE COUNCIL,2015454550,"274,050.00"
Department for Work and Pensions,Housing Benefits,14/05/2010,Housing Benefit Admin,WWG HOUSING BENEFIT,LONDON BOROUGH OF GREENWICH,2015259905,"272,849.00"
Department for Work and Pensions,Employment Programmes,27/05/2010,JOBCENTRE PLUS PATHWAYS TO WORK,EG EMPLOYMENT PROGRAMMES,CUMBRIA PARTNERSHIP FOUNDATION NHS TRUST,2015465711,"268,735.41"
Department for Work and Pensions,Housing Benefits,14/05/2010,Housing Benefit Admin,WWG HOUSING BENEFIT,LONDON BOROUGH OF WANDSWORTH,2015259924,"267,990.00"
Department for Work and Pensions,Employment Programmes,12/05/2010,EP GENERIC PROVIDER PAYMENTS,EG EMPLOYMENT PROGRAMMES,INGEUS UK LTD,2015198377,"267,935.00"
Department for Work and Pensions,Housing Benefits,14/05/2010,Housing Benefit Admin,WWG HOUSING BENEFIT,WOLVERHAMPTON CITY COUNCIL,2015260100,"266,735.00"
Department for Work and Pensions,Corporate,27/05/2010,PRIME CHARGES,GROUP FINANCE,TELEREAL TRILLIUM,2015473155,"264,837.30"
Department for Work and Pensions,Corporate,27/05/2010,PROFESSIONAL FEES,Corporate and Support Services,ONS GEOGRAPHY,2015475319,"263,000.66"
Department for Work and Pensions,Employment Programmes,19/05/2010,JOBCENTRE PLUS PATHWAYS TO WORK,EG EMPLOYMENT PROGRAMMES,NHS HIGHLAND,551500,"261,263.57"
Department for Work and Pensions,Employment Programmes,28/05/2010,EMPLOYMENT ZONES,EG EMPLOYMENT PROGRAMMES,WORKING LINKS,2015551711,"260,220.00"
Department for Work and Pensions,Employment Programmes,27/05/2010,YOUNG PERSONS GUARANTEE (YPG) AND FUTURE JOBS FUND (FJF),EG EMPLOYMENT PROGRAMMES,GROUNDWORK SOUTH WEST,2015469346,"260,000.00"
Department for Work and Pensions,Jobcentre Plus,27/05/2010,EMPLOYMENT PROGRAMMES,HQ BALANCE SHEET ,SEETEC BUSINESS TECHNOLOGY CENTRE LTD,2015478486,"259,407.20"
Department for Work and Pensions,Corporate,18/05/2010,APPS DEV,CORPORATE IT,HP ENTERPRISE SERVICES UK LTD,2015272023,"259,145.72"
Department for Work and Pensions,Employment Programmes,12/05/2010,EP GENERIC PROVIDER PAYMENTS,EG EMPLOYMENT PROGRAMMES,A4E LTD,2015178933,"258,168.34"
Department for Work and Pensions,Housing Benefits,14/05/2010,Housing Benefit Admin,WWG HOUSING BENEFIT,LONDON BOROUGH OF BARNET,2015259898,"257,064.00"
Department for Work and Pensions,Jobcentre Plus,27/05/2010,EMPLOYMENT PROGRAMMES,HQ BALANCE SHEET ,CORNWALL COUNTY COUNCIL,2015465679,"256,844.20"
Department for Work and Pensions,European Social Fund,06/05/2010,MA ESF(D) LA NON-PREFUNDED EXPENDITURE,WWEG EUROPEAN SOCIAL FUND,LOCAL AUTHORITIES IN THE EAST MIDLANDS,5000000179,"256,705.00"
Department for Work and Pensions,Housing Benefits,14/05/2010,Housing Benefit Admin,WWG HOUSING BENEFIT,DONCASTER METROPOLITAN BOROUGH COUNCIL,2015259819,"256,645.00"
Department for Work and Pensions,Employment Programmes,12/05/2010,EP GENERIC PROVIDER PAYMENTS,EG EMPLOYMENT PROGRAMMES,A4E LTD,2015178933,"256,507.50"
Department for Work and Pensions,Employment Programmes,12/05/2010,YOUNG PERSONS GUARANTEE (YPG) AND FUTURE JOBS FUND (FJF),EG EMPLOYMENT PROGRAMMES,NORTHAMPTONSHIRE ENTERPRISE LTD,2015223009,"256,100.00"
Department for Work and Pensions,Housing Benefits,14/05/2010,Housing Benefit Admin,WWG HOUSING BENEFIT,SOUTH LANARKSHIRE COUNCIL,2015260024,"255,246.00"
Department for Work and Pensions,Employment Programmes,26/05/2010,WORKSTEP,EG EMPLOYMENT PROGRAMMES,THE PLUSS ORGANISATION LTD,2015457398,"252,638.20"
Department for Work and Pensions,Corporate,18/05/2010,TEMPORARY (TEMP) STAFF COSTS,CORPORATE IT,CAPITA RESOURCING LIMITED,2015268856,"252,199.76"
Department for Work and Pensions,Employment Programmes,12/05/2010,EP GENERIC PROVIDER PAYMENTS,EG EMPLOYMENT PROGRAMMES,PINNACLE PEOPLE,2015225474,"250,993.59"
Department for Work and Pensions,Housing Benefits,14/05/2010,Housing Benefit Admin,WWG HOUSING BENEFIT,NEWCASTLE CITY COUNCIL,2015259946,"250,524.00"
Department for Work and Pensions,Housing Benefits,14/05/2010,Housing Benefit Admin,WWG HOUSING BENEFIT,SALFORD CITY COUNCIL,2015260001,"249,571.00"
Department for Work and Pensions,Jobcentre Plus,27/05/2010,EMPLOYMENT PROGRAMMES,HQ BALANCE SHEET ,WORKING LINKS EMPLOYMENT LTD,2015479728,"248,517.86"
Department for Work and Pensions,Employment Programmes,10/05/2010,YOUNG PERSONS GUARANTEE (YPG) AND FUTURE JOBS FUND (FJF),EG EMPLOYMENT PROGRAMMES,WEST DUNBARTONSHIRE COUNCIL,2015158231,"246,960.00"
Department for Work and Pensions,Corporate,14/05/2010,EXCLUDED BALANCE SHEET,HQ BALANCE SHEET ,TELEREAL TRILLIUM,2015255769,"246,844.31"
Department for Work and Pensions,Jobcentre Plus,07/05/2010,EMPLOYMENT PROGRAMMES,HQ BALANCE SHEET ,BTCV,2015146362,"245,058.55"
Department for Work and Pensions,Corporate,24/05/2010,COMPUTER SERVICES,SHARED SERVICES ,ACCENTURE UK LTD,2015369925,"244,615.84"
Department for Work and Pensions,Housing Benefits,14/05/2010,Housing Benefit Admin,WWG HOUSING BENEFIT,LONDON BOROUGH OF WALTHAM FOREST,2015259923,"244,198.00"
Department for Work and Pensions,Housing Benefits,14/05/2010,Housing Benefit Admin,WWG HOUSING BENEFIT,CITY OF WESTMINSTER,2015259796,"242,253.00"
Department for Work and Pensions,Employment Programmes,12/05/2010,YOUNG PERSONS GUARANTEE (YPG) AND FUTURE JOBS FUND (FJF),EG EMPLOYMENT PROGRAMMES,THE ROYAL SOCIETY OF WILDLIFE TRUSTS,2015239061,"240,500.00"
Department for Work and Pensions,Jobcentre Plus,20/05/2010,EMPLOYMENT PROGRAMMES,HQ BALANCE SHEET ,WORKING LINKS EMPLOYMENT LIMITED,2015360269,"239,588.92"
Department for Work and Pensions,Housing Benefits,14/05/2010,Housing Benefit Admin,WWG HOUSING BENEFIT,WILTSHIRE COUNCIL,2015260094,"237,896.00"
Department for Work and Pensions,Housing Benefits,14/05/2010,Housing Benefit Admin,WWG HOUSING BENEFIT,DUDLEY METROPOLITAN BOROUGH COUNCIL,2015259821,"237,479.00"
Department for Work and Pensions,Jobcentre Plus,07/05/2010,EMPLOYMENT PROGRAMMES,HQ BALANCE SHEET ,YMCA TRAINING LTD,2015151077,"236,672.21"
Department for Work and Pensions,"Pension, Disability Carers Services",27/05/2010,COMPUTER SERVICES,PDCS CHANGE ,ATOS ORIGIN IT SERVICES UK LTD,2015464206,"235,587.00"
Department for Work and Pensions,Employment Programmes,04/05/2010,YOUNG PERSONS GUARANTEE (YPG) AND FUTURE JOBS FUND (FJF),EG EMPLOYMENT PROGRAMMES,CORNWALL COUNCIL,2015129090,"235,300.00"
Department for Work and Pensions,"Pension, Disability Carers Services",14/05/2010,APPS DEV,PDCS CHANGE ,HP ENTERPRISE SERVICES UK LTD,2015255016,"235,239.54"
Department for Work and Pensions,Corporate,27/05/2010,ACCOMMODATION,GROUP FINANCE,TELEREAL TRILLIUM,2015473156,"234,595.95"
Department for Work and Pensions,Employment Programmes,27/05/2010,NDDP,EG EMPLOYMENT PROGRAMMES,REED,2015476849,"234,259.20"
Department for Work and Pensions,Housing Benefits,14/05/2010,Housing Benefit Admin,WWG HOUSING BENEFIT,WIGAN BOROUGH COUNCIL,2015260093,"233,860.00"
Department for Work and Pensions,Employment Programmes,12/05/2010,EP GENERIC PROVIDER PAYMENTS,EG EMPLOYMENT PROGRAMMES,PINNACLE PEOPLE,2015225474,"233,101.09"
Department for Work and Pensions,Employment Programmes,12/05/2010,EP GENERIC PROVIDER PAYMENTS,EG EMPLOYMENT PROGRAMMES,JHP GROUP LTD,2015205092,"232,596.42"
Department for Work and Pensions,Jobcentre Plus,14/05/2010,APPS DEV,ISD,HP ENTERPRISE SERVICES UK LTD,2015255016,"232,222.09"
Department for Work and Pensions,Employment Programmes,11/05/2010,JOBCENTRE PLUS PATHWAYS TO WORK,EG EMPLOYMENT PROGRAMMES,NHS GRAMPIAN,2015168705,"232,108.00"
Department for Work and Pensions,Jobcentre Plus,07/05/2010,EMPLOYMENT PROGRAMMES,HQ BALANCE SHEET ,MBW TRAINING SERVICES,2015149644,"231,843.18"
Department for Work and Pensions,Employment Programmes,04/05/2010,NDDP,EG EMPLOYMENT PROGRAMMES,SEETEC,2015131689,"228,840.70"
Department for Work and Pensions,Corporate,19/05/2010,PRINTING STATIONERY IT & CONSUMABLES,GROUP FINANCE,XEROX UK LIMITED 3W,2015349814,"228,455.61"
Department for Work and Pensions,Housing Benefits,14/05/2010,Housing Benefit Admin,WWG HOUSING BENEFIT,STOKE ON TRENT CITY COUNCIL,2015260044,"228,040.00"
Department for Work and Pensions,Jobcentre Plus,27/05/2010,EMPLOYMENT PROGRAMMES,HQ BALANCE SHEET ,BUSINESS EMPLOYMENT SERVICES TRAINING LTD,2015464582,"227,891.11"
Department for Work and Pensions,Jobcentre Plus,10/05/2010,TEMPORARY (TEMP) STAFF COSTS,CHIEF OPERATING OFFICER,HM LAND REGISTRY,2015156046,"227,544.59"
Department for Work and Pensions,Corporate,14/05/2010,APPS DEV,GROUP FINANCE,HP ENTERPRISE SERVICES UK LTD,2015255016,"227,097.93"
Department for Work and Pensions,"Pension, Disability Carers Services",27/05/2010,ACCOMMODATION,PDCS CORE,TELEREAL TRILLIUM,2015473158,"225,669.74"
Department for Work and Pensions,Housing Benefits,14/05/2010,Housing Benefit Admin,WWG HOUSING BENEFIT,SEFTON METROPOLITAN BOROUGH COUNCIL,2015260006,"224,789.00"
Department for Work and Pensions,Employment Programmes,07/05/2010,YOUNG PERSONS GUARANTEE (YPG) AND FUTURE JOBS FUND (FJF),EG EMPLOYMENT PROGRAMMES,IXION HOLDINGS LTD,2015148552,"223,600.00"
Department for Work and Pensions,Employment Programmes,13/05/2010,YOUNG PERSONS GUARANTEE (YPG) AND FUTURE JOBS FUND (FJF),EG EMPLOYMENT PROGRAMMES,URBAN FUTURES LONDON LTD,2015249663,"223,256.00"
Department for Work and Pensions,Jobcentre Plus,27/05/2010,EMPLOYMENT PROGRAMMES,HQ BALANCE SHEET ,THE INTRAINING GROUP,2015479207,"223,145.17"
Department for Work and Pensions,Employment Programmes,13/05/2010,JOBCENTRE PLUS PATHWAYS TO WORK,EG EMPLOYMENT PROGRAMMES,NHS GREATER GLASGOW & CLYDE,2015248381,"222,923.00"
Department for Work and Pensions,Employment Programmes,12/05/2010,EP GENERIC PROVIDER PAYMENTS,EG EMPLOYMENT PROGRAMMES,SEETEC BUSINESS TECHNOLOGY CENTRE LTD,2015235867,"222,223.17"
Department for Work and Pensions,Employment Programmes,12/05/2010,YOUNG PERSONS GUARANTEE (YPG) AND FUTURE JOBS FUND (FJF),EG EMPLOYMENT PROGRAMMES,RESOURCE PLUS FUTURE JOB FUND,2015228250,"221,550.00"
Department for Work and Pensions,Housing Benefits,14/05/2010,Housing Benefit Admin,WWG HOUSING BENEFIT,LONDON BOROUGH OF HOUNSLOW,2015259911,"220,464.00"
Department for Work and Pensions,Employment Programmes,12/05/2010,EP GENERIC PROVIDER PAYMENTS,EG EMPLOYMENT PROGRAMMES,TNG LTD,2015239168,"220,239.34"
Department for Work and Pensions,Housing Benefits,14/05/2010,Housing Benefit Admin,WWG HOUSING BENEFIT,BOLTON METROPOLITAN BOROUGH COUNCIL,2015259753,"218,051.00"
Department for Work and Pensions,Employment Programmes,14/05/2010,YOUNG PERSONS GUARANTEE (YPG) AND FUTURE JOBS FUND (FJF),EG EMPLOYMENT PROGRAMMES,GLASGOW CITY COUNCIL,2015254895,"217,350.00"
Department for Work and Pensions,Corporate,19/05/2010,COMPUTER SERVICES,GROUP FINANCE,DELOITTE & TOUCHE LLP,2015297619,"216,714.00"
Department for Work and Pensions,Corporate,20/05/2010,CONTRACTED OUT OFFICE SERVICES,SHARED SERVICES ,BALFOUR BEATTY WORKPLACE LTD,2015353873,"216,015.79"
Department for Work and Pensions,Jobcentre Plus,07/05/2010,EMPLOYMENT PROGRAMMES,HQ BALANCE SHEET ,THE WISE GROUP,2015150852,"215,519.90"
Department for Work and Pensions,Employment Programmes,14/05/2010,YOUNG PERSONS GUARANTEE (YPG) AND FUTURE JOBS FUND (FJF),EG EMPLOYMENT PROGRAMMES,NORFOLK COUNTY COUNCIL,2015256326,"214,050.00"
Department for Work and Pensions,Employment Programmes,14/05/2010,YOUNG PERSONS GUARANTEE (YPG) AND FUTURE JOBS FUND (FJF),EG EMPLOYMENT PROGRAMMES,SURREY COUNTY COUNCIL,2015257276,"213,200.00"
Department for Work and Pensions,European Social Fund,06/05/2010,MA ESF(D) LA NON-PREFUNDED EXPENDITURE,WWEG EUROPEAN SOCIAL FUND,WIRRAL BOROUGH COUNCIL,5000000183,"212,397.00"
Department for Work and Pensions,Corporate,20/05/2010,COMPUTER SERVICES,CORPORATE IT,AMTEC CONSULTING GROUP,2015353756,"212,222.18"
Department for Work and Pensions,Corporate,07/05/2010,CAPITAL GRANTS,GROUP FINANCE,CAPITAL CREDIT UNION LTD,2015146588,"210,315.00"
Department for Work and Pensions,Employment Programmes,28/05/2010,YOUNG PERSONS GUARANTEE (YPG) AND FUTURE JOBS FUND (FJF),EG EMPLOYMENT PROGRAMMES,NORTH LANARKSHIRE COUNCIL,2015533217,"210,300.00"
Department for Work and Pensions,Jobcentre Plus,14/05/2010,ACCOMMODATION,CHIEF OPERATING OFFICER,TELEREAL TRILLIUM,2015255769,"209,145.19"
Department for Work and Pensions,Corporate,04/05/2010,BANK COMMISSIONS,GROUP FINANCE,HSBC BANK PLC,2015130571,"207,991.30"
Department for Work and Pensions,Housing Benefits,14/05/2010,Housing Benefit Admin,WWG HOUSING BENEFIT,PLYMOUTH CITY COUNCIL,2015259976,"207,141.00"
Department for Work and Pensions,Housing Benefits,14/05/2010,Housing Benefit Admin,WWG HOUSING BENEFIT,ROTHERHAM BOROUGH COUNCIL,2015259993,"207,046.00"
Department for Work and Pensions,Employment Programmes,12/05/2010,YOUNG PERSONS GUARANTEE (YPG) AND FUTURE JOBS FUND (FJF),EG EMPLOYMENT PROGRAMMES,COMMUNITY ENTERPRISE DERBY CIC,2015185684,"206,700.00"
Department for Work and Pensions,Housing Benefits,14/05/2010,Housing Benefit Admin,WWG HOUSING BENEFIT,STOCKPORT BOROUGH COUNCIL,2015260042,"206,416.00"
Department for Work and Pensions,Employment Programmes,28/05/2010,YOUNG PERSONS GUARANTEE (YPG) AND FUTURE JOBS FUND (FJF),EG EMPLOYMENT PROGRAMMES,HARTLEPOOL BOROUGH COUNCIL,2015507207,"205,350.00"
Department for Work and Pensions,Corporate,14/05/2010,APPS DEV,CHANGE MANAGEMENT DIRECTORATE,HP ENTERPRISE SERVICES UK LTD,2015255016,"205,281.24"
Department for Work and Pensions,Jobcentre Plus,20/05/2010,EMPLOYMENT PROGRAMMES,HQ BALANCE SHEET ,A4E LTD,2015353672,"205,194.96"
Department for Work and Pensions,Housing Benefits,14/05/2010,Housing Benefit Admin,WWG HOUSING BENEFIT,NORTHUMBERLAND COUNCIL,2015259964,"205,095.00"
Department for Work and Pensions,Employment Programmes,04/05/2010,YOUNG PERSONS GUARANTEE (YPG) AND FUTURE JOBS FUND (FJF),EG EMPLOYMENT PROGRAMMES,NATIONAL SKILLS ACADEMY FOR SPORT & ACTIVE LEISURE,2015131232,"205,050.00"
Department for Work and Pensions,Employment Programmes,10/05/2010,YOUNG PERSONS GUARANTEE (YPG) AND FUTURE JOBS FUND (FJF),EG EMPLOYMENT PROGRAMMES,THE SALVATION ARMY,2015158082,"204,763.40"
Department for Work and Pensions,Employment Programmes,14/05/2010,EMPLOYMENT ZONES,EG EMPLOYMENT PROGRAMMES,DCLG,2002008,"204,533.00"
Department for Work and Pensions,Housing Benefits,14/05/2010,Housing Benefit Admin,WWG HOUSING BENEFIT,TAMESIDE BOROUGH COUNCIL,2015260053,"204,336.00"
Department for Work and Pensions,Corporate,27/05/2010,CAPITAL GRANTS,GROUP FINANCE,NATIONAL HOUSING FEDERATION,2015475200,"204,241.00"
Department for Work and Pensions,Housing Benefits,14/05/2010,Housing Benefit Admin,WWG HOUSING BENEFIT,LONDON BOROUGH OF HAMMERSMITH & FULHAM,2015259906,"203,286.00"
Department for Work and Pensions,Corporate,04/05/2010,PRINTING STATIONERY IT & CONSUMABLES,GROUP FINANCE,XEROX UK LIMITED 3W,2015131991,"202,979.54"
Department for Work and Pensions,Housing Benefits,14/05/2010,Housing Benefit Admin,WWG HOUSING BENEFIT,CHESHIRE EAST BOROUGH COUNCIL,2015259787,"202,726.00"
Department for Work and Pensions,Housing Benefits,14/05/2010,Housing Benefit Admin,WWG HOUSING BENEFIT,LONDON BOROUGH OF HILLINGDON,2015259910,"202,106.00"
Department for Work and Pensions,Corporate,11/05/2010,PRIME BILLABLE EXTRAS,GROUP FINANCE,LANDSECURITIES TRILLIUM,2015167341,"201,415.69"
Department for Work and Pensions,Housing Benefits,14/05/2010,Housing Benefit Admin,WWG HOUSING BENEFIT,CHESHIRE WEST & CHESTER COUNCIL,2015259788,"201,169.00"
Department for Work and Pensions,Jobcentre Plus,07/05/2010,EMPLOYMENT PROGRAMMES,HQ BALANCE SHEET ,THE INTRAINING GROUP,2015150829,"200,872.59"
Department for Work and Pensions,Corporate,26/05/2010,PROFESSIONAL FEES,GROUP FINANCE,BRAVO SOLUTION UK LTD,2015396793,"200,000.00"
Department for Work and Pensions,Corporate,27/05/2010,EMPLOYMENT ZONES,GROUP FINANCE,NATIONAL HOUSING FEDERATION,2015475200,"200,000.00"
Department for Work and Pensions,Housing Benefits,14/05/2010,Housing Benefit Admin,WWG HOUSING BENEFIT,RHONDA CYNON TAFF COUNTY BOROUGH COUNCIL,2015259986,"199,622.00"
Department for Work and Pensions,Housing Benefits,14/05/2010,Housing Benefit Admin,WWG HOUSING BENEFIT,PORTSMOUTH CITY COUNCIL,2015259978,"199,580.00"
Department for Work and Pensions,Employment Programmes,12/05/2010,EP GENERIC PROVIDER PAYMENTS,EG EMPLOYMENT PROGRAMMES,A4E LTD,2015178933,"198,836.66"
Department for Work and Pensions,Housing Benefits,14/05/2010,Housing Benefit Admin,WWG HOUSING BENEFIT,MEDWAY TOWNS COUNCIL,2015259931,"198,271.00"
Department for Work and Pensions,Corporate,26/05/2010,COMPUTER SERVICES,CORPORATE IT,TELEFONICA O2 UK LTD,2015457370,"197,945.07"
Department for Work and Pensions,Housing Benefits,14/05/2010,Housing Benefit Admin,WWG HOUSING BENEFIT,SOUTHAMPTON CITY COUNCIL,2015260032,"196,264.00"
Department for Work and Pensions,Employment Programmes,12/05/2010,EP GENERIC PROVIDER PAYMENTS,EG EMPLOYMENT PROGRAMMES,JHP GROUP LTD,2015205092,"195,794.50"
Department for Work and Pensions,Jobcentre Plus,07/05/2010,EMPLOYMENT PROGRAMMES,HQ BALANCE SHEET ,REMPLOY,2015150212,"195,350.01"
Department for Work and Pensions,Corporate,14/05/2010,IS/IT,CORPORATE IT,HP ENTERPRISE SERVICES UK LTD,2015255016,"194,696.76"
Department for Work and Pensions,Employment Programmes,12/05/2010,EP GENERIC PROVIDER PAYMENTS,EG EMPLOYMENT PROGRAMMES,CAPITAL TRAINING GROUP LTD,2015185385,"191,899.17"
Department for Work and Pensions,Housing Benefits,14/05/2010,Housing Benefit Admin,WWG HOUSING BENEFIT,EAST RIDING OF YORKSHIRE BOROUGH COUNCIL,2015259836,"191,851.00"
Department for Work and Pensions,Corporate,18/05/2010,COMPUTER SERVICES,CORPORATE IT,HP ENTERPRISE SERVICES UK LTD,2015272023,"191,813.49"
Department for Work and Pensions,Corporate,10/05/2010,IS/IT,CORPORATE IT,HP ENTERPRISE SERVICES UK LTD,2015156058,"191,344.82"
Department for Work and Pensions,Jobcentre Plus,17/05/2010,APPS DEV,ISD,HP ENTERPRISE SERVICES UK LTD,2015262632,"191,140.35"
Department for Work and Pensions,Housing Benefits,14/05/2010,Housing Benefit Admin,WWG HOUSING BENEFIT,BARNSLEY BOROUGH COUNCIL,2015259740,"188,968.00"
Department for Work and Pensions,Housing Benefits,14/05/2010,Housing Benefit Admin,WWG HOUSING BENEFIT,MILTON KEYNES BOROUGH COUNCIL,2015259940,"188,743.00"
Department for Work and Pensions,Housing Benefits,14/05/2010,Housing Benefit Admin,WWG HOUSING BENEFIT,LONDON BOROUGH OF KENSINGTON & CHELSEA,2015259913,"188,446.00"
Department for Work and Pensions,Housing Benefits,14/05/2010,Housing Benefit Admin,WWG HOUSING BENEFIT,ROCHDALE BOROUGH COUNCIL,2015259989,"188,330.00"
Department for Work and Pensions,Jobcentre Plus,07/05/2010,EMPLOYMENT PROGRAMMES,HQ BALANCE SHEET ,TRIAGE CENTRAL LTD,2015150904,"188,042.81"
Department for Work and Pensions,Jobcentre Plus,27/05/2010,ACCOMMODATION,CHIEF OPERATING OFFICER,TELEREAL TRILLIUM,2015473157,"187,633.35"
Department for Work and Pensions,Housing Benefits,14/05/2010,Housing Benefit Admin,WWG HOUSING BENEFIT,DERBY CITY COUNCIL,2015259817,"186,935.00"
Department for Work and Pensions,Housing Benefits,14/05/2010,Housing Benefit Admin,WWG HOUSING BENEFIT,SWANSEA CITY COUNCIL,2015260051,"185,902.00"
Department for Work and Pensions,Jobcentre Plus,18/05/2010,JOBCENTRE PLUS PATHWAYS TO WORK,CHIEF OPERATING OFFICER,SOMERSET PCT,2015278401,"184,980.00"
Department for Work and Pensions,Jobcentre Plus,25/05/2010,MEDICAL SERVICES CONTRACT,CHIEF OPERATING OFFICER,ATOS ORIGIN MEDICAL SERVICES,2015376341,"184,834.22"
Department for Work and Pensions,Corporate,18/05/2010,APPS DEV,CHANGE MANAGEMENT DIRECTORATE,ACCENTURE UK LTD,2015267709,"184,821.00"
Department for Work and Pensions,Corporate,13/05/2010,OTHER GRANTS IN AID,WWG ,MOTABILITY,2015248218,"184,000.00"
Department for Work and Pensions,Housing Benefits,14/05/2010,Housing Benefit Admin,WWG HOUSING BENEFIT,LONDON BOROUGH OF HARROW,2015259908,"183,286.00"
Department for Work and Pensions,Housing Benefits,14/05/2010,Housing Benefit Admin,WWG HOUSING BENEFIT,OLDHAM BOROUGH COUNCIL,2015259969,"183,161.00"
Department for Work and Pensions,Housing Benefits,14/05/2010,Housing Benefit Admin,WWG HOUSING BENEFIT,LONDON BOROUGH OF BROMLEY,2015259901,"182,362.00"
Department for Work and Pensions,Employment Programmes,28/05/2010,EMPLOYMENT ZONES,EG EMPLOYMENT PROGRAMMES,TNG WORKZONE LTD,2015549809,"182,136.00"
Department for Work and Pensions,Jobcentre Plus,27/05/2010,EMPLOYMENT PROGRAMMES,HQ BALANCE SHEET ,VT SOUTHERN CAREERS LTD COMMUNITY OUTREACH SERVICE,2015479515,"182,116.82"
Department for Work and Pensions,Employment Programmes,07/05/2010,YOUNG PERSONS GUARANTEE (YPG) AND FUTURE JOBS FUND (FJF),EG EMPLOYMENT PROGRAMMES,NORTH LANARKSHIRE COUNCIL,2015149818,"182,000.00"
Department for Work and Pensions,Employment Programmes,20/05/2010,RAPID RESPONSE,EG EMPLOYMENT PROGRAMMES,RESOURCES LTD,2015359287,"182,000.00"
Department for Work and Pensions,Corporate,14/05/2010,COMPUTER SERVICES,CORPORATE IT,HP ENTERPRISE SERVICES UK LTD,2015255016,"180,857.95"
Department for Work and Pensions,Housing Benefits,14/05/2010,Housing Benefit Admin,WWG HOUSING BENEFIT,LONDON BOROUGH OF BARKING & DAGENHAM,2015259897,"180,605.00"
Department for Work and Pensions,Jobcentre Plus,27/05/2010,PAYMENTS TO CSAS,CHIEF OPERATING OFFICER,ATOS ORIGIN IT SERVICES UK LTD,2015464206,"180,028.56"
Department for Work and Pensions,Housing Benefits,14/05/2010,Housing Benefit Admin,WWG HOUSING BENEFIT,KNOWSLEY BOROUGH COUNCIL,2015259889,"179,845.00"
Department for Work and Pensions,Employment Programmes,19/05/2010,RESIDENTIAL TRAINING,EG EMPLOYMENT PROGRAMMES,PORTLAND COLLEGE,2015334103,"178,569.00"
Department for Work and Pensions,Housing Benefits,14/05/2010,Housing Benefit Admin,WWG HOUSING BENEFIT,GATESHEAD BOROUGH COUNCIL,2015259855,"178,509.00"
Department for Work and Pensions,Employment Programmes,12/05/2010,EP GENERIC PROVIDER PAYMENTS,EG EMPLOYMENT PROGRAMMES,INGEUS UK LTD,2015198377,"178,073.10"
Department for Work and Pensions,Jobcentre Plus,07/05/2010,EMPLOYMENT PROGRAMMES,HQ BALANCE SHEET ,BOURNEMOUTH & POOLE COLLEGE,2015146342,"177,761.46"
Department for Work and Pensions,Employment Programmes,18/05/2010,YOUNG PERSONS GUARANTEE (YPG) AND FUTURE JOBS FUND (FJF),EG EMPLOYMENT PROGRAMMES,LEICESTER CITY COUNCIL,2015274513,"176,100.00"
Department for Work and Pensions,Corporate,11/05/2010,STAFF COSTS,Corporate and Support Services,RIGHT CORECARE,2015169821,"174,327.24"
Department for Work and Pensions,Jobcentre Plus,20/05/2010,EMPLOYMENT PROGRAMMES,HQ BALANCE SHEET ,SEETEC BUSINESS TECHNOLOGY CENTRE LTD,2015359712,"174,102.86"
Department for Work and Pensions,Employment Programmes,13/05/2010,YOUNG PERSONS GUARANTEE (YPG) AND FUTURE JOBS FUND (FJF),EG EMPLOYMENT PROGRAMMES,TRAX WINDSPORT CENTRE CIC,2015249629,"172,900.00"
Department for Work and Pensions,Housing Benefits,14/05/2010,Housing Benefit Admin,WWG HOUSING BENEFIT,SHROPSHIRE COUNCIL,2015260012,"172,840.00"
Department for Work and Pensions,Jobcentre Plus,07/05/2010,EMPLOYMENT PROGRAMMES,HQ BALANCE SHEET ,PROSPECTS SERVICES LTD 2,2015150035,"171,406.88"
Department for Work and Pensions,Employment Programmes,12/05/2010,EP GENERIC PROVIDER PAYMENTS,EG EMPLOYMENT PROGRAMMES,INGEUS UK LTD,2015198377,"171,274.17"
Department for Work and Pensions,Housing Benefits,14/05/2010,Housing Benefit Admin,WWG HOUSING BENEFIT,LONDON BOROUGH OF REDBRIDGE,2015259918,"171,241.00"
Department for Work and Pensions,Housing Benefits,14/05/2010,Housing Benefit Admin,WWG HOUSING BENEFIT,STOCKTON  BOROUGH COUNCIL,2015260043,"170,880.00"
Department for Work and Pensions,Housing Benefits,14/05/2010,Housing Benefit Admin,WWG HOUSING BENEFIT,RENFREWSHIRE COUNCIL,2015259985,"168,749.00"
Department for Work and Pensions,Housing Benefits,14/05/2010,Housing Benefit Admin,WWG HOUSING BENEFIT,NORTHAMPTON BOROUGH COUNCIL,2015259963,"168,364.00"
Department for Work and Pensions,"Pension, Disability Carers Services",14/05/2010,APPS DEV,PDCS CORE,HP ENTERPRISE SERVICES UK LTD,2015255016,"167,521.09"
Department for Work and Pensions,Housing Benefits,14/05/2010,Housing Benefit Admin,WWG HOUSING BENEFIT,BLACKPOOL BOROUGH COUNCIL,2015259750,"167,396.00"
Department for Work and Pensions,Jobcentre Plus,07/05/2010,EMPLOYMENT PROGRAMMES,HQ BALANCE SHEET ,CHESHIRE TRAINING ASSOCIATES LTD,2015146624,"167,154.75"
Department for Work and Pensions,Jobcentre Plus,07/05/2010,EMPLOYMENT PROGRAMMES,HQ BALANCE SHEET ,TNG NETWORK LTD,2015150881,"166,993.61"
Department for Work and Pensions,Jobcentre Plus,13/05/2010,EMPLOYMENT PROGRAMMES,HQ BALANCE SHEET ,INGEUS UK LTD,2015246904,"166,355.97"
Department for Work and Pensions,Corporate,14/05/2010,ACCOMMODATION,GROUP FINANCE,TELEREAL TRILLIUM,2015255769,"166,089.55"
Department for Work and Pensions,Jobcentre Plus,13/05/2010,JOBCENTRE PLUS PATHWAYS TO WORK,CHIEF OPERATING OFFICER,DORSET PRIMARY CARE TRUST,2015245489,"165,937.67"
Department for Work and Pensions,Housing Benefits,14/05/2010,Housing Benefit Admin,WWG HOUSING BENEFIT,SOUTH GLOUCESTERSHIRE COUNCIL,2015260019,"165,637.00"
Department for Work and Pensions,Employment Programmes,20/05/2010,YOUNG PERSONS GUARANTEE (YPG) AND FUTURE JOBS FUND (FJF),EG EMPLOYMENT PROGRAMMES,NORTHAMPTONSHIRE ENTERPRISE LTD,2015358771,"165,450.00"
Department for Work and Pensions,Housing Benefits,14/05/2010,Housing Benefit Admin,WWG HOUSING BENEFIT,CALDERDALE BOROUGH COUNCIL,2015259774,"165,327.00"
Department for Work and Pensions,Corporate,14/05/2010,TOTAL SUPPLIES & SERVICES,Corporate and Support Services,SPECIALIST COMPUTER CENTRE PLC,2015257240,"165,295.30"
Department for Work and Pensions,Housing Benefits,14/05/2010,Housing Benefit Admin,WWG HOUSING BENEFIT,MIDDLESBROUGH COUNCIL,2015259938,"165,270.00"
Department for Work and Pensions,Employment Programmes,12/05/2010,EP GENERIC PROVIDER PAYMENTS,EG EMPLOYMENT PROGRAMMES,A4E LTD,2015178933,"165,176.67"
Department for Work and Pensions,Jobcentre Plus,13/05/2010,EMPLOYMENT PROGRAMMES,HQ BALANCE SHEET ,SHAW TRUST LTD,2015249321,"164,853.69"
Department for Work and Pensions,Jobcentre Plus,28/05/2010,PRIME BILLABLE EXTRAS,CHIEF OPERATING OFFICER,TELEREAL TRILLIUM,2015524666,"164,501.71"
Department for Work and Pensions,Housing Benefits,14/05/2010,Housing Benefit Admin,WWG HOUSING BENEFIT,THANET DISTRICT COUNCIL,2015260061,"164,294.00"
Department for Work and Pensions,Housing Benefits,14/05/2010,Housing Benefit Admin,WWG HOUSING BENEFIT,PETERBOROUGH CITY COUNCIL,2015259975,"163,738.00"
Department for Work and Pensions,Corporate,20/05/2010,COMPUTER SERVICES,CORPORATE IT,HMRC,2015356985,"163,414.00"
Department for Work and Pensions,Housing Benefits,14/05/2010,Housing Benefit Admin,WWG HOUSING BENEFIT,DUNDEE CITY COUNCIL,2015259823,"163,220.00"
Department for Work and Pensions,Employment Programmes,05/05/2010,YOUNG PERSONS GUARANTEE (YPG) AND FUTURE JOBS FUND (FJF),EG EMPLOYMENT PROGRAMMES,TNG LTD,2015136476,"162,184.00"
Department for Work and Pensions,Corporate,10/05/2010,CAPITAL GRANTS,GROUP FINANCE,KENT SAVERS,2015156543,"161,996.00"
Department for Work and Pensions,Jobcentre Plus,07/05/2010,EMPLOYMENT PROGRAMMES,HQ BALANCE SHEET ,TOMORROWS PEOPLE LTD,2015150885,"160,959.21"
Department for Work and Pensions,Employment Programmes,20/05/2010,RESIDENTIAL TRAINING,EG EMPLOYMENT PROGRAMMES,RNCB HEREFORD,2015359306,"160,730.00"
Department for Work and Pensions,Housing Benefits,14/05/2010,Housing Benefit Admin,WWG HOUSING BENEFIT,NORTH TYNESIDE BOROUGH COUNCIL,2015259960,"160,371.00"
Department for Work and Pensions,Housing Benefits,14/05/2010,Housing Benefit Admin,WWG HOUSING BENEFIT,NORTH EAST LINCOLNSHIRE COUNCIL,2015259953,"159,711.00"
Department for Work and Pensions,Housing Benefits,14/05/2010,Housing Benefit Admin,WWG HOUSING BENEFIT,ST HELENS BOROUGH COUNCIL,2015260037,"159,652.00"
Department for Work and Pensions,Corporate,27/05/2010,POSTAGE,GROUP FINANCE,TNT UK LTD,2015479271,"159,469.59"
Department for Work and Pensions,Employment Programmes,14/05/2010,YOUNG PERSONS GUARANTEE (YPG) AND FUTURE JOBS FUND (FJF),EG EMPLOYMENT PROGRAMMES,HAMPSHIRE COUNTY COUNCIL,2015254984,"158,625.94"
Department for Work and Pensions,Employment Programmes,10/05/2010,NDDP,EG EMPLOYMENT PROGRAMMES,ACTION FOR EMPLOYMENT,2015153867,"158,114.85"
Department for Work and Pensions,Housing Benefits,14/05/2010,Housing Benefit Admin,WWG HOUSING BENEFIT,HIGHLAND COUNCIL,2015259876,"157,800.00"
Department for Work and Pensions,Employment Programmes,10/05/2010,YOUNG PERSONS GUARANTEE (YPG) AND FUTURE JOBS FUND (FJF),EG EMPLOYMENT PROGRAMMES,CITY OF EDINBURGH COUNCIL,2015154291,"156,000.00"
Department for Work and Pensions,Employment Programmes,12/05/2010,YOUNG PERSONS GUARANTEE (YPG) AND FUTURE JOBS FUND (FJF),EG EMPLOYMENT PROGRAMMES,PLACES FOR PEOPLE NEIGHBOURHOODS,2015225532,"155,672.00"
Department for Work and Pensions,Housing Benefits,14/05/2010,Housing Benefit Admin,WWG HOUSING BENEFIT,LUTON BOROUGH COUNCIL,2015259925,"155,469.00"
Department for Work and Pensions,Corporate,27/05/2010,COMPUTER SERVICES,CORPORATE IT,ATOS ORIGIN IT SERVICES UK LTD,2015464206,"154,610.09"
Department for Work and Pensions,Housing Benefits,14/05/2010,Housing Benefit Admin,WWG HOUSING BENEFIT,BOURNEMOUTH BOROUGH COUNCIL,2015259758,"154,527.00"
Department for Work and Pensions,Employment Programmes,05/05/2010,YOUNG PERSONS GUARANTEE (YPG) AND FUTURE JOBS FUND (FJF),EG EMPLOYMENT PROGRAMMES,THE INTRAINING GROUP,2015136457,"153,267.00"
Department for Work and Pensions,Jobcentre Plus,17/05/2010,MANAGEMENT CONSULTANCY,TPM PROGRAMMES,CAPGEMINI UK PLC,2015260775,"152,077.73"
Department for Work and Pensions,Corporate,07/05/2010,COMPUTER SERVICES,CORPORATE IT,ATOS ORIGIN IT SERVICES UK LTD,2015146245,"151,915.04"
Department for Work and Pensions,Jobcentre Plus,27/05/2010,EMPLOYMENT PROGRAMMES,HQ BALANCE SHEET ,TNG INBIZ LTD,2015479266,"151,906.70"
Department for Work and Pensions,Housing Benefits,14/05/2010,Housing Benefit Admin,WWG HOUSING BENEFIT,NORTH SOMERSET COUNCIL,2015259959,"151,415.00"
Department for Work and Pensions,"Pension, Disability Carers Services",19/05/2010,TOTAL SUPPLIES & SERVICES,PDCS CORE,ROYAL MAIL GROUP PLC,2015337001,"151,294.65"
Department for Work and Pensions,Housing Benefits,14/05/2010,Housing Benefit Admin,WWG HOUSING BENEFIT,SOUTHEND ON SEA BOROUGH COUNCIL,2015260033,"151,050.00"
Department for Work and Pensions,Employment Programmes,12/05/2010,EP GENERIC PROVIDER PAYMENTS,EG EMPLOYMENT PROGRAMMES,JHP GROUP LTD,2015205092,"150,258.67"
Department for Work and Pensions,Jobcentre Plus,07/05/2010,EMPLOYMENT PROGRAMMES,HQ BALANCE SHEET ,SEETEC,2015150585,"149,793.18"
Department for Work and Pensions,Employment Programmes,05/05/2010,YOUNG PERSONS GUARANTEE (YPG) AND FUTURE JOBS FUND (FJF),EG EMPLOYMENT PROGRAMMES,THE INTRAINING GROUP,2015136457,"149,111.00"
Department for Work and Pensions,Jobcentre Plus,07/05/2010,EMPLOYMENT PROGRAMMES,HQ BALANCE SHEET ,CLAVERHOUSE GROUP,2015146641,"148,840.06"
Department for Work and Pensions,Housing Benefits,14/05/2010,Housing Benefit Admin,WWG HOUSING BENEFIT,BASILDON DISTRICT COUNCIL,2015259742,"148,283.00"
Department for Work and Pensions,Housing Benefits,14/05/2010,Housing Benefit Admin,WWG HOUSING BENEFIT,TRAFFORD BOROUGH COUNCIL,2015260069,"146,887.00"
Department for Work and Pensions,Jobcentre Plus,07/05/2010,EMPLOYMENT PROGRAMMES,HQ BALANCE SHEET ,ARMSTRONG LEARNING LTD,2015146222,"146,462.48"
Department for Work and Pensions,Housing Benefits,14/05/2010,Housing Benefit Admin,WWG HOUSING BENEFIT,TORBAY  COUNCIL,2015260066,"146,185.00"
Department for Work and Pensions,Employment Programmes,10/05/2010,YOUNG PERSONS GUARANTEE (YPG) AND FUTURE JOBS FUND (FJF),EG EMPLOYMENT PROGRAMMES,BARNET COLLEGE,2015153993,"145,692.00"
Department for Work and Pensions,Jobcentre Plus,07/05/2010,EMPLOYMENT PROGRAMMES,HQ BALANCE SHEET ,RENOVO EMPLOYMENT GROUP LTD,2015148450,"145,650.00"
Department for Work and Pensions,Housing Benefits,14/05/2010,Housing Benefit Admin,WWG HOUSING BENEFIT,SWINDON BOROUGH COUNCIL,2015260052,"145,515.00"
Department for Work and Pensions,Employment Programmes,05/05/2010,YOUNG PERSONS GUARANTEE (YPG) AND FUTURE JOBS FUND (FJF),EG EMPLOYMENT PROGRAMMES,THE INTRAINING GROUP,2015136457,"145,200.00"
Department for Work and Pensions,Housing Benefits,14/05/2010,Housing Benefit Admin,WWG HOUSING BENEFIT,SOUTH TYNESIDE METROPOLITAN BOROUGH COUNCIL,2015260031,"144,443.00"
Department for Work and Pensions,Housing Benefits,14/05/2010,Housing Benefit Admin,WWG HOUSING BENEFIT,BOROUGH OF TELFORD  & WREKIN COUNCIL,2015259755,"143,989.00"
Department for Work and Pensions,Housing Benefits,14/05/2010,Housing Benefit Admin,WWG HOUSING BENEFIT,LONDON BOROUGH OF BEXLEY,2015259899,"143,580.00"
Department for Work and Pensions,Employment Programmes,17/05/2010,YOUNG PERSONS GUARANTEE (YPG) AND FUTURE JOBS FUND (FJF),EG EMPLOYMENT PROGRAMMES,CHESHIRE WEST & CHESTER COUNCIL,2015260809,"143,250.00"
Department for Work and Pensions,Corporate,19/05/2010,NETWORK,CORPORATE IT,BT SYNTEGRA,2015288232,"143,203.59"
Department for Work and Pensions,Employment Programmes,14/05/2010,YOUNG PERSONS GUARANTEE (YPG) AND FUTURE JOBS FUND (FJF),EG EMPLOYMENT PROGRAMMES,HARTLEPOOL BOROUGH COUNCIL,2015254990,"142,350.00"
Department for Work and Pensions,Housing Benefits,14/05/2010,Housing Benefit Admin,WWG HOUSING BENEFIT,LONDON BOROUGH OF HAVERING,2015259909,"141,829.00"
Department for Work and Pensions,Employment Programmes,12/05/2010,YOUNG PERSONS GUARANTEE (YPG) AND FUTURE JOBS FUND (FJF),EG EMPLOYMENT PROGRAMMES,CSV,2015185730,"141,700.00"
Department for Work and Pensions,Housing Benefits,14/05/2010,Housing Benefit Admin,WWG HOUSING BENEFIT,BURY METROPOLITAN BOROUGH COUNCIL,2015259772,"141,220.00"
Department for Work and Pensions,Corporate,20/05/2010,CONTRACTED OUT OFFICE SERVICES,GROUP FINANCE,BALFOUR BEATTY WORKPLACE LTD,2015353873,"140,506.77"
Department for Work and Pensions,Jobcentre Plus,07/05/2010,EMPLOYMENT PROGRAMMES,HQ BALANCE SHEET ,NEWPORT CITY COUNCIL,2015153633,"139,992.00"
Department for Work and Pensions,Employment Programmes,13/05/2010,YOUNG PERSONS GUARANTEE (YPG) AND FUTURE JOBS FUND (FJF),EG EMPLOYMENT PROGRAMMES,WARWICKSHIRE COUNTY COUNCIL,2015249767,"139,100.00"
Department for Work and Pensions,Corporate,14/05/2010,APPS DEV,SHARED SERVICES ,HP ENTERPRISE SERVICES UK LTD,2015255016,"138,933.51"
Department for Work and Pensions,Housing Benefits,14/05/2010,Housing Benefit Admin,WWG HOUSING BENEFIT,CAERPHILLY COUNTY BOROUGH COUNCIL,2015259773,"138,881.00"
Department for Work and Pensions,Corporate,27/05/2010,ACCOMMODATION,SHARED SERVICES ,TELEREAL TRILLIUM,2015473156,"138,612.91"
Department for Work and Pensions,Housing Benefits,14/05/2010,Housing Benefit Admin,WWG HOUSING BENEFIT,ABERDEEN CITY COUNCIL,2015259728,"138,401.00"
Department for Work and Pensions,Housing Benefits,14/05/2010,Housing Benefit Admin,WWG HOUSING BENEFIT,LONDON BOROUGH OF SUTTON,2015259921,"137,857.00"
Department for Work and Pensions,"Pension, Disability Carers Services",14/05/2010,ACCOMMODATION,PDCS CORE,TELEREAL TRILLIUM,2015255769,"137,810.17"
Department for Work and Pensions,Housing Benefits,14/05/2010,Housing Benefit Admin,WWG HOUSING BENEFIT,NORTH AYRSHIRE COUNCIL,2015259949,"137,720.00"
Department for Work and Pensions,Employment Programmes,21/05/2010,WORKSTEP,EG EMPLOYMENT PROGRAMMES,MERTHYR TYDFIL INSTITUTE FOR THE BLIND,2015369659,"137,350.80"
Department for Work and Pensions,Employment Programmes,13/05/2010,ACCOMMODATION,EG EMPLOYMENT PROGRAMMES,WELSH ASSEMBLY GOVERNMENT,2015249775,"136,874.19"
Department for Work and Pensions,Employment Programmes,11/05/2010,YOUNG PERSONS GUARANTEE (YPG) AND FUTURE JOBS FUND (FJF),EG EMPLOYMENT PROGRAMMES,LONDON BOROUGH OF HACKNEY HOST BOROUGH UNIT,2015167413,"136,500.00"
Department for Work and Pensions,Jobcentre Plus,07/05/2010,EMPLOYMENT PROGRAMMES,HQ BALANCE SHEET ,TNG LTD,2015150878,"135,869.89"
Department for Work and Pensions,Corporate,27/05/2010,PAYMENTS TO CSAS,Corporate and Support Services,ATOS ORIGIN IT SERVICES UK LTD,2015464206,"134,200.48"
Department for Work and Pensions,Jobcentre Plus,07/05/2010,ACCOMMODATION,CHIEF OPERATING OFFICER,TELEREAL TRILLIUM,2015149270,"134,197.00"
Department for Work and Pensions,Housing Benefits,14/05/2010,Housing Benefit Admin,WWG HOUSING BENEFIT,REDCAR & CLEVELAND  BOROUGH COUNCIL,2015259983,"133,309.00"
Department for Work and Pensions,Employment Programmes,26/05/2010,NDDP,EG EMPLOYMENT PROGRAMMES,WORKING LINKS,2015459433,"132,734.25"
Department for Work and Pensions,Employment Programmes,05/05/2010,YOUNG PERSONS GUARANTEE (YPG) AND FUTURE JOBS FUND (FJF),EG EMPLOYMENT PROGRAMMES,TNG LTD,2015136476,"131,843.00"
Department for Work and Pensions,Jobcentre Plus,27/05/2010,EMPLOYMENT PROGRAMMES,HQ BALANCE SHEET ,SEETEC,2015478483,"131,709.69"
Department for Work and Pensions,Housing Benefits,14/05/2010,Housing Benefit Admin,WWG HOUSING BENEFIT,NORWICH CITY COUNCIL,2015259965,"131,294.00"
Department for Work and Pensions,Employment Programmes,19/05/2010,JSP ESF DEL P COSTS,EG EMPLOYMENT PROGRAMMES,THE INTRAINING GROUP,2015347824,"130,921.05"
Department for Work and Pensions,Housing Benefits,14/05/2010,Housing Benefit Admin,WWG HOUSING BENEFIT,LONDON BOROUGH OF MERTON,2015259916,"130,534.00"
Department for Work and Pensions,Corporate,18/05/2010,COMPUTER SERVICES,CORPORATE IT,BT SYNTEGRA,2015268169,"130,159.69"
Department for Work and Pensions,Housing Benefits,14/05/2010,Housing Benefit Admin,WWG HOUSING BENEFIT,TENDRING DISTRICT COUNCIL,2015260058,"130,075.00"
Department for Work and Pensions,Employment Programmes,12/05/2010,YOUNG PERSONS GUARANTEE (YPG) AND FUTURE JOBS FUND (FJF),EG EMPLOYMENT PROGRAMMES,THE NATIONAL TRUST,2015239057,"130,000.00"
Department for Work and Pensions,Employment Programmes,12/05/2010,EP GENERIC PROVIDER PAYMENTS,EG EMPLOYMENT PROGRAMMES,WORKING LINKS,2015241014,"129,710.00"
Department for Work and Pensions,Housing Benefits,14/05/2010,Housing Benefit Admin,WWG HOUSING BENEFIT,WEST LOTHIAN COUNCIL,2015260089,"129,196.00"
Department for Work and Pensions,Jobcentre Plus,07/05/2010,EMPLOYMENT PROGRAMMES,HQ BALANCE SHEET ,BIRMINGHAM CITY COUNCIL,2015146326,"128,850.80"
Department for Work and Pensions,Corporate,11/05/2010,PENSIONS PROGRAMME COSTS,PENSIONS CLIENT DIRECTORATE,BBC,2015161242,"128,316.41"
Department for Work and Pensions,Jobcentre Plus,07/05/2010,EMPLOYMENT PROGRAMMES,HQ BALANCE SHEET ,SEETEC,2015150587,"128,101.12"
Department for Work and Pensions,Housing Benefits,14/05/2010,Housing Benefit Admin,WWG HOUSING BENEFIT,CENTRAL BEDFORDSHIRE DISTRICT COUNCIL,2015259781,"128,079.00"
Department for Work and Pensions,Jobcentre Plus,27/05/2010,EMPLOYMENT PROGRAMMES,HQ BALANCE SHEET ,SHAW TRUST LTD,2015478506,"127,977.67"
Department for Work and Pensions,Employment Programmes,05/05/2010,EP GENERIC PROVIDER PAYMENTS,EG EMPLOYMENT PROGRAMMES,NORD ANGLIA EDUCATION PARTNERSHIPS LTD,2015135947,"127,551.50"
Department for Work and Pensions,Jobcentre Plus,27/05/2010,ACCOMMODATION,CHIEF OPERATING OFFICER,TELEREAL TRILLIUM,2015473156,"127,157.04"
Department for Work and Pensions,Housing Benefits,14/05/2010,Housing Benefit Admin,WWG HOUSING BENEFIT,BLACKBURN BOROUGH COUNCIL,2015259749,"127,143.00"
Department for Work and Pensions,Employment Programmes,19/05/2010,JSP ESF DEL P COSTS,EG EMPLOYMENT PROGRAMMES,SEETEC BUSINESS TECHNOLOGY CENTRE LTD,2015344653,"126,320.27"
Department for Work and Pensions,Jobcentre Plus,20/05/2010,EMPLOYMENT PROGRAMMES,HQ BALANCE SHEET ,WORKING LINKS EMPLOYMENT LTD,2015360270,"126,315.46"
Department for Work and Pensions,Corporate,14/05/2010,COMPUTER SERVICES,GROUP FINANCE,ACCENTURE UK LTD,2015252022,"126,243.38"
Department for Work and Pensions,Corporate,18/05/2010,STAFF COSTS,Corporate and Support Services,RIGHT CORECARE,2015277131,"125,583.33"
Department for Work and Pensions,Jobcentre Plus,14/05/2010,APPS DEV,ISD,HP ENTERPRISE SERVICES UK LTD,2015255016,"125,231.00"
Department for Work and Pensions,Housing Benefits,14/05/2010,Housing Benefit Admin,WWG HOUSING BENEFIT,CARMARTHENSHIRE COUNTY COUNCIL,2015259779,"124,993.00"
Department for Work and Pensions,Housing Benefits,14/05/2010,Housing Benefit Admin,WWG HOUSING BENEFIT,SOLIHULL METROPOLITAN BOROUGH COUNCIL,2015260014,"124,893.00"
Department for Work and Pensions,Housing Benefits,14/05/2010,Housing Benefit Admin,WWG HOUSING BENEFIT,NORTH LINCOLNSHIRE COUNCIL,2015259957,"124,405.00"
Department for Work and Pensions,Employment Programmes,19/05/2010,YOUNG PERSONS GUARANTEE (YPG) AND FUTURE JOBS FUND (FJF),EG EMPLOYMENT PROGRAMMES,WAKEFIELD METROPLITAN DISTRICT COUNCIL,2015349749,"124,043.27"
Department for Work and Pensions,Jobcentre Plus,13/05/2010,EMPLOYMENT PROGRAMMES,HQ BALANCE SHEET ,TWL TRAINING LTD,2015249646,"123,670.40"
Department for Work and Pensions,Housing Benefits,14/05/2010,Housing Benefit Admin,WWG HOUSING BENEFIT,DUMFRIES & GALLOWAY COUNCIL,2015259822,"123,430.00"
Department for Work and Pensions,European Social Fund,11/05/2010,MA ESF(D) COSTS,WWEG EUROPEAN SOCIAL FUND,NATIONAL INSTITUTE OF ADULT CONTINUING EDUCATION NIACE,5000000186,"123,427.00"
Department for Work and Pensions,Employment Programmes,10/05/2010,GRANTS IN AID TO EXECUTIVE NDPBs,EG EMPLOYMENT PROGRAMMES,LEEDS YORK & NORTH YORKSHIRE CHAMBER OF COMMERCE,2015156737,"123,311.50"
Department for Work and Pensions,Housing Benefits,14/05/2010,Housing Benefit Admin,WWG HOUSING BENEFIT,ISLE OF WIGHT COUNTY COUNCIL,2015259884,"123,038.00"
Department for Work and Pensions,Jobcentre Plus,18/05/2010,APPS DEV,ISD,HP ENTERPRISE SERVICES UK LTD,2015272023,"121,886.37"
Department for Work and Pensions,Employment Programmes,12/05/2010,YOUNG PERSONS GUARANTEE (YPG) AND FUTURE JOBS FUND (FJF),EG EMPLOYMENT PROGRAMMES,NORFOLK COUNTY COUNCIL,2015223003,"120,900.00"
Department for Work and Pensions,Housing Benefits,14/05/2010,Housing Benefit Admin,WWG HOUSING BENEFIT,NEATH PORT TALBOT COUNTY BOROUGH COUNCIL,2015259943,"120,509.00"
Department for Work and Pensions,Housing Benefits,14/05/2010,Housing Benefit Admin,WWG HOUSING BENEFIT,SLOUGH BOROUGH COUNCIL,2015260013,"120,272.00"
Department for Work and Pensions,Housing Benefits,14/05/2010,Housing Benefit Admin,WWG HOUSING BENEFIT,READING BOROUGH COUNCIL,2015259982,"119,744.00"
Department for Work and Pensions,Employment Programmes,07/05/2010,YOUNG PERSONS GUARANTEE (YPG) AND FUTURE JOBS FUND (FJF),EG EMPLOYMENT PROGRAMMES,STOCKTON ON TEES BOROUGH COUNCIL,2015150681,"118,717.44"
Department for Work and Pensions,Jobcentre Plus,27/05/2010,EMPLOYMENT PROGRAMMES,HQ BALANCE SHEET ,CAREERS DEVELOPMENT GROUP LTD,2015465550,"118,173.04"
Department for Work and Pensions,Jobcentre Plus,13/05/2010,EMPLOYMENT PROGRAMMES,HQ BALANCE SHEET ,TNG NETWORK LTD,2015249612,"117,436.03"
Department for Work and Pensions,Housing Benefits,14/05/2010,Housing Benefit Admin,WWG HOUSING BENEFIT,BEDFORD BOROUGH COUNCIL,2015259746,"117,297.00"
Department for Work and Pensions,Housing Benefits,14/05/2010,Housing Benefit Admin,WWG HOUSING BENEFIT,FALKIRK DISTRICT COUNCIL,2015259847,"117,213.00"
Department for Work and Pensions,Housing Benefits,14/05/2010,Housing Benefit Admin,WWG HOUSING BENEFIT,NEWPORT CITY COUNCIL,2015259948,"117,056.00"
Department for Work and Pensions,Employment Programmes,04/05/2010,YOUNG PERSONS GUARANTEE (YPG) AND FUTURE JOBS FUND (FJF),EG EMPLOYMENT PROGRAMMES,BUCKINGHAMSHIRE COUNTY COUNCIL,2015128951,"117,000.00"
Department for Work and Pensions,Employment Programmes,12/05/2010,YOUNG PERSONS GUARANTEE (YPG) AND FUTURE JOBS FUND (FJF),EG EMPLOYMENT PROGRAMMES,DORSET COUNTY COUNCIL,2015190168,"117,000.00"
Department for Work and Pensions,Employment Programmes,17/05/2010,YOUNG PERSONS GUARANTEE (YPG) AND FUTURE JOBS FUND (FJF),EG EMPLOYMENT PROGRAMMES,NORTH AYRSHIRE COUNCIL,2015263984,"117,000.00"
Department for Work and Pensions,Employment Programmes,10/05/2010,YOUNG PERSONS GUARANTEE (YPG) AND FUTURE JOBS FUND (FJF),EG EMPLOYMENT PROGRAMMES,JARVIS EMPLOYMENT & TRAINING PROJECTS CIC,2015156393,"116,985.96"
Department for Work and Pensions,Employment Programmes,10/05/2010,YOUNG PERSONS GUARANTEE (YPG) AND FUTURE JOBS FUND (FJF),EG EMPLOYMENT PROGRAMMES,BLACK COUNTRY ACADEMY,2015154035,"116,945.28"
Department for Work and Pensions,Employment Programmes,14/05/2010,YOUNG PERSONS GUARANTEE (YPG) AND FUTURE JOBS FUND (FJF),EG EMPLOYMENT PROGRAMMES,TELFORD & WREKIN COUNCIL,2015257395,"115,800.00"
Department for Work and Pensions,Housing Benefits,14/05/2010,Housing Benefit Admin,WWG HOUSING BENEFIT,HALTON BOROUGH COUNCIL,2015259864,"115,761.00"
Department for Work and Pensions,Corporate,27/05/2010,COMPUTER SERVICES,SHARED SERVICES ,FUJITSU SERVICES,2015468783,"115,499.30"
Department for Work and Pensions,Jobcentre Plus,27/05/2010,EMPLOYMENT PROGRAMMES,HQ BALANCE SHEET ,SHAW TRUST LTD,2015478505,"115,374.36"
Department for Work and Pensions,Employment Programmes,20/05/2010,RESIDENTIAL TRAINING,EG EMPLOYMENT PROGRAMMES,DONCASTER DEAF TRUST,2015354682,"114,560.97"
Department for Work and Pensions,Housing Benefits,14/05/2010,Housing Benefit Admin,WWG HOUSING BENEFIT,ABERDEENSHIRE COUNCIL,2015259729,"114,236.00"
Department for Work and Pensions,Corporate,28/05/2010,ACCOMMODATION,GROUP FINANCE,TELEREAL TRILLIUM,2015524666,"114,227.65"
Department for Work and Pensions,Housing Benefits,14/05/2010,Housing Benefit Admin,WWG HOUSING BENEFIT,HASTINGS BOROUGH COUNCIL,2015259871,"113,573.00"
Department for Work and Pensions,Housing Benefits,14/05/2010,Housing Benefit Admin,WWG HOUSING BENEFIT,WARRINGTON BOROUGH COUNCIL,2015260076,"113,346.00"
Department for Work and Pensions,Jobcentre Plus,07/05/2010,EMPLOYMENT PROGRAMMES,HQ BALANCE SHEET ,KENNEDY SCOTT LTD,2015149066,"113,214.99"
Department for Work and Pensions,Housing Benefits,14/05/2010,Housing Benefit Admin,WWG HOUSING BENEFIT,THURROCK BOROUGH COUNCIL,2015260064,"112,753.00"
Department for Work and Pensions,Employment Programmes,18/05/2010,YOUNG PERSONS GUARANTEE (YPG) AND FUTURE JOBS FUND (FJF),EG EMPLOYMENT PROGRAMMES,DUNDEE CITY COUNCIL,2015270923,"112,557.30"
Department for Work and Pensions,Employment Programmes,05/05/2010,YOUNG PERSONS GUARANTEE (YPG) AND FUTURE JOBS FUND (FJF),EG EMPLOYMENT PROGRAMMES,SARINA RUSSO JOB ACCESS GB PTY LTD,2015136305,"112,444.00"
Department for Work and Pensions,Housing Benefits,14/05/2010,Housing Benefit Admin,WWG HOUSING BENEFIT,GLOUCESTER CITY COUNCIL,2015259857,"111,995.00"
Department for Work and Pensions,Corporate,18/05/2010,APPS DEV,CHANGE MANAGEMENT DIRECTORATE,HP ENTERPRISE SERVICES UK LTD,2015272023,"111,563.40"
Department for Work and Pensions,Housing Benefits,14/05/2010,Housing Benefit Admin,WWG HOUSING BENEFIT,EAST AYRSHIRE COUNCIL FINANCE DEPARTMENT,2015259825,"111,448.00"
Department for Work and Pensions,Corporate,04/05/2010,MISCELLANEOUS EXPENDITURE,EG,INSTITUTE FOR EMPLOYMENT STUDIES,2015130604,"111,430.00"
Department for Work and Pensions,Housing Benefits,14/05/2010,Housing Benefit Admin,WWG HOUSING BENEFIT,HARTLEPOOL BOROUGH COUNCIL,2015259870,"111,096.00"
Department for Work and Pensions,Employment Programmes,27/05/2010,WORKSTEP,EG EMPLOYMENT PROGRAMMES,THE PAPWORTH TRUST,2015479211,"110,472.00"
Department for Work and Pensions,Employment Programmes,11/05/2010,YOUNG PERSONS GUARANTEE (YPG) AND FUTURE JOBS FUND (FJF),EG EMPLOYMENT PROGRAMMES,LONDON BOROUGH OF LAMBETH LEMBETH FIRST,2015167417,"110,412.42"
Department for Work and Pensions,Housing Benefits,14/05/2010,Housing Benefit Admin,WWG HOUSING BENEFIT,HEREFORDSHIRE COUNCIL,2015259873,"110,319.00"
Department for Work and Pensions,Housing Benefits,14/05/2010,Housing Benefit Admin,WWG HOUSING BENEFIT,EAST LINDSEY DISTRICT COUNCIL,2015259832,"110,221.00"
Department for Work and Pensions,Corporate,27/05/2010,CAPITAL GRANTS,GROUP FINANCE,PARK ROAD COMMUNITY CREDIT UNION LTD,2015475938,"110,000.00"
Department for Work and Pensions,Jobcentre Plus,07/05/2010,EMPLOYMENT PROGRAMMES,HQ BALANCE SHEET ,YMCA TRAINING LTD,2015151078,"109,929.97"
Department for Work and Pensions,Employment Programmes,19/05/2010,JSP ESF DEL P COSTS,EG EMPLOYMENT PROGRAMMES,SEETEC BUSINESS TECHNOLOGY CENTRE LTD,2015344653,"109,865.26"
Department for Work and Pensions,Employment Programmes,05/05/2010,YOUNG PERSONS GUARANTEE (YPG) AND FUTURE JOBS FUND (FJF),EG EMPLOYMENT PROGRAMMES,SARINA RUSSO JOB ACCESS GB PTY LTD,2015136305,"109,778.00"
Department for Work and Pensions,Employment Programmes,19/05/2010,JSP ESF DEL P COSTS,EG EMPLOYMENT PROGRAMMES,WORKING LINKS,2015349794,"109,340.00"
Department for Work and Pensions,Housing Benefits,14/05/2010,Housing Benefit Admin,WWG HOUSING BENEFIT,CITY OF YORK COUNCIL,2015259797,"109,314.00"
Department for Work and Pensions,Employment Programmes,28/05/2010,YOUNG PERSONS GUARANTEE (YPG) AND FUTURE JOBS FUND (FJF),EG EMPLOYMENT PROGRAMMES,PEMBROKESHIRE COUNTY COUNCIL,2015554724,"109,200.00"
Department for Work and Pensions,Housing Benefits,14/05/2010,Housing Benefit Admin,WWG HOUSING BENEFIT,BRAINTREE DISTRICT COUNCIL,2015259761,"109,167.00"
Department for Work and Pensions,Housing Benefits,14/05/2010,Housing Benefit Admin,WWG HOUSING BENEFIT,BRIDGEND COUNTY BOROUGH COUNCIL,2015259764,"109,114.00"
Department for Work and Pensions,"Pension, Disability Carers Services",05/05/2010,COMPUTER SERVICES,PDCS CHANGE ,HMRC,2015135386,"108,942.00"
Department for Work and Pensions,Jobcentre Plus,13/05/2010,EMPLOYMENT PROGRAMMES,HQ BALANCE SHEET ,REED IN PARTNERSHIP,2015248877,"108,537.90"
Department for Work and Pensions,Employment Programmes,19/05/2010,JSP ESF DEL P COSTS,EG EMPLOYMENT PROGRAMMES,ESG HOLDINGS LTD,2015301233,"108,383.68"
Department for Work and Pensions,Housing Benefits,14/05/2010,Housing Benefit Admin,WWG HOUSING BENEFIT,WEST DUNBARTONSHIRE COUNCIL,2015260086,"108,268.00"
Department for Work and Pensions,Jobcentre Plus,17/05/2010,APPS DEV,TPM PROGRAMMES,HP ENTERPRISE SERVICES UK LTD,2015262632,"108,141.30"
Department for Work and Pensions,Corporate,13/05/2010,STAFF COSTS,Corporate and Support Services,RIGHT CORECARE,2015248888,"107,700.00"
Department for Work and Pensions,Housing Benefits,14/05/2010,Housing Benefit Admin,WWG HOUSING BENEFIT,LONDON BOROUGH OF RICHMOND UPON THAMES,2015259919,"107,300.00"
Department for Work and Pensions,Employment Programmes,05/05/2010,YOUNG PERSONS GUARANTEE (YPG) AND FUTURE JOBS FUND (FJF),EG EMPLOYMENT PROGRAMMES,TNG LTD,2015136476,"107,114.00"
Department for Work and Pensions,Corporate,27/05/2010,PRIME CHARGES,GROUP FINANCE,TELEREAL TRILLIUM,2015473155,"106,780.03"
Department for Work and Pensions,Employment Programmes,20/05/2010,YOUNG PERSONS GUARANTEE (YPG) AND FUTURE JOBS FUND (FJF),EG EMPLOYMENT PROGRAMMES,COMMUNITY TRANSPORT,2015354321,"106,600.00"
Department for Work and Pensions,Corporate,27/05/2010,ACCOMMODATION,GROUP FINANCE,TELEREAL TRILLIUM,2015473156,"106,249.90"
Department for Work and Pensions,Employment Programmes,10/05/2010,YOUNG PERSONS GUARANTEE (YPG) AND FUTURE JOBS FUND (FJF),EG EMPLOYMENT PROGRAMMES,THE GLOUCESTERSHIRE DEVELOPMENT AGENCY LTD,2015158060,"106,240.00"
Department for Work and Pensions,Corporate,25/05/2010,MANAGEMENT CONSULTANCY,CORPORATE IT,SIEMENS ENTERPRISE COMMUNICATIONS LTD,2015386787,"106,070.00"
Department for Work and Pensions,Employment Programmes,20/05/2010,YOUNG PERSONS GUARANTEE (YPG) AND FUTURE JOBS FUND (FJF),EG EMPLOYMENT PROGRAMMES,BRISTOL CITY COUNCIL,2015353931,"106,050.00"
Department for Work and Pensions,Jobcentre Plus,13/05/2010,EMPLOYMENT PROGRAMMES,HQ BALANCE SHEET ,ROYAL BRITISH LEGION INDUSTRIES LTD,2015248904,"106,004.63"
Department for Work and Pensions,Corporate,28/05/2010,TEMPORARY (TEMP) STAFF COSTS,GROUP FINANCE,CAPITA RESOURCING LIMITED,2015494616,"105,974.92"
Department for Work and Pensions,"Pension, Disability Carers Services",18/05/2010,APPS DEV,PDCS CHANGE ,HP ENTERPRISE SERVICES UK LTD,2015272023,"105,776.49"
Department for Work and Pensions,Corporate,14/05/2010,APPS DEV,CORPORATE IT,HP ENTERPRISE SERVICES UK LTD,2015255016,"105,482.85"
Department for Work and Pensions,Employment Programmes,05/05/2010,YOUNG PERSONS GUARANTEE (YPG) AND FUTURE JOBS FUND (FJF),EG EMPLOYMENT PROGRAMMES,TBG LEARNING LTD,2015136447,"105,111.00"
Department for Work and Pensions,Housing Benefits,14/05/2010,Housing Benefit Admin,WWG HOUSING BENEFIT,SCARBOROUGH BOROUGH COUNCIL,2015260003,"104,362.00"
Department for Work and Pensions,Employment Programmes,26/05/2010,ND 18-24 GATEWAY,EG EMPLOYMENT PROGRAMMES,TRIAGE CENTRAL LTD,2015457536,"103,954.00"
Department for Work and Pensions,Housing Benefits,14/05/2010,Housing Benefit Admin,WWG HOUSING BENEFIT,IPSWICH BOROUGH COUNCIL,2015259882,"103,741.00"
Department for Work and Pensions,Corporate,27/05/2010,PRIME CHARGES,GROUP FINANCE,TELEREAL TRILLIUM,2015473155,"103,501.58"
Department for Work and Pensions,Employment Programmes,19/05/2010,YOUNG PERSONS GUARANTEE (YPG) AND FUTURE JOBS FUND (FJF),EG EMPLOYMENT PROGRAMMES,BRADFORD METROPOLITAN DISTRICT COUNCIL,2015288201,"103,500.00"
Department for Work and Pensions,Corporate,14/05/2010,MANAGEMENT CONSULTANCY,Corporate and Support Services,DELOITTE LLP,2015252779,"103,387.90"
Department for Work and Pensions,Employment Programmes,21/05/2010,YOUNG PERSONS GUARANTEE (YPG) AND FUTURE JOBS FUND (FJF),EG EMPLOYMENT PROGRAMMES,MIDDLESBROUGH COUNCIL,2015366612,"103,200.00"
Department for Work and Pensions,Corporate,17/05/2010,APPS DEV,CHANGE MANAGEMENT DIRECTORATE,HP ENTERPRISE SERVICES UK LTD,2015262632,"103,154.26"
Department for Work and Pensions,Housing Benefits,14/05/2010,Housing Benefit Admin,WWG HOUSING BENEFIT,PRESTON BOROUGH COUNCIL,2015259980,"103,075.00"
Department for Work and Pensions,Housing Benefits,14/05/2010,Housing Benefit Admin,WWG HOUSING BENEFIT,BATH & NORTH EAST SOMERSET COUNCIL,2015259745,"102,809.00"
Department for Work and Pensions,Employment Programmes,05/05/2010,YOUNG PERSONS GUARANTEE (YPG) AND FUTURE JOBS FUND (FJF),EG EMPLOYMENT PROGRAMMES,TBG LEARNING LTD,2015136447,"102,667.00"
Department for Work and Pensions,Housing Benefits,14/05/2010,Housing Benefit Admin,WWG HOUSING BENEFIT,ARUN DISTRICT COUNCIL,2015259735,"102,168.00"
Department for Work and Pensions,Corporate,17/05/2010,TOTAL SUPPLIES & SERVICES,GROUP FINANCE,HM REVENUE & CUSTOMS,2002015,"102,123.94"
Department for Work and Pensions,Jobcentre Plus,07/05/2010,EMPLOYMENT PROGRAMMES,HQ BALANCE SHEET ,SCVO,2015150579,"102,005.21"
Department for Work and Pensions,Employment Programmes,18/05/2010,RESIDENTIAL TRAINING,EG EMPLOYMENT PROGRAMMES,QUEEN ALEXANDRA COLLEGE,2015276564,"101,926.66"
Department for Work and Pensions,Employment Programmes,19/05/2010,YOUNG PERSONS GUARANTEE (YPG) AND FUTURE JOBS FUND (FJF),EG EMPLOYMENT PROGRAMMES,DEVON COUNTY COUNCIL,2015297623,"101,850.00"
Department for Work and Pensions,Housing Benefits,14/05/2010,Housing Benefit Admin,WWG HOUSING BENEFIT,SWALE BOROUGH COUNCIL,2015260050,"101,716.00"
Department for Work and Pensions,Housing Benefits,14/05/2010,Housing Benefit Admin,WWG HOUSING BENEFIT,KINGS LYNN & WEST NORFOLK BOROUGH COUNCIL,2015259886,"101,560.00"
Department for Work and Pensions,Jobcentre Plus,07/05/2010,EMPLOYMENT PROGRAMMES,HQ BALANCE SHEET ,ASL RECRUITMENT LTD,2015146232,"101,100.00"
Department for Work and Pensions,"Pension, Disability Carers Services",14/05/2010,COMPUTER SERVICES,PDCS CHANGE ,ATOS ORIGIN IT SERVICES UK LTD,2015252105,"100,984.16"
Department for Work and Pensions,Corporate,27/05/2010,PRIME CHARGES,GROUP FINANCE,TELEREAL TRILLIUM,2015473155,"100,824.13"
Department for Work and Pensions,Employment Programmes,25/05/2010,YOUNG PERSONS GUARANTEE (YPG) AND FUTURE JOBS FUND (FJF),EG EMPLOYMENT PROGRAMMES,PETERBOROUGH CITY COUNCIL,2015384932,"100,500.00"
Department for Work and Pensions,Corporate,07/05/2010,COMPUTER SERVICES,GROUP FINANCE,COMPUTACENTER UK LTD,2015146660,"100,399.35"
Department for Work and Pensions,Employment Programmes,05/05/2010,YOUNG PERSONS GUARANTEE (YPG) AND FUTURE JOBS FUND (FJF),EG EMPLOYMENT PROGRAMMES,GROUNDWORK UK,2015135342,"100,311.00"
Department for Work and Pensions,"Pension, Disability Carers Services",11/05/2010,APPS DEV,PDCS CHANGE ,HP ENTERPRISE SERVICES UK LTD,2015164950,"100,189.87"
Department for Work and Pensions,Housing Benefits,14/05/2010,Housing Benefit Admin,WWG HOUSING BENEFIT,COLCHESTER BOROUGH COUNCIL,2015259799,"100,055.00"
Department for Work and Pensions,Employment Programmes,27/05/2010,YOUNG PERSONS GUARANTEE (YPG) AND FUTURE JOBS FUND (FJF),EG EMPLOYMENT PROGRAMMES,SUFFOLK COUNTY COUNCIL,2015478647,"100,021.44"
Department for Work and Pensions,Jobcentre Plus,07/05/2010,EMPLOYMENT PROGRAMMES,HQ BALANCE SHEET ,ARGYLL & BUTE COUNCIL,2015146221,"99,252.76"
Department for Work and Pensions,Employment Programmes,10/05/2010,NDDP,EG EMPLOYMENT PROGRAMMES,SEETEC,2015157842,"98,368.75"
Department for Work and Pensions,Jobcentre Plus,27/05/2010,EMPLOYMENT PROGRAMMES,HQ BALANCE SHEET ,SHAW TRUST LTD,2015478502,"97,714.53"
Department for Work and Pensions,Employment Programmes,13/05/2010,YOUNG PERSONS GUARANTEE (YPG) AND FUTURE JOBS FUND (FJF),EG EMPLOYMENT PROGRAMMES,WOLSELEY COMMUNITY ECONOMIC DEVELOPMENT TRUST,2015249797,"97,580.45"
Department for Work and Pensions,Corporate,19/05/2010,TOTAL SUPPLIES & SERVICES,GROUP FINANCE,ROYAL MAIL GROUP PLC,2015337001,"97,462.41"
Department for Work and Pensions,"Pension, Disability Carers Services",14/05/2010,MEDICAL SERVICES,PDCS CORE,ATOS ORIGIN IT SERVICES UK LTD,2015252105,"97,323.19"
Department for Work and Pensions,Jobcentre Plus,07/05/2010,EMPLOYMENT PROGRAMMES,HQ BALANCE SHEET ,BTCV ENTERPRISES LTD,2015146363,"97,316.24"
Department for Work and Pensions,Housing Benefits,14/05/2010,Housing Benefit Admin,WWG HOUSING BENEFIT,WAVENEY DISTRICT COUNCIL,2015260079,"97,072.00"
Department for Work and Pensions,Housing Benefits,14/05/2010,Housing Benefit Admin,WWG HOUSING BENEFIT,INVERCLYDE DISTRICT COUNCIL,2015259881,"96,959.00"
Department for Work and Pensions,Jobcentre Plus,20/05/2010,ACCOMMODATION,CHIEF OPERATING OFFICER,TELEREAL TRILLIUM,2015358062,"96,412.41"
Department for Work and Pensions,Housing Benefits,14/05/2010,Housing Benefit Admin,WWG HOUSING BENEFIT,ROYAL BOROUGH OF KINGSTON UPON THAMES,2015259994,"96,273.00"
Department for Work and Pensions,Housing Benefits,14/05/2010,Housing Benefit Admin,WWG HOUSING BENEFIT,SOUTH SOMERSET DISTRICT COUNCIL,2015260029,"95,932.00"
Department for Work and Pensions,Employment Programmes,10/05/2010,YOUNG PERSONS GUARANTEE (YPG) AND FUTURE JOBS FUND (FJF),EG EMPLOYMENT PROGRAMMES,ROYAL NATIONAL INSTITUTE FOR THE BLIND,2015157583,"95,785.60"
Department for Work and Pensions,Employment Programmes,10/05/2010,GRANTS IN AID TO EXECUTIVE NDPBs,EG EMPLOYMENT PROGRAMMES,THE HIGHLAND COUNCIL,2015158063,"95,480.00"
Department for Work and Pensions,Housing Benefits,14/05/2010,Housing Benefit Admin,WWG HOUSING BENEFIT,FLINTSHIRE COUNTY COUNCIL,2015259851,"94,926.00"
Department for Work and Pensions,Employment Programmes,19/05/2010,JSP ESF DEL P COSTS,EG EMPLOYMENT PROGRAMMES,REED IN PARTNERSHIP,2015336867,"94,736.84"
Department for Work and Pensions,Jobcentre Plus,07/05/2010,EMPLOYMENT PROGRAMMES,HQ BALANCE SHEET ,TNG INBIZ LTD,2015150876,"94,455.47"
Department for Work and Pensions,Jobcentre Plus,07/05/2010,EMPLOYMENT PROGRAMMES,HQ BALANCE SHEET ,MAY & STEPHENS LTD,2015149641,"94,350.00"
Department for Work and Pensions,Housing Benefits,14/05/2010,Housing Benefit Admin,WWG HOUSING BENEFIT,GREAT YARMOUTH COUNCIL,2015259860,"94,191.00"
Department for Work and Pensions,Employment Programmes,20/05/2010,YOUNG PERSONS GUARANTEE (YPG) AND FUTURE JOBS FUND (FJF),EG EMPLOYMENT PROGRAMMES,DUNDEE CITY COUNCIL,2015356455,"94,099.34"
Department for Work and Pensions,Housing Benefits,14/05/2010,Housing Benefit Admin,WWG HOUSING BENEFIT,BASINGSTOKE DISTRICT COUNCIL,2015259743,"93,841.00"
Department for Work and Pensions,Housing Benefits,14/05/2010,Housing Benefit Admin,WWG HOUSING BENEFIT,BURNLEY BOROUGH COUNCIL,2015259771,"93,465.00"
Department for Work and Pensions,Housing Benefits,14/05/2010,Housing Benefit Admin,WWG HOUSING BENEFIT,HUNTINGDON DISTRICT COUNCIL,2015259879,"93,448.00"
Department for Work and Pensions,Housing Benefits,14/05/2010,Housing Benefit Admin,WWG HOUSING BENEFIT,LANCASTER CITY COUNCIL,2015259890,"92,695.00"
Department for Work and Pensions,Housing Benefits,14/05/2010,Housing Benefit Admin,WWG HOUSING BENEFIT,PERTH & KINROSS COUNCIL,2015259974,"92,250.00"
Department for Work and Pensions,Employment Programmes,19/05/2010,YOUNG PERSONS GUARANTEE (YPG) AND FUTURE JOBS FUND (FJF),EG EMPLOYMENT PROGRAMMES,KIRKLEES COUNCIL,2015317793,"92,100.00"
Department for Work and Pensions,"Pension, Disability Carers Services",19/05/2010,APPS DEV,PDCS CHANGE ,HP ENTERPRISE SERVICES UK LTD,2015305779,"92,022.38"
Department for Work and Pensions,Housing Benefits,14/05/2010,Housing Benefit Admin,WWG HOUSING BENEFIT,OXFORD CITY COUNCIL,2015259971,"92,017.00"
Department for Work and Pensions,Housing Benefits,14/05/2010,Housing Benefit Admin,WWG HOUSING BENEFIT,DARLINGTON BOROUGH COUNCIL,2015259813,"90,659.00"
Department for Work and Pensions,Housing Benefits,14/05/2010,Housing Benefit Admin,WWG HOUSING BENEFIT,PENDLE BOROUGH COUNCIL,2015259973,"90,567.00"
Department for Work and Pensions,Corporate,21/05/2010,TEMPORARY (TEMP) STAFF COSTS,CORPORATE IT,CAPITA RESOURCING LIMITED,2015363519,"90,494.94"
Department for Work and Pensions,Corporate,10/05/2010,TEMPORARY (TEMP) STAFF COSTS,GROUP FINANCE,SANCTUARY GROUP,2015157822,"90,402.80"
Department for Work and Pensions,Housing Benefits,14/05/2010,Housing Benefit Admin,WWG HOUSING BENEFIT,EASTBOURNE BOROUGH COUNCIL,2015259838,"90,212.00"
Department for Work and Pensions,Housing Benefits,14/05/2010,Housing Benefit Admin,WWG HOUSING BENEFIT,NEW FOREST DISTRICT COUNCIL,2015259944,"89,980.00"
Department for Work and Pensions,Housing Benefits,14/05/2010,Housing Benefit Admin,WWG HOUSING BENEFIT,POOLE BOROUGH COUNCIL,2015259977,"89,656.00"
Department for Work and Pensions,Corporate,07/05/2010,STAFF COSTS,Corporate and Support Services,PENNANT INFORMATION SERVICES LTD,2015149990,"89,555.00"
Department for Work and Pensions,Employment Programmes,12/05/2010,EP GENERIC PROVIDER PAYMENTS,EG EMPLOYMENT PROGRAMMES,REED IN PARTNERSHIP,2015228246,"89,486.25"
Department for Work and Pensions,Corporate,05/05/2010,NON PRIME CHARGES,GROUP FINANCE,DCSF RM SHARED SERVICES,2015134024,"88,903.00"
Department for Work and Pensions,Housing Benefits,14/05/2010,Housing Benefit Admin,WWG HOUSING BENEFIT,NUNEATON BOROUGH COUNCIL,2015259967,"88,903.00"
Department for Work and Pensions,Housing Benefits,14/05/2010,Housing Benefit Admin,WWG HOUSING BENEFIT,SOUTH AYRSHIRE COUNCIL,2015260015,"88,629.00"
Department for Work and Pensions,Corporate,11/05/2010,TOTAL IT & EQUIPMENT COSTS,DIRECTGOV ,VIRGIN MEDIA LTD,2015171689,"88,000.00"
Department for Work and Pensions,Corporate,18/05/2010,APPS DEV,GROUP FINANCE,HP ENTERPRISE SERVICES UK LTD,2015272023,"87,484.30"
Department for Work and Pensions,European Social Fund,12/05/2010,MA ESF(D) LA NON-PREFUNDED EXPENDITURE,WWEG EUROPEAN SOCIAL FUND,LOCAL AUTHORITIES IN THE EAST MIDLANDS,5000000190,"87,430.00"
Department for Work and Pensions,Corporate,19/05/2010,INTERNATIONAL PROGRAMMES,WWG ,BRITISH COUNCIL,2015288211,"87,144.25"
Department for Work and Pensions,Housing Benefits,14/05/2010,Housing Benefit Admin,WWG HOUSING BENEFIT,CANTERBURY CITY COUNCIL,2015259777,"87,010.00"
Department for Work and Pensions,"Pension, Disability Carers Services",14/05/2010,COMPUTER SERVICES,PDCS CORE,ATOS ORIGIN IT SERVICES UK LTD,2015252105,"87,000.22"
Department for Work and Pensions,Employment Programmes,21/05/2010,YOUNG PERSONS GUARANTEE (YPG) AND FUTURE JOBS FUND (FJF),EG EMPLOYMENT PROGRAMMES,GREEN WORKS,2015365395,"87,000.00"
Department for Work and Pensions,Housing Benefits,14/05/2010,Housing Benefit Admin,WWG HOUSING BENEFIT,ASHFIELD DISTRICT COUNCIL,2015259736,"86,990.00"
Department for Work and Pensions,Jobcentre Plus,20/05/2010,EMPLOYMENT PROGRAMMES,HQ BALANCE SHEET ,ARMSTRONG LEARNING LTD,2015353777,"86,723.80"
Department for Work and Pensions,Housing Benefits,14/05/2010,Housing Benefit Admin,WWG HOUSING BENEFIT,WYCOMBE DISTRICT COUNCIL,2015260105,"86,428.00"
Department for Work and Pensions,Employment Programmes,05/05/2010,YOUNG PERSONS GUARANTEE (YPG) AND FUTURE JOBS FUND (FJF),EG EMPLOYMENT PROGRAMMES,A4E LTD,2015133650,"86,400.00"
Department for Work and Pensions,Jobcentre Plus,27/05/2010,EMPLOYMENT PROGRAMMES,HQ BALANCE SHEET ,ASL RECRUITMENT LTD,2015464197,"86,250.00"
Department for Work and Pensions,Employment Programmes,05/05/2010,YOUNG PERSONS GUARANTEE (YPG) AND FUTURE JOBS FUND (FJF),EG EMPLOYMENT PROGRAMMES,SARINA RUSSO JOB ACCESS GB PTY LTD,2015136305,"86,111.00"
Department for Work and Pensions,Corporate,19/05/2010,APPS DEV,CHANGE MANAGEMENT DIRECTORATE,HP ENTERPRISE SERVICES UK LTD,2015305779,"86,006.91"
Department for Work and Pensions,Corporate,11/05/2010,COMPUTER SERVICES,CORPORATE IT,DETICA LTD,2015162812,"85,938.50"
Department for Work and Pensions,Corporate,17/05/2010,TOTAL SUPPLIES & SERVICES,GROUP FINANCE,G3 WORLDWIDE MAIL UK LTD,2015262490,"85,625.59"
Department for Work and Pensions,Housing Benefits,14/05/2010,Housing Benefit Admin,WWG HOUSING BENEFIT,CHERWELL DISTRICT COUNCIL,2015259786,"85,571.00"
Department for Work and Pensions,Housing Benefits,14/05/2010,Housing Benefit Admin,WWG HOUSING BENEFIT,CHELMSFORD BOROUGH COUNCIL,2015259784,"85,486.00"
Department for Work and Pensions,Housing Benefits,14/05/2010,Housing Benefit Admin,WWG HOUSING BENEFIT,SCOTTISH BORDERS COUNCIL,2015260004,"85,328.00"
Department for Work and Pensions,Housing Benefits,14/05/2010,Housing Benefit Admin,WWG HOUSING BENEFIT,MAIDSTONE BOROUGH COUNCIL,2015259926,"85,164.00"
Department for Work and Pensions,Housing Benefits,14/05/2010,Housing Benefit Admin,WWG HOUSING BENEFIT,CHESTERFIELD BOROUGH COUNCIL,2015259789,"85,112.00"
Department for Work and Pensions,Housing Benefits,14/05/2010,Housing Benefit Admin,WWG HOUSING BENEFIT,MANSFIELD DISTRICT COUNCIL,2015259930,"84,753.00"
Department for Work and Pensions,Employment Programmes,04/05/2010,YOUNG PERSONS GUARANTEE (YPG) AND FUTURE JOBS FUND (FJF),EG EMPLOYMENT PROGRAMMES,LONDON BOROUGH OF HAMMERSMITH & FULHAM,2015130989,"84,500.00"
Department for Work and Pensions,Employment Programmes,24/05/2010,NDDP,EG EMPLOYMENT PROGRAMMES,THE WISE GROUP,2015373697,"84,415.36"
Department for Work and Pensions,Housing Benefits,14/05/2010,Housing Benefit Admin,WWG HOUSING BENEFIT,DACORUM BOROUGH COUNCIL,2015259812,"84,358.00"
Department for Work and Pensions,Housing Benefits,14/05/2010,Housing Benefit Admin,WWG HOUSING BENEFIT,TORFAEN BOROUGH COUNCIL,2015260067,"84,272.00"
Department for Work and Pensions,"Pension, Disability Carers Services",10/05/2010,CONTRACTED OUT OFFICE SERVICES,PDCS CORE,XEROX UK LIMITED,2015158288,"84,196.20"
Department for Work and Pensions,Housing Benefits,14/05/2010,Housing Benefit Admin,WWG HOUSING BENEFIT,WEST BERKSHIRE COUNCIL,2015260083,"83,927.00"
Department for Work and Pensions,Corporate,14/05/2010,MISCELLANEOUS EXPENDITURE,EG,RISK SOLUTIONS,2015256759,"83,899.00"
Department for Work and Pensions,Housing Benefits,14/05/2010,Housing Benefit Admin,WWG HOUSING BENEFIT,PEMBROKESHIRE COUNTY COUNCIL,2015259972,"83,843.00"
Department for Work and Pensions,Housing Benefits,14/05/2010,Housing Benefit Admin,WWG HOUSING BENEFIT,CRAWLEY BOROUGH COUNCIL,2015259810,"83,771.00"
Department for Work and Pensions,Employment Programmes,14/05/2010,DAF,EG EMPLOYMENT PROGRAMMES,EAST LONDON PATHFINDER,2015254663,"83,660.00"
Department for Work and Pensions,Employment Programmes,25/05/2010,DAF,EG EMPLOYMENT PROGRAMMES,DUNDEE PATHFINDER,2015379380,"83,660.00"
Department for Work and Pensions,Housing Benefits,14/05/2010,Housing Benefit Admin,WWG HOUSING BENEFIT,SHEPWAY DISTRICT COUNCIL,2015260010,"83,516.00"
Department for Work and Pensions,Employment Programmes,17/05/2010,YOUNG PERSONS GUARANTEE (YPG) AND FUTURE JOBS FUND (FJF),EG EMPLOYMENT PROGRAMMES,ENABLE,2015262315,"83,250.00"
Department for Work and Pensions,Employment Programmes,11/05/2010,YOUNG PERSONS GUARANTEE (YPG) AND FUTURE JOBS FUND (FJF),EG EMPLOYMENT PROGRAMMES,GATEWAY KNOWLEDGE ALLIANCE NORTH WEST KENT COLLEGE,2015164682,"83,200.00"
Department for Work and Pensions,Housing Benefits,14/05/2010,Housing Benefit Admin,WWG HOUSING BENEFIT,AYLESBURY VALE DISTRICT COUNCIL,2015259738,"82,876.00"
Department for Work and Pensions,Employment Programmes,21/05/2010,YOUNG PERSONS GUARANTEE (YPG) AND FUTURE JOBS FUND (FJF),EG EMPLOYMENT PROGRAMMES,SCOTTISH COUNCIL FOR VOLUNTARY ORGANISATIONS,2015367564,"82,800.00"
Department for Work and Pensions,Housing Benefits,14/05/2010,Housing Benefit Admin,WWG HOUSING BENEFIT,DOVER DISTRICT COUNCIL,2015259820,"82,732.00"
Department for Work and Pensions,Housing Benefits,14/05/2010,Housing Benefit Admin,WWG HOUSING BENEFIT,GEDLING BOROUGH COUNCIL,2015259856,"82,667.00"
Department for Work and Pensions,Jobcentre Plus,07/05/2010,EMPLOYMENT PROGRAMMES,HQ BALANCE SHEET ,TWL TRAINING LTD,2015150915,"82,399.36"
Department for Work and Pensions,Housing Benefits,14/05/2010,Housing Benefit Admin,WWG HOUSING BENEFIT,GUILDFORD BOROUGH COUNCIL,2015259861,"82,366.00"
Department for Work and Pensions,Jobcentre Plus,13/05/2010,EMPLOYMENT PROGRAMMES,HQ BALANCE SHEET ,A4E LTD,2015244567,"82,114.41"
Department for Work and Pensions,Housing Benefits,14/05/2010,Housing Benefit Admin,WWG HOUSING BENEFIT,WREXHAM COUNTY BOROUGH COUNCIL,2015260103,"81,833.00"
Department for Work and Pensions,Employment Programmes,26/05/2010,WORKSTEP,EG EMPLOYMENT PROGRAMMES,PURE INNOVATIONS,2015443382,"81,721.55"
Department for Work and Pensions,Jobcentre Plus,05/05/2010,NI & OGDs,CHIEF OPERATING OFFICER,PASSPORT OFFICE,2015136033,"81,641.89"
Department for Work and Pensions,Housing Benefits,14/05/2010,Housing Benefit Admin,WWG HOUSING BENEFIT,CONWY COUNTY BOROUGH COUNCIL,2015259801,"81,561.00"
Department for Work and Pensions,Housing Benefits,14/05/2010,Housing Benefit Admin,WWG HOUSING BENEFIT,WYRE FOREST DISTRICT COUNCIL,2015260107,"81,314.00"
Department for Work and Pensions,Employment Programmes,28/05/2010,ND 18-24 GATEWAY,EG EMPLOYMENT PROGRAMMES,MANAGEMENT INTRODUCTIONS LTD,2015530365,"81,299.01"
Department for Work and Pensions,Corporate,27/05/2010,STAFF COSTS,Corporate and Support Services,XOR LTD,2015479740,"81,273.28"
Department for Work and Pensions,Housing Benefits,14/05/2010,Housing Benefit Admin,WWG HOUSING BENEFIT,TEIGNBRIDGE DISTRICT COUNCIL,2015260057,"81,249.00"
Department for Work and Pensions,Housing Benefits,14/05/2010,Housing Benefit Admin,WWG HOUSING BENEFIT,BRECKLAND DISTRICT COUNCIL,2015259762,"81,244.00"
Department for Work and Pensions,Housing Benefits,14/05/2010,Housing Benefit Admin,WWG HOUSING BENEFIT,CHARNWOOD BOROUGH COUNCIL,2015259783,"80,708.00"
Department for Work and Pensions,Employment Programmes,25/05/2010,YOUNG PERSONS GUARANTEE (YPG) AND FUTURE JOBS FUND (FJF),EG EMPLOYMENT PROGRAMMES,RHYL CITY STRATEGY COMMUNITY INTEREST COMPANY,2015385605,"80,700.00"
Department for Work and Pensions,Corporate,26/05/2010,MANAGEMENT CONSULTANCY,PENSIONS CLIENT DIRECTORATE,HAYS EXECUTIVE,2015414388,"80,650.00"
Department for Work and Pensions,Jobcentre Plus,05/05/2010,ESTATES CHARGEABLE EXTRAS,TPM PROGRAMMES,TRILLIUM PRIME LTD,2015136491,"80,423.91"
Department for Work and Pensions,Corporate,19/05/2010,TOTAL SUPPLIES & SERVICES,WWG,ROYAL MAIL GROUP PLC,2015337001,"80,347.66"
Department for Work and Pensions,Employment Programmes,12/05/2010,YOUNG PERSONS GUARANTEE (YPG) AND FUTURE JOBS FUND (FJF),EG EMPLOYMENT PROGRAMMES,LUTON BOROUGH COUNCIL,2015214970,"80,240.00"
Department for Work and Pensions,Corporate,28/05/2010,TEMPORARY (TEMP) STAFF COSTS,GROUP FINANCE,INVERCLYDE COUNCIL,2015507954,"80,111.45"
Department for Work and Pensions,Housing Benefits,14/05/2010,Housing Benefit Admin,WWG HOUSING BENEFIT,HAVANT BOROUGH COUNCIL,2015259872,"80,018.00"
Department for Work and Pensions,Jobcentre Plus,27/05/2010,EMPLOYMENT PROGRAMMES,HQ BALANCE SHEET ,TOMORROWS PEOPLE LTD,2015479275,"79,682.34"
Department for Work and Pensions,Housing Benefits,14/05/2010,Housing Benefit Admin,WWG HOUSING BENEFIT,NEWCASTLE UNDER LYME BOROUGH COUNCIL,2015259947,"79,579.00"
Department for Work and Pensions,Employment Programmes,26/05/2010,YOUNG PERSONS GUARANTEE (YPG) AND FUTURE JOBS FUND (FJF),EG EMPLOYMENT PROGRAMMES,CAMDEN COUNCIL,2015401679,"79,474.25"
Department for Work and Pensions,Housing Benefits,14/05/2010,Housing Benefit Admin,WWG HOUSING BENEFIT,VALE OF GLAMORGAN COUNCIL,2015260072,"79,455.00"
Department for Work and Pensions,Employment Programmes,13/05/2010,YOUNG PERSONS GUARANTEE (YPG) AND FUTURE JOBS FUND (FJF),EG EMPLOYMENT PROGRAMMES,SANDWELL METROPOLITAN BOROUGH COUNCIL,2015249289,"79,300.00"
Department for Work and Pensions,Housing Benefits,14/05/2010,Housing Benefit Admin,WWG HOUSING BENEFIT,NORTH HERTFORDSHIRE DISTRICT COUNCIL,2015259954,"79,174.00"
Department for Work and Pensions,Housing Benefits,14/05/2010,Housing Benefit Admin,WWG HOUSING BENEFIT,HARROGATE BOROUGH COUNCIL,2015259868,"78,900.00"
Department for Work and Pensions,Jobcentre Plus,27/05/2010,EMPLOYMENT PROGRAMMES,HQ BALANCE SHEET ,CLAVERHOUSE GROUP,2015465641,"78,755.62"
Department for Work and Pensions,Jobcentre Plus,17/05/2010,ACCOMMODATION,CHIEF OPERATING OFFICER,GROUNDWORK STOKE ON TRENT,2015262537,"78,233.85"
Department for Work and Pensions,Housing Benefits,14/05/2010,Housing Benefit Admin,WWG HOUSING BENEFIT,AMBER VALLEY BOROUGH COUNCIL,2015259732,"78,207.00"
Department for Work and Pensions,Housing Benefits,14/05/2010,Housing Benefit Admin,WWG HOUSING BENEFIT,GWYNEDD COUNCIL,2015259862,"78,115.00"
Department for Work and Pensions,Housing Benefits,14/05/2010,Housing Benefit Admin,WWG HOUSING BENEFIT,HYNDBURN BOROUGH COUNCIL,2015259880,"78,005.00"
Department for Work and Pensions,Employment Programmes,10/05/2010,YOUNG PERSONS GUARANTEE (YPG) AND FUTURE JOBS FUND (FJF),EG EMPLOYMENT PROGRAMMES,EAST AYRSHIRE COUNCIL,2015155722,"78,000.00"
Department for Work and Pensions,Employment Programmes,10/05/2010,YOUNG PERSONS GUARANTEE (YPG) AND FUTURE JOBS FUND (FJF),EG EMPLOYMENT PROGRAMMES,GROUNDWORK WEST MIDLANDS,2015155963,"78,000.00"
Department for Work and Pensions,Employment Programmes,13/05/2010,YOUNG PERSONS GUARANTEE (YPG) AND FUTURE JOBS FUND (FJF),EG EMPLOYMENT PROGRAMMES,SOCIAL ENTERPRISE LONDON,2015249365,"78,000.00"
Department for Work and Pensions,Corporate,27/05/2010,PRIME CHARGES,GROUP FINANCE,TELEREAL TRILLIUM,2015473155,"77,478.06"
Department for Work and Pensions,Jobcentre Plus,13/05/2010,EMPLOYMENT PROGRAMMES,HQ BALANCE SHEET ,WORKING LINKS,2015249802,"77,469.87"
Department for Work and Pensions,Housing Benefits,14/05/2010,Housing Benefit Admin,WWG HOUSING BENEFIT,CHELTENHAM BOROUGH COUNCIL,2015259785,"77,454.00"
Department for Work and Pensions,Employment Programmes,26/05/2010,ND 18-24 GATEWAY,EG EMPLOYMENT PROGRAMMES,CLAVERHOUSE GROUP,2015401933,"77,058.00"
Department for Work and Pensions,Housing Benefits,14/05/2010,Housing Benefit Admin,WWG HOUSING BENEFIT,FENLAND DISTRICT COUNCIL,2015259849,"76,681.00"
Department for Work and Pensions,Housing Benefits,14/05/2010,Housing Benefit Admin,WWG HOUSING BENEFIT,EAST STAFFORDSHIRE DISTRICT COUNCIL,2015259837,"76,561.00"
Department for Work and Pensions,Housing Benefits,14/05/2010,Housing Benefit Admin,WWG HOUSING BENEFIT,WYRE BOROUGH COUNCIL,2015260106,"76,506.00"
Department for Work and Pensions,Housing Benefits,14/05/2010,Housing Benefit Admin,WWG HOUSING BENEFIT,HARLOW DISTRICT COUNCIL,2015259867,"76,367.00"
Department for Work and Pensions,Corporate,18/05/2010,NETWORK,CORPORATE IT,BT SYNTEGRA,2015268169,"76,219.31"
Department for Work and Pensions,Housing Benefits,14/05/2010,Housing Benefit Admin,WWG HOUSING BENEFIT,BASSETLAW DISTRICT COUNCIL,2015259744,"76,153.00"
Department for Work and Pensions,Employment Programmes,04/05/2010,YOUNG PERSONS GUARANTEE (YPG) AND FUTURE JOBS FUND (FJF),EG EMPLOYMENT PROGRAMMES,SHAW TRUST LTD,2015131693,"76,110.00"
Department for Work and Pensions,Jobcentre Plus,28/05/2010,ACCOMMODATION,CHIEF OPERATING OFFICER,TELEREAL TRILLIUM,2015524666,"76,108.61"
Department for Work and Pensions,Housing Benefits,14/05/2010,Housing Benefit Admin,WWG HOUSING BENEFIT,EREWASH BOROUGH COUNCIL,2015259845,"75,994.00"
Department for Work and Pensions,Housing Benefits,14/05/2010,Housing Benefit Admin,WWG HOUSING BENEFIT,LINCOLN CITY COUNCIL,2015259895,"75,622.00"
Department for Work and Pensions,Corporate,18/05/2010,NETWORK,CORPORATE IT,BT SYNTEGRA,2015268169,"75,539.57"
Department for Work and Pensions,Employment Programmes,04/05/2010,YOUNG PERSONS GUARANTEE (YPG) AND FUTURE JOBS FUND (FJF),EG EMPLOYMENT PROGRAMMES,WILTSHIRE COUNCIL,2015131977,"75,457.10"
Department for Work and Pensions,Jobcentre Plus,20/05/2010,EMPLOYMENT PROGRAMMES,HQ BALANCE SHEET ,PERTEMPS EMPLOYMENT ALLIANCE,2015359022,"75,392.62"
Department for Work and Pensions,Corporate,07/05/2010,EMPLOYMENT ZONES,WWG ,SURREY COUNTY COUNCIL,1004198,"75,000.00"
Department for Work and Pensions,Corporate,19/05/2010,EMPLOYMENT ZONES,WWG ,ESSEX COUNTY COUNCIL,1004212,"75,000.00"
Department for Work and Pensions,Corporate,19/05/2010,EMPLOYMENT ZONES,WWG ,REDCAR & CLEVELAND COUNCIL,1004213,"75,000.00"
Department for Work and Pensions,Corporate,24/05/2010,EMPLOYMENT ZONES,WWG ,BARNSLEY METROPOLITAN COUNCIL,1004221,"75,000.00"
Department for Work and Pensions,Corporate,24/05/2010,EMPLOYMENT ZONES,WWG ,LEICESTER CITY COUNCIL,1004222,"75,000.00"
Department for Work and Pensions,Corporate,24/05/2010,EMPLOYMENT ZONES,WWG ,MANCHESTER CITY COUNCIL,1004223,"75,000.00"
Department for Work and Pensions,Employment Programmes,20/05/2010,WORKSTEP,EG EMPLOYMENT PROGRAMMES,AZURE CHARITABLE ENTERPRISES,2015353809,"74,928.85"
Department for Work and Pensions,Employment Programmes,26/05/2010,YOUNG PERSONS GUARANTEE (YPG) AND FUTURE JOBS FUND (FJF),EG EMPLOYMENT PROGRAMMES,CARDIFF COUNTY COUNCIL,2015401687,"74,900.00"
Department for Work and Pensions,Housing Benefits,14/05/2010,Housing Benefit Admin,WWG HOUSING BENEFIT,WORTHING BOROUGH COUNCIL,2015260102,"74,846.00"
Department for Work and Pensions,Housing Benefits,14/05/2010,Housing Benefit Admin,WWG HOUSING BENEFIT,EXETER CITY COUNCIL,2015259846,"74,806.00"
Department for Work and Pensions,Employment Programmes,20/05/2010,YOUNG PERSONS GUARANTEE (YPG) AND FUTURE JOBS FUND (FJF),EG EMPLOYMENT PROGRAMMES,LANCASHIRE COUNTY COUNCIL,2015358060,"74,700.00"
Department for Work and Pensions,Jobcentre Plus,27/05/2010,EMPLOYMENT PROGRAMMES,HQ BALANCE SHEET ,STOKE ON TRENT COLLEGE,2015478639,"74,684.54"
Department for Work and Pensions,Housing Benefits,14/05/2010,Housing Benefit Admin,WWG HOUSING BENEFIT,ANGUS COUNCIL,2015259733,"74,533.00"
Department for Work and Pensions,Jobcentre Plus,07/05/2010,EMPLOYMENT PROGRAMMES,HQ BALANCE SHEET ,TNG BUSINESS SUPPORT,2015150873,"74,338.07"
Department for Work and Pensions,Employment Programmes,13/05/2010,ND 18-24 GATEWAY,EG EMPLOYMENT PROGRAMMES,TRIAGE CENTRAL LTD,2015249634,"74,282.00"
Department for Work and Pensions,Jobcentre Plus,14/05/2010,APPS DEV,ISD PROGRAMMES,HP ENTERPRISE SERVICES UK LTD,2015255016,"73,989.64"
Department for Work and Pensions,Employment Programmes,20/05/2010,YOUNG PERSONS GUARANTEE (YPG) AND FUTURE JOBS FUND (FJF),EG EMPLOYMENT PROGRAMMES,ENGLISH HERITAGE,2015356594,"73,900.00"
Department for Work and Pensions,Housing Benefits,14/05/2010,Housing Benefit Admin,WWG HOUSING BENEFIT,SOUTH KESTEVEN DISTRICT COUNCIL,2015260022,"73,880.00"
Department for Work and Pensions,Housing Benefits,14/05/2010,Housing Benefit Admin,WWG HOUSING BENEFIT,POWYS COUNTY COUNCIL,2015259979,"73,529.00"
Department for Work and Pensions,Jobcentre Plus,19/05/2010,COMPUTER SERVICES,CHIEF OPERATING OFFICER,BT SYNTEGRA,2015288232,"73,469.80"
Department for Work and Pensions,Corporate,18/05/2010,COMPUTER SERVICES,CORPORATE IT,BT SYNTEGRA,2015268169,"73,368.00"
Department for Work and Pensions,Housing Benefits,14/05/2010,Housing Benefit Admin,WWG HOUSING BENEFIT,SEDGEMOOR DISTRICT COUNCIL,2015260005,"73,043.00"
Department for Work and Pensions,Housing Benefits,14/05/2010,Housing Benefit Admin,WWG HOUSING BENEFIT,WARWICK DISTRICT COUNCIL,2015260077,"72,993.00"
Department for Work and Pensions,Corporate,18/05/2010,APPS DEV,Corporate and Support Services,HP ENTERPRISE SERVICES UK LTD,2015272023,"72,936.05"
Department for Work and Pensions,Jobcentre Plus,07/05/2010,EMPLOYMENT PROGRAMMES,HQ BALANCE SHEET ,PELCOMBE LTD,2015149988,"72,926.85"
Department for Work and Pensions,Housing Benefits,14/05/2010,Housing Benefit Admin,WWG HOUSING BENEFIT,TAUNTON DEANE BOROUGH COUNCIL,2015260056,"72,812.00"
Department for Work and Pensions,Housing Benefits,14/05/2010,Housing Benefit Admin,WWG HOUSING BENEFIT,WEST LANCASHIRE DISTRICT COUNCIL,2015260087,"72,811.00"
Department for Work and Pensions,Jobcentre Plus,05/05/2010,IS/IT,ISD,COMPUTACENTER UK LTD,2015133921,"72,659.66"
Department for Work and Pensions,Employment Programmes,26/05/2010,YOUNG PERSONS GUARANTEE (YPG) AND FUTURE JOBS FUND (FJF),EG EMPLOYMENT PROGRAMMES,HANTA ASSOCIATES LTD,2015414374,"72,450.00"
Department for Work and Pensions,Corporate,18/05/2010,COMPUTER SERVICES,CORPORATE IT,BT SYNTEGRA,2015268169,"72,161.73"
Department for Work and Pensions,Jobcentre Plus,27/05/2010,EMPLOYMENT PROGRAMMES,HQ BALANCE SHEET ,WORKING LINKS EMPLOYMENT LIMITED,2015479727,"71,943.92"
Department for Work and Pensions,Housing Benefits,14/05/2010,Housing Benefit Admin,WWG HOUSING BENEFIT,CAMBRIDGE CITY COUNCIL,2015259775,"71,908.00"
Department for Work and Pensions,Housing Benefits,14/05/2010,Housing Benefit Admin,WWG HOUSING BENEFIT,GRAVESHAM BOROUGH COUNCIL,2015259859,"71,733.00"
Department for Work and Pensions,Corporate,19/05/2010,COMPUTER SERVICES,CORPORATE IT,BT SYNTEGRA,2015288232,"71,693.72"
Department for Work and Pensions,Housing Benefits,14/05/2010,Housing Benefit Admin,WWG HOUSING BENEFIT,BROXTOWE BOROUGH COUNCIL,2015259770,"71,621.00"
Department for Work and Pensions,Housing Benefits,14/05/2010,Housing Benefit Admin,WWG HOUSING BENEFIT,CANNOCK CHASE DISTRICT COUNCIL,2015259776,"71,539.00"
Department for Work and Pensions,Employment Programmes,11/05/2010,YOUNG PERSONS GUARANTEE (YPG) AND FUTURE JOBS FUND (FJF),EG EMPLOYMENT PROGRAMMES,CORNWALL COUNCIL,2015162070,"71,500.00"
Department for Work and Pensions,Corporate,18/05/2010,APPS DEV,EG,HP ENTERPRISE SERVICES UK LTD,2015272023,"71,441.44"
Department for Work and Pensions,Jobcentre Plus,27/05/2010,EMPLOYMENT PROGRAMMES,HQ BALANCE SHEET ,SHROPSHIRE COUNTY TRAINING,2015478515,"71,299.40"
Department for Work and Pensions,Corporate,28/05/2010,STAFF COSTS,CHANGE MANAGEMENT DIRECTORATE,OLIVER WYMAN LEADERSHIP DEVELOPMENT LTD,2015533408,"71,299.00"
Department for Work and Pensions,Corporate,27/05/2010,PRIME CHARGES,GROUP FINANCE,TELEREAL TRILLIUM,2015473155,"71,125.72"
Department for Work and Pensions,Employment Programmes,18/05/2010,WORKSTEP,EG EMPLOYMENT PROGRAMMES,NOTTINGHAMSHIRE CC,2015275976,"71,044.35"
Department for Work and Pensions,Housing Benefits,14/05/2010,Housing Benefit Admin,WWG HOUSING BENEFIT,HERTSMERE BOROUGH COUNCIL,2015259874,"71,022.00"
Department for Work and Pensions,Housing Benefits,14/05/2010,Housing Benefit Admin,WWG HOUSING BENEFIT,DENBIGHSHIRE COUNTY COUNCIL,2015259816,"70,973.00"
Department for Work and Pensions,Jobcentre Plus,07/05/2010,EMPLOYMENT PROGRAMMES,HQ BALANCE SHEET ,MAZE8 SOLUTIONS LTD,2015149642,"70,950.00"
Department for Work and Pensions,Employment Programmes,21/05/2010,YOUNG PERSONS GUARANTEE (YPG) AND FUTURE JOBS FUND (FJF),EG EMPLOYMENT PROGRAMMES,SOLIHULL METROPOLITAN BOROUGH COUNCIL,2015367608,"70,650.00"
Department for Work and Pensions,Employment Programmes,12/05/2010,YOUNG PERSONS GUARANTEE (YPG) AND FUTURE JOBS FUND (FJF),EG EMPLOYMENT PROGRAMMES,SUFFOLK COUNTY COUNCIL,2015236316,"70,560.00"
Department for Work and Pensions,Employment Programmes,07/05/2010,YOUNG PERSONS GUARANTEE (YPG) AND FUTURE JOBS FUND (FJF),EG EMPLOYMENT PROGRAMMES,LONDON BOROUGH OF ISLINGTON,2015149318,"70,200.00"
Department for Work and Pensions,Corporate,18/05/2010,COMPUTER SERVICES,Corporate and Support Services,HP ENTERPRISE SERVICES UK LTD,2015272023,"69,851.40"
Department for Work and Pensions,Housing Benefits,14/05/2010,Housing Benefit Admin,WWG HOUSING BENEFIT,WELWYN HATFIELD DISTRICT COUNCIL,2015260082,"69,302.00"
Department for Work and Pensions,Employment Programmes,25/05/2010,WORKSTEP,EG EMPLOYMENT PROGRAMMES,FIFE COUNCIL,2015379797,"68,998.45"
Department for Work and Pensions,Housing Benefits,14/05/2010,Housing Benefit Admin,WWG HOUSING BENEFIT,REIGATE & BANSTEAD BOROUGH COUNCIL,2015259984,"68,821.00"
Department for Work and Pensions,Jobcentre Plus,26/05/2010,MANAGEMENT CONSULTANCY,TPM PROGRAMMES,CAPGEMINI UK PLC,2015401683,"68,670.50"
Department for Work and Pensions,Corporate,26/05/2010,MISCELLANEOUS EXPENDITURE,EG,PRICE WATERHOUSE COOPER,552354,"68,627.12"
Department for Work and Pensions,Employment Programmes,10/05/2010,NDDP,EG EMPLOYMENT PROGRAMMES,SENCIA LTD,2015157846,"68,526.25"
Department for Work and Pensions,Employment Programmes,18/05/2010,JOBCENTRE PLUS PATHWAYS TO WORK,EG EMPLOYMENT PROGRAMMES,NHS GREATER GLASGOW & CLYDE,2015275934,"68,515.00"
Department for Work and Pensions,Corporate,10/05/2010,TEMPORARY (TEMP) STAFF COSTS,CORPORATE IT,CAPITA RESOURCING LIMITED,2015154252,"68,407.20"
Department for Work and Pensions,Housing Benefits,14/05/2010,Housing Benefit Admin,WWG HOUSING BENEFIT,BLAENAU GWENT COUNTY BOROUGH COUNCIL,2015259751,"68,398.00"
Department for Work and Pensions,Housing Benefits,14/05/2010,Housing Benefit Admin,WWG HOUSING BENEFIT,ARGYLL & BUTE COUNCIL,2015259734,"68,314.00"
Department for Work and Pensions,Corporate,19/05/2010,STAFF COSTS,Corporate and Support Services,FLETCHER CONSULTANCY,2015302043,"68,310.00"
Department for Work and Pensions,Housing Benefits,14/05/2010,Housing Benefit Admin,WWG HOUSING BENEFIT,NORTH DEVON DISTRICT COUNCIL,2015259950,"68,168.00"
Department for Work and Pensions,Jobcentre Plus,07/05/2010,EMPLOYMENT PROGRAMMES,HQ BALANCE SHEET ,WORKING LINKS EMPLOYMENT LTD,2015151054,"68,001.80"
Department for Work and Pensions,Employment Programmes,11/05/2010,YOUNG PERSONS GUARANTEE (YPG) AND FUTURE JOBS FUND (FJF),EG EMPLOYMENT PROGRAMMES,LONDON BOROUGH OF ISLINGTON,2015167416,"67,600.00"
Department for Work and Pensions,Employment Programmes,14/05/2010,YOUNG PERSONS GUARANTEE (YPG) AND FUTURE JOBS FUND (FJF),EG EMPLOYMENT PROGRAMMES,COALFIELDS REGENERATION TRUST,2015252510,"67,583.04"
Department for Work and Pensions,Housing Benefits,14/05/2010,Housing Benefit Admin,WWG HOUSING BENEFIT,WINDSOR & MAIDENHEAD BOROUGH COUNCIL,2015260096,"67,397.00"
Department for Work and Pensions,Housing Benefits,14/05/2010,Housing Benefit Admin,WWG HOUSING BENEFIT,EAST DEVON DISTRICT COUNCIL,2015259827,"67,273.00"
Department for Work and Pensions,Housing Benefits,14/05/2010,Housing Benefit Admin,WWG HOUSING BENEFIT,NORTH NORFOLK DISTRICT COUNCIL,2015259958,"67,074.00"
Department for Work and Pensions,Housing Benefits,14/05/2010,Housing Benefit Admin,WWG HOUSING BENEFIT,BROXBOURNE BOROUGH COUNCIL,2015259769,"67,028.00"
Department for Work and Pensions,Housing Benefits,14/05/2010,Housing Benefit Admin,WWG HOUSING BENEFIT,STROUD DISTRICT COUNCIL,2015260046,"66,743.00"
Department for Work and Pensions,Jobcentre Plus,07/05/2010,EMPLOYMENT PROGRAMMES,HQ BALANCE SHEET ,TNG BUSINESS SUPPORT LTD,2015150874,"66,705.24"
Department for Work and Pensions,Jobcentre Plus,20/05/2010,EMPLOYMENT PROGRAMMES,HQ BALANCE SHEET ,SHAW TRUST LTD,2015359721,"66,666.50"
Department for Work and Pensions,Employment Programmes,19/05/2010,YOUNG PERSONS GUARANTEE (YPG) AND FUTURE JOBS FUND (FJF),EG EMPLOYMENT PROGRAMMES,BEDFORD BOROUGH COUNCIL,2015288139,"66,638.70"
Department for Work and Pensions,Employment Programmes,14/05/2010,YOUNG PERSONS GUARANTEE (YPG) AND FUTURE JOBS FUND (FJF),EG EMPLOYMENT PROGRAMMES,BLACKPOOL COUNCIL,2015252200,"66,600.00"
Department for Work and Pensions,Housing Benefits,14/05/2010,Housing Benefit Admin,WWG HOUSING BENEFIT,WORCESTER CITY COUNCIL,2015260101,"66,530.00"
Department for Work and Pensions,Housing Benefits,14/05/2010,Housing Benefit Admin,WWG HOUSING BENEFIT,ASHFORD BOROUGH COUNCIL,2015259737,"66,491.00"
Department for Work and Pensions,Housing Benefits,14/05/2010,Housing Benefit Admin,WWG HOUSING BENEFIT,MENDIP DISTRICT COUNCIL,2015259933,"66,396.00"
Department for Work and Pensions,Housing Benefits,14/05/2010,Housing Benefit Admin,WWG HOUSING BENEFIT,CITY OF CARLISLE DISTRICT COUNCIL,2015259794,"66,220.00"
Department for Work and Pensions,Employment Programmes,18/05/2010,YOUNG PERSONS GUARANTEE (YPG) AND FUTURE JOBS FUND (FJF),EG EMPLOYMENT PROGRAMMES,PINNACLE PEOPLE ENTERPRISES CIC,2015276486,"66,051.34"
Department for Work and Pensions,Employment Programmes,28/05/2010,YOUNG PERSONS GUARANTEE (YPG) AND FUTURE JOBS FUND (FJF),EG EMPLOYMENT PROGRAMMES,MIDLOTHIAN COUNCIL,2015530479,"65,750.00"
Department for Work and Pensions,Corporate,10/05/2010,NON PRIME CHARGES,SHARED SERVICES ,COMPANIES HOUSE,2015159904,"65,639.67"
Department for Work and Pensions,Housing Benefits,14/05/2010,Housing Benefit Admin,WWG HOUSING BENEFIT,EPPING FOREST DISTRICT COUNCIL,2015259843,"65,360.00"
Department for Work and Pensions,"Pension, Disability Carers Services",27/05/2010,COMPUTER SERVICES,PDCS CORE,ACCENTURE,2015464050,"65,280.08"
Department for Work and Pensions,Housing Benefits,14/05/2010,Housing Benefit Admin,WWG HOUSING BENEFIT,NEWARK DISTRICT COUNCIL,2015259945,"65,237.00"
Department for Work and Pensions,Corporate,19/05/2010,STAFF COSTS,Corporate and Support Services,OXFORD GROUP CONSULTING & TRAINING LTD,2015331736,"65,097.90"
Department for Work and Pensions,Housing Benefits,14/05/2010,Housing Benefit Admin,WWG HOUSING BENEFIT,STEVENAGE BOROUGH COUNCIL,2015260040,"65,002.00"
Department for Work and Pensions,Employment Programmes,11/05/2010,YOUNG PERSONS GUARANTEE (YPG) AND FUTURE JOBS FUND (FJF),EG EMPLOYMENT PROGRAMMES,CALDERDALE METROPOLITAN BOROUGH COUNCIL,2015161969,"65,000.00"
Department for Work and Pensions,Employment Programmes,12/05/2010,YOUNG PERSONS GUARANTEE (YPG) AND FUTURE JOBS FUND (FJF),EG EMPLOYMENT PROGRAMMES,KIRKLEES COUNCIL,2015209547,"65,000.00"
Department for Work and Pensions,Employment Programmes,26/05/2010,YOUNG PERSONS GUARANTEE (YPG) AND FUTURE JOBS FUND (FJF),EG EMPLOYMENT PROGRAMMES,NORTH LINCOLNSHIRE COUNCIL,2015440720,"65,000.00"
Department for Work and Pensions,Corporate,07/05/2010,ACCOMMODATION,PENSIONS CLIENT DIRECTORATE,TELEREAL TRILLIUM,2015149270,"64,934.64"
Department for Work and Pensions,Housing Benefits,14/05/2010,Housing Benefit Admin,WWG HOUSING BENEFIT,ALLERDALE DISTRICT COUNCIL,2015259731,"64,906.00"
Department for Work and Pensions,Corporate,21/05/2010,IS/IT,CORPORATE IT,COMPUTACENTER UK LTD,2015363564,"64,733.10"
Department for Work and Pensions,Housing Benefits,14/05/2010,Housing Benefit Admin,WWG HOUSING BENEFIT,CHICHESTER DISTRICT COUNCIL,2015259790,"64,727.00"
Department for Work and Pensions,Housing Benefits,14/05/2010,Housing Benefit Admin,WWG HOUSING BENEFIT,WEALDEN DISTRICT COUNCIL,2015260081,"64,682.00"
Department for Work and Pensions,Jobcentre Plus,20/05/2010,EMPLOYMENT PROGRAMMES,HQ BALANCE SHEET ,THE INTRAINING GROUP,2015360006,"64,574.32"
Department for Work and Pensions,Jobcentre Plus,07/05/2010,EMPLOYMENT PROGRAMMES,HQ BALANCE SHEET ,MIDDLETON MURRAY BUSINESS SOLUTIONS LTD,2015149668,"64,350.00"
Department for Work and Pensions,Housing Benefits,14/05/2010,Housing Benefit Admin,WWG HOUSING BENEFIT,EAST HERTFORDSHIRE DISTRICT COUNCIL,2015259831,"64,322.00"
Department for Work and Pensions,European Social Fund,06/05/2010,MA ESF(D) LA NON-PREFUNDED EXPENDITURE,WWEG EUROPEAN SOCIAL FUND,BIRMINGHAM CITY COUNCIL,5000000177,"64,294.00"
Department for Work and Pensions,"Pension, Disability Carers Services",17/05/2010,APPS DEV,PDCS CHANGE ,HP ENTERPRISE SERVICES UK LTD,2015262632,"64,070.20"
Department for Work and Pensions,Employment Programmes,26/05/2010,YOUNG PERSONS GUARANTEE (YPG) AND FUTURE JOBS FUND (FJF),EG EMPLOYMENT PROGRAMMES,HASTINGS BOROUGH COUNCIL,2015414385,"64,050.00"
Department for Work and Pensions,Employment Programmes,17/05/2010,YOUNG PERSONS GUARANTEE (YPG) AND FUTURE JOBS FUND (FJF),EG EMPLOYMENT PROGRAMMES,DUDLEY METROPOLITAN BOROUGH COUNCIL,2015262210,"63,900.00"
Department for Work and Pensions,Housing Benefits,14/05/2010,Housing Benefit Admin,WWG HOUSING BENEFIT,BOROUGH OF REDDITCH,2015259754,"63,669.00"
Department for Work and Pensions,Corporate,27/05/2010,ACCOMMODATION,SHARED SERVICES ,TELEREAL TRILLIUM,2015473158,"63,653.22"
Department for Work and Pensions,Jobcentre Plus,07/05/2010,EMPLOYMENT PROGRAMMES,HQ BALANCE SHEET ,EMPLACEMENT RECRUITMENT,2015148179,"63,600.00"
Department for Work and Pensions,Jobcentre Plus,07/05/2010,EMPLOYMENT PROGRAMMES,HQ BALANCE SHEET ,VT SOUTHERN CAREERS LTD COMMUNITY OUTREACH SERVICE,2015150964,"63,342.00"
Department for Work and Pensions,Corporate,21/05/2010,MARKETING,Corporate and Support Services,XEROX UK LIMITED 3W,2015367931,"63,290.50"
Department for Work and Pensions,Jobcentre Plus,20/05/2010,EMPLOYMENT PROGRAMMES,HQ BALANCE SHEET ,WORKING LINKS,2015360265,"63,273.92"
Department for Work and Pensions,Housing Benefits,14/05/2010,Housing Benefit Admin,WWG HOUSING BENEFIT,SOUTH NORFOLK DISTRICT COUNCIL,2015260025,"63,103.00"
Department for Work and Pensions,Employment Programmes,18/05/2010,WORKSTEP,EG EMPLOYMENT PROGRAMMES,GLOUCESTERSHIRE INDUSTRIAL SERVICES,2015271745,"62,945.15"
Department for Work and Pensions,Corporate,27/05/2010,MISCELLANEOUS EXPENDITURE,EG,CENTRE FOR SOCIAL INCLUSION,2015465576,"62,894.00"
Department for Work and Pensions,Housing Benefits,14/05/2010,Housing Benefit Admin,WWG HOUSING BENEFIT,ROTHER DISTRICT COUNCIL,2015259992,"62,881.00"
Department for Work and Pensions,Employment Programmes,24/05/2010,DAF,EG EMPLOYMENT PROGRAMMES,ACVO,2015369933,"62,500.00"
Department for Work and Pensions,Jobcentre Plus,20/05/2010,EMPLOYMENT PROGRAMMES,HQ BALANCE SHEET ,INGEUS UK LTD,2015357068,"62,412.87"
Department for Work and Pensions,Employment Programmes,06/05/2010,YOUNG PERSONS GUARANTEE (YPG) AND FUTURE JOBS FUND (FJF),EG EMPLOYMENT PROGRAMMES,HERTFORDSHIRE COUNTY COUNCIL,2015141184,"62,400.00"
Department for Work and Pensions,Corporate,21/05/2010,TEMPORARY (TEMP) STAFF COSTS,GROUP FINANCE,CAPITA RESOURCING LIMITED,2015363519,"62,364.07"
Department for Work and Pensions,Jobcentre Plus,07/05/2010,EMPLOYMENT PROGRAMMES,HQ BALANCE SHEET ,INBIZ TD,2015148535,"61,779.83"
Department for Work and Pensions,Housing Benefits,14/05/2010,Housing Benefit Admin,WWG HOUSING BENEFIT,RUGBY BOROUGH COUNCIL,2015259995,"61,670.00"
Department for Work and Pensions,Housing Benefits,14/05/2010,Housing Benefit Admin,WWG HOUSING BENEFIT,ST EDMUNDSBURY BOROUGH COUNCIL,2015260036,"61,554.00"
Department for Work and Pensions,Housing Benefits,14/05/2010,Housing Benefit Admin,WWG HOUSING BENEFIT,TONBRIDGE & MALLING DISTRICT COUNCIL,2015260065,"61,460.00"
Department for Work and Pensions,Housing Benefits,14/05/2010,Housing Benefit Admin,WWG HOUSING BENEFIT,EAST LOTHIAN DISTRICT COUNCIL,2015259833,"61,452.00"
Department for Work and Pensions,"Pension, Disability Carers Services",19/05/2010,TOTAL SUPPLIES & SERVICES,PDCS CORE,ROYAL MAIL GROUP PLC,2015337001,"61,356.95"
Department for Work and Pensions,Corporate,18/05/2010,APPS DEV,CORPORATE IT,HP ENTERPRISE SERVICES UK LTD,2015272023,"61,235.30"
Department for Work and Pensions,Housing Benefits,14/05/2010,Housing Benefit Admin,WWG HOUSING BENEFIT,SUFFOLK COASTAL DISTRICT COUNCIL,2015260047,"61,138.00"
Department for Work and Pensions,Employment Programmes,11/05/2010,YOUNG PERSONS GUARANTEE (YPG) AND FUTURE JOBS FUND (FJF),EG EMPLOYMENT PROGRAMMES,LONDON YOUTH,2015167422,"61,100.00"
Department for Work and Pensions,Employment Programmes,13/05/2010,YOUNG PERSONS GUARANTEE (YPG) AND FUTURE JOBS FUND (FJF),EG EMPLOYMENT PROGRAMMES,THE LONDON BOROUGH OF BROMLEY,2015249577,"61,100.00"
Department for Work and Pensions,Housing Benefits,14/05/2010,Housing Benefit Admin,WWG HOUSING BENEFIT,BARROW BOROUGH COUNCIL,2015259741,"61,035.00"
Department for Work and Pensions,Housing Benefits,14/05/2010,Housing Benefit Admin,WWG HOUSING BENEFIT,CASTLE POINT DISTRICT COUNCIL,2015259780,"60,724.00"
Department for Work and Pensions,Employment Programmes,07/05/2010,YOUNG PERSONS GUARANTEE (YPG) AND FUTURE JOBS FUND (FJF),EG EMPLOYMENT PROGRAMMES,WEST DUNBARTONSHIRE COUNCIL,2015151015,"60,480.00"
Department for Work and Pensions,Employment Programmes,25/05/2010,YOUNG PERSONS GUARANTEE (YPG) AND FUTURE JOBS FUND (FJF),EG EMPLOYMENT PROGRAMMES,CORNWALL YOUTH SERVICE,2015377470,"60,312.98"
Department for Work and Pensions,Employment Programmes,26/05/2010,NDDP,EG EMPLOYMENT PROGRAMMES,INGEUS UK LTD,2015415143,"60,184.76"
Department for Work and Pensions,Housing Benefits,14/05/2010,Housing Benefit Admin,WWG HOUSING BENEFIT,CHORLEY BOROUGH COUNCIL,2015259792,"60,170.00"
Department for Work and Pensions,Corporate,18/05/2010,COMPUTER SERVICES,Corporate and Support Services,HP ENTERPRISE SERVICES UK LTD,2015272023,"59,950.00"
Department for Work and Pensions,Employment Programmes,18/05/2010,GRANTS IN AID TO EXECUTIVE NDPBs,EG EMPLOYMENT PROGRAMMES,BIRMINGHAM CHAMBER OF COMMERCE,2015268108,"59,941.00"
Department for Work and Pensions,Housing Benefits,14/05/2010,Housing Benefit Admin,WWG HOUSING BENEFIT,LEWES DISTRICT COUNCIL,2015259893,"59,934.00"
Department for Work and Pensions,Housing Benefits,14/05/2010,Housing Benefit Admin,WWG HOUSING BENEFIT,WYCHAVON DISTRICT COUNCIL,2015260104,"59,905.00"
Department for Work and Pensions,Housing Benefits,14/05/2010,Housing Benefit Admin,WWG HOUSING BENEFIT,STRATFORD ON AVON DISTRICT COUNCIL,2015260045,"59,868.00"
Department for Work and Pensions,Housing Benefits,14/05/2010,Housing Benefit Admin,WWG HOUSING BENEFIT,GOSPORT BOROUGH COUNCIL,2015259858,"59,842.00"
Department for Work and Pensions,Corporate,27/05/2010,CAPITAL GRANTS,GROUP FINANCE,PENDLE COMMUNITY CREDIT UNION,2015475962,"59,809.00"
Department for Work and Pensions,Employment Programmes,17/05/2010,YOUNG PERSONS GUARANTEE (YPG) AND FUTURE JOBS FUND (FJF),EG EMPLOYMENT PROGRAMMES,CITY OF EDINBURGH COUNCIL,2015260818,"59,550.00"
Department for Work and Pensions,Corporate,14/05/2010,PRINTING STATIONERY IT & CONSUMABLES,Corporate and Support Services,COI CENTRAL OFFICE OF INFO,2015252512,"59,484.18"
Department for Work and Pensions,Jobcentre Plus,13/05/2010,EMPLOYMENT PROGRAMMES,HQ BALANCE SHEET ,WORKING LINKS,2015249805,"59,323.44"
Department for Work and Pensions,Employment Programmes,06/05/2010,YOUNG PERSONS GUARANTEE (YPG) AND FUTURE JOBS FUND (FJF),EG EMPLOYMENT PROGRAMMES,SOUTHWARK COUNCIL,2015143344,"59,100.00"
Department for Work and Pensions,Corporate,20/05/2010,NETWORK,CORPORATE IT,BT SYNTEGRA,2015353943,"59,073.60"
Department for Work and Pensions,Housing Benefits,14/05/2010,Housing Benefit Admin,WWG HOUSING BENEFIT,ELMBRIDGE BOROUGH COUNCIL,2015259842,"59,007.00"
Department for Work and Pensions,Employment Programmes,19/05/2010,RESIDENTIAL TRAINING,EG EMPLOYMENT PROGRAMMES,RNIB,2015336990,"59,000.00"
Department for Work and Pensions,Corporate,18/05/2010,APPS DEV,SHARED SERVICES ,HP ENTERPRISE SERVICES UK LTD,2015272023,"58,926.03"
Department for Work and Pensions,Employment Programmes,11/05/2010,YOUNG PERSONS GUARANTEE (YPG) AND FUTURE JOBS FUND (FJF),EG EMPLOYMENT PROGRAMMES,PINNACLE PEOPLE ENTERPRISES CIC,2015169204,"58,750.00"
Department for Work and Pensions,Jobcentre Plus,27/05/2010,EMPLOYMENT PROGRAMMES,HQ BALANCE SHEET ,PERTEMPS EMPLOYMENT ALLIANCE,2015475965,"58,695.32"
Department for Work and Pensions,Housing Benefits,14/05/2010,Housing Benefit Admin,WWG HOUSING BENEFIT,RUSHMOOR BOROUGH COUNCIL,2015259998,"58,664.00"
Department for Work and Pensions,Housing Benefits,14/05/2010,Housing Benefit Admin,WWG HOUSING BENEFIT,TUNBRIDGE WELLS BOROUGH COUNCIL,2015260070,"58,506.00"
Department for Work and Pensions,Corporate,18/05/2010,COMPUTER SERVICES,CORPORATE IT,BT SYNTEGRA,2015268169,"58,361.50"
Department for Work and Pensions,Housing Benefits,14/05/2010,Housing Benefit Admin,WWG HOUSING BENEFIT,EASTLEIGH BOROUGH COUNCIL,2015259839,"58,236.00"
Department for Work and Pensions,Housing Benefits,14/05/2010,Housing Benefit Admin,WWG HOUSING BENEFIT,VALE OF WHITE HORSE DISTRICT COUNCIL,2015260073,"58,212.00"
Department for Work and Pensions,Corporate,14/05/2010,IS/IT,CHANGE MANAGEMENT DIRECTORATE,COMPUTACENTER UK LTD,2015252523,"58,061.43"
Department for Work and Pensions,Housing Benefits,14/05/2010,Housing Benefit Admin,WWG HOUSING BENEFIT,WATFORD BOROUGH COUNCIL,2015260078,"57,844.00"
Department for Work and Pensions,Jobcentre Plus,27/05/2010,EMPLOYMENT PROGRAMMES,HQ BALANCE SHEET ,TROBIUS LTD,2015479291,"57,773.02"
Department for Work and Pensions,Jobcentre Plus,13/05/2010,EMPLOYMENT PROGRAMMES,HQ BALANCE SHEET ,WORKING LINKS,2015249803,"57,686.86"
Department for Work and Pensions,Housing Benefits,14/05/2010,Housing Benefit Admin,WWG HOUSING BENEFIT,BOROUGH OF WELLINGBOROUGH,2015259756,"57,635.00"
Department for Work and Pensions,Employment Programmes,19/05/2010,JSP ESF DEL P COSTS,EG EMPLOYMENT PROGRAMMES,THE INTRAINING GROUP,2015347824,"57,210.53"
Department for Work and Pensions,Housing Benefits,14/05/2010,Housing Benefit Admin,WWG HOUSING BENEFIT,STAFFORD BOROUGH COUNCIL,2015260038,"57,207.00"
Department for Work and Pensions,Employment Programmes,14/05/2010,YOUNG PERSONS GUARANTEE (YPG) AND FUTURE JOBS FUND (FJF),EG EMPLOYMENT PROGRAMMES,SANDWELL METROPOLITAN BOROUGH COUNCIL,2015257148,"57,200.00"
Department for Work and Pensions,Housing Benefits,14/05/2010,Housing Benefit Admin,WWG HOUSING BENEFIT,TEST VALLEY BOROUGH COUNCIL,2015260059,"57,077.00"
Department for Work and Pensions,Housing Benefits,14/05/2010,Housing Benefit Admin,WWG HOUSING BENEFIT,HIGH PEAK BOROUGH COUNCIL,2015259875,"57,059.00"
Department for Work and Pensions,Housing Benefits,14/05/2010,Housing Benefit Admin,WWG HOUSING BENEFIT,ST ALBANS DISTRICT COUNCIL,2015260035,"56,955.00"
Department for Work and Pensions,Jobcentre Plus,20/05/2010,EMPLOYMENT PROGRAMMES,HQ BALANCE SHEET ,CAREERS DEVELOPMENT GROUP LTD,2015354240,"56,953.48"
Department for Work and Pensions,Housing Benefits,14/05/2010,Housing Benefit Admin,WWG HOUSING BENEFIT,SOUTH CAMBRIDGESHIRE DISTRICT COUNCIL,2015260017,"56,846.00"
Department for Work and Pensions,Employment Programmes,04/05/2010,YOUNG PERSONS GUARANTEE (YPG) AND FUTURE JOBS FUND (FJF),EG EMPLOYMENT PROGRAMMES,ST PAULS COMMUNITY DEVELOPMENT TRUST,2015131738,"56,832.80"
Department for Work and Pensions,Employment Programmes,21/05/2010,YOUNG PERSONS GUARANTEE (YPG) AND FUTURE JOBS FUND (FJF),EG EMPLOYMENT PROGRAMMES,SCOTTISH WILDLIFE TRUST,2015367565,"56,463.29"
Department for Work and Pensions,Housing Benefits,14/05/2010,Housing Benefit Admin,WWG HOUSING BENEFIT,WEST LINDSEY DISTRICT COUNCIL,2015260088,"56,438.00"
Department for Work and Pensions,Housing Benefits,14/05/2010,Housing Benefit Admin,WWG HOUSING BENEFIT,MERTHYR TYDFIL BOROUGH COUNCIL,2015259934,"56,348.00"
Department for Work and Pensions,Housing Benefits,14/05/2010,Housing Benefit Admin,WWG HOUSING BENEFIT,NORTH EAST DERBYSHIRE DISTRICT COUNCIL,2015259952,"56,274.00"
Department for Work and Pensions,Housing Benefits,14/05/2010,Housing Benefit Admin,WWG HOUSING BENEFIT,SEVENOAKS DISTRICT COUNCIL,2015260008,"56,137.00"
Department for Work and Pensions,Corporate,04/05/2010,CAPITAL GRANTS,GROUP FINANCE,HARTLEPOOL CREDIT UNION LTD,2015130558,"56,129.00"
Department for Work and Pensions,Corporate,21/05/2010,ACCOMMODATION,GROUP FINANCE,TELEREAL TRILLIUM,2015366246,"56,098.42"
Department for Work and Pensions,Jobcentre Plus,07/05/2010,EMPLOYMENT PROGRAMMES,HQ BALANCE SHEET ,CHARTER TRAINING,2015146617,"55,984.70"
Department for Work and Pensions,Housing Benefits,14/05/2010,Housing Benefit Admin,WWG HOUSING BENEFIT,WAVERLEY BOROUGH COUNCIL,2015260080,"55,782.00"
Department for Work and Pensions,Housing Benefits,14/05/2010,Housing Benefit Admin,WWG HOUSING BENEFIT,BRACKNELL FOREST BOROUGH COUNCIL,2015259759,"55,711.00"
Department for Work and Pensions,Housing Benefits,14/05/2010,Housing Benefit Admin,WWG HOUSING BENEFIT,SOUTH RIBBLE BOROUGH COUNCIL C,2015260028,"55,695.00"
Department for Work and Pensions,Housing Benefits,14/05/2010,Housing Benefit Admin,WWG HOUSING BENEFIT,DARTFORD BOROUGH COUNCIL,2015259814,"55,441.00"
Department for Work and Pensions,Employment Programmes,11/05/2010,YOUNG PERSONS GUARANTEE (YPG) AND FUTURE JOBS FUND (FJF),EG EMPLOYMENT PROGRAMMES,HEREFORDSHIRE COUNCIL,2015164931,"55,440.00"
Department for Work and Pensions,Housing Benefits,14/05/2010,Housing Benefit Admin,WWG HOUSING BENEFIT,KETTERING BOROUGH COUNCIL,2015259885,"55,145.00"
Department for Work and Pensions,Employment Programmes,28/05/2010,YOUNG PERSONS GUARANTEE (YPG) AND FUTURE JOBS FUND (FJF),EG EMPLOYMENT PROGRAMMES,NORTH AYRSHIRE COUNCIL,2015533215,"55,050.00"
Department for Work and Pensions,"Pension, Disability Carers Services",14/05/2010,CONTRACTED OUT OFFICE SERVICES,PDCS CORE,CAPITA BUSINESS SERVICES LTD,2015252448,"55,000.00"
Department for Work and Pensions,Corporate,28/05/2010,INTERNATIONAL PROGRAMMES,WWG ,THE FULBRIGHT COMMISSION,2015549691,"55,000.00"
Department for Work and Pensions,Housing Benefits,14/05/2010,Housing Benefit Admin,WWG HOUSING BENEFIT,WEST DORSET DISTRICT COUNCIL,2015260085,"54,740.00"
Department for Work and Pensions,Housing Benefits,14/05/2010,Housing Benefit Admin,WWG HOUSING BENEFIT,EAST HAMPSHIRE DISTRICT COUNCIL,2015259830,"54,713.00"
Department for Work and Pensions,Jobcentre Plus,07/05/2010,EMPLOYMENT PROGRAMMES,HQ BALANCE SHEET ,MAXIMUS EMPLOYMENT & TRAINING LTD,2015149639,"54,669.64"
Department for Work and Pensions,Jobcentre Plus,07/05/2010,EMPLOYMENT PROGRAMMES,HQ BALANCE SHEET ,NORFOLK & WAVENEY ENTERPRISE SERVICES,2015149813,"54,556.30"
Department for Work and Pensions,Housing Benefits,14/05/2010,Housing Benefit Admin,WWG HOUSING BENEFIT,BOLSOVER DISTRICT COUNCIL,2015259752,"54,500.00"
Department for Work and Pensions,Housing Benefits,14/05/2010,Housing Benefit Admin,WWG HOUSING BENEFIT,MID SUSSEX DISTRICT COUNCIL,2015259937,"54,102.00"
Department for Work and Pensions,Jobcentre Plus,27/05/2010,EMPLOYMENT PROGRAMMES,HQ BALANCE SHEET ,BTCV ENTERPRISES LTD,2015464575,"53,951.81"
Department for Work and Pensions,Housing Benefits,14/05/2010,Housing Benefit Admin,WWG HOUSING BENEFIT,MIDLOTHIAN COUNCIL,2015259939,"53,758.00"
Department for Work and Pensions,Corporate,05/05/2010,INTERNATIONAL PROGRAMMES,WWG ,THE ASSOCIATION OF COMMONWEALTH UNIVERSITIES,2015136450,"53,750.00"
Department for Work and Pensions,Housing Benefits,14/05/2010,Housing Benefit Admin,WWG HOUSING BENEFIT,EAST DUNBARTONSHIRE COUNCIL,2015259829,"53,727.00"
Department for Work and Pensions,Housing Benefits,14/05/2010,Housing Benefit Admin,WWG HOUSING BENEFIT,BROADLAND DISTRICT COUNCIL,2015259767,"53,722.00"
Department for Work and Pensions,Housing Benefits,14/05/2010,Housing Benefit Admin,WWG HOUSING BENEFIT,WEYMOUTH & PORTLAND BOROUGH COUNCIL,2015260092,"53,659.00"
Department for Work and Pensions,Housing Benefits,14/05/2010,Housing Benefit Admin,WWG HOUSING BENEFIT,NORTH KESTEVEN DISTRICT COUNCIL,2015259955,"53,153.00"
Department for Work and Pensions,Housing Benefits,14/05/2010,Housing Benefit Admin,WWG HOUSING BENEFIT,HINCKLEY & BOSWORTH BOROUGH COUNCIL,2015259877,"52,966.00"
Department for Work and Pensions,Jobcentre Plus,27/05/2010,EMPLOYMENT PROGRAMMES,HQ BALANCE SHEET ,BTCV,2015464573,"52,846.76"
Department for Work and Pensions,Employment Programmes,13/05/2010,YOUNG PERSONS GUARANTEE (YPG) AND FUTURE JOBS FUND (FJF),EG EMPLOYMENT PROGRAMMES,JARVIS EMPLOYMENT & TRAINING PROJECTS CIC,2015247268,"52,792.96"
Department for Work and Pensions,Corporate,28/05/2010,TEMPORARY (TEMP) STAFF COSTS,CORPORATE IT,CAPITA RESOURCING LIMITED,2015494616,"52,644.49"
Department for Work and Pensions,Employment Programmes,25/05/2010,ACCESS TO WORK,EG EMPLOYMENT PROGRAMMES,KEY 4 LEARNING LTD T/A A2A,2015382305,"52,564.48"
Department for Work and Pensions,Employment Programmes,25/05/2010,WORKSTEP,EG EMPLOYMENT PROGRAMMES,LEICESTERSHIRE COUNTY COUNCIL,2015383020,"52,526.60"
Department for Work and Pensions,Employment Programmes,20/05/2010,WORK PREPARATION,EG EMPLOYMENT PROGRAMMES,THE OAKLEA TRUST,2015360013,"52,518.66"
Department for Work and Pensions,Housing Benefits,14/05/2010,Housing Benefit Admin,WWG HOUSING BENEFIT,SOUTH HOLLAND DISTRICT COUNCIL,2015260021,"52,349.00"
Department for Work and Pensions,Jobcentre Plus,13/05/2010,EMPLOYMENT PROGRAMMES,HQ BALANCE SHEET ,ASL RECRUITMENT LTD,2015244670,"52,200.00"
Department for Work and Pensions,Housing Benefits,14/05/2010,Housing Benefit Admin,WWG HOUSING BENEFIT,FOREST OF DEAN DISTRICT COUNCIL,2015259853,"52,018.00"
Department for Work and Pensions,Corporate,27/05/2010,ACCOMMODATION,GROUP FINANCE,TELEREAL TRILLIUM,2015473158,"51,951.36"
Department for Work and Pensions,Employment Programmes,11/05/2010,YOUNG PERSONS GUARANTEE (YPG) AND FUTURE JOBS FUND (FJF),EG EMPLOYMENT PROGRAMMES,LONDON EAST CONNEXIONS PARTNERSHIP LTD,2015167421,"51,939.68"
Department for Work and Pensions,Employment Programmes,13/05/2010,YOUNG PERSONS GUARANTEE (YPG) AND FUTURE JOBS FUND (FJF),EG EMPLOYMENT PROGRAMMES,ST PAULS COMMUNITY DEVELOPMENT TRUST,2015249403,"51,848.00"
Department for Work and Pensions,Housing Benefits,14/05/2010,Housing Benefit Admin,WWG HOUSING BENEFIT,SOUTH STAFFORDSHIRE DISTRICT COUNCIL,2015260030,"51,783.00"
Department for Work and Pensions,Corporate,17/05/2010,TEMPORARY (TEMP) STAFF COSTS,DIRECTGOV ,AQUENT,2015260430,"51,645.54"
Department for Work and Pensions,Housing Benefits,14/05/2010,Housing Benefit Admin,WWG HOUSING BENEFIT,SPELTHORNE BOROUGH COUNCIL,2015260034,"51,607.00"
Department for Work and Pensions,Housing Benefits,14/05/2010,Housing Benefit Admin,WWG HOUSING BENEFIT,HORSHAM DISTRICT COUNCIL,2015259878,"51,603.00"
Department for Work and Pensions,Jobcentre Plus,07/05/2010,EMPLOYMENT PROGRAMMES,HQ BALANCE SHEET ,STOKE ON TRENT CITY COUNCIL,2015150684,"51,549.55"
Department for Work and Pensions,Housing Benefits,14/05/2010,Housing Benefit Admin,WWG HOUSING BENEFIT,CORBY BOROUGH COUNCIL,2015259803,"51,537.00"
Department for Work and Pensions,Jobcentre Plus,20/05/2010,EMPLOYMENT PROGRAMMES,HQ BALANCE SHEET ,TRIAGE CENTRAL LTD,2015360075,"51,453.02"
Department for Work and Pensions,Housing Benefits,14/05/2010,Housing Benefit Admin,WWG HOUSING BENEFIT,WEST OXFORDSHIRE DISTRICT COUNCIL,2015260090,"51,254.00"
Department for Work and Pensions,Jobcentre Plus,14/05/2010,APPS DEV,ISD,HP ENTERPRISE SERVICES UK LTD,2015255016,"51,242.30"
Department for Work and Pensions,Employment Programmes,19/05/2010,YOUNG PERSONS GUARANTEE (YPG) AND FUTURE JOBS FUND (FJF),EG EMPLOYMENT PROGRAMMES,PRE SCHOOL LEARNING ALLIANCE,2015334114,"51,200.00"
Department for Work and Pensions,Employment Programmes,06/05/2010,YOUNG PERSONS GUARANTEE (YPG) AND FUTURE JOBS FUND (FJF),EG EMPLOYMENT PROGRAMMES,URBAN FUTURES LONDON LTD,2015143583,"51,071.57"
Department for Work and Pensions,Housing Benefits,14/05/2010,Housing Benefit Admin,WWG HOUSING BENEFIT,SOUTH OXFORDSHIRE DISTRICT COUNCIL,2015260027,"51,012.00"
Department for Work and Pensions,Employment Programmes,26/05/2010,YOUNG PERSONS GUARANTEE (YPG) AND FUTURE JOBS FUND (FJF),EG EMPLOYMENT PROGRAMMES,ADCRIS CIC,2015395032,"50,969.40"
Department for Work and Pensions,Employment Programmes,19/05/2010,YOUNG PERSONS GUARANTEE (YPG) AND FUTURE JOBS FUND (FJF),EG EMPLOYMENT PROGRAMMES,THE GLOUCESTERSHIRE DEVELOPMENT AGENCY LTD,2015347822,"50,805.36"
Department for Work and Pensions,Housing Benefits,14/05/2010,Housing Benefit Admin,WWG HOUSING BENEFIT,NORTH WEST LEICESTER DISTRICT COUNCIL,2015259962,"50,744.00"
Department for Work and Pensions,Employment Programmes,13/05/2010,ACCESS TO WORK,EG EMPLOYMENT PROGRAMMES,DIVERSE COMMUNICATIONS LTD,2015245473,"50,738.00"
Department for Work and Pensions,Jobcentre Plus,07/05/2010,EMPLOYMENT PROGRAMMES,HQ BALANCE SHEET ,LIFE SKILLS CENTRAL LTD,2015149287,"50,538.65"
Department for Work and Pensions,Employment Programmes,18/05/2010,YOUNG PERSONS GUARANTEE (YPG) AND FUTURE JOBS FUND (FJF),EG EMPLOYMENT PROGRAMMES,RENFREWSHIRE COUNCIL,2015277120,"50,524.34"
Department for Work and Pensions,Jobcentre Plus,20/05/2010,EMPLOYMENT PROGRAMMES,HQ BALANCE SHEET ,NORTH WESSEX TRAINING,2015358766,"50,483.05"
Department for Work and Pensions,Housing Benefits,14/05/2010,Housing Benefit Admin,WWG HOUSING BENEFIT,THE MORAY COUNCIL,2015260062,"50,363.00"
Department for Work and Pensions,Jobcentre Plus,13/05/2010,EMPLOYMENT PROGRAMMES,HQ BALANCE SHEET ,WORKING LINKS EMPLOYMENT LIMITED,2015249806,"50,232.69"
Department for Work and Pensions,Corporate,04/05/2010,INTERNATIONAL PROGRAMMES,WWG ,THE FULBRIGHT COMMISSION,2015131830,"50,000.00"
Department for Work and Pensions,Employment Programmes,12/05/2010,EMPLOYMENT ZONES,EG EMPLOYMENT PROGRAMMES,ADVANTAGE WEST MIDLANDS,1004200,"50,000.00"
Department for Work and Pensions,Corporate,13/05/2010,PROFESSIONAL FEES,Corporate and Support Services,SOCIAL POLICY RESEARCH UNIT,2015249366,"50,000.00"
Department for Work and Pensions,Jobcentre Plus,20/05/2010,EMPLOYMENT PROGRAMMES,HQ BALANCE SHEET ,SHAW TRUST LTD,2015359723,"50,000.00"
Department for Work and Pensions,Employment Programmes,26/05/2010,YOUNG PERSONS GUARANTEE (YPG) AND FUTURE JOBS FUND (FJF),EG EMPLOYMENT PROGRAMMES,LONDON BOROUGH OF LAMBETH LEMBETH FIRST,2015432331,"49,846.56"
Department for Work and Pensions,Housing Benefits,14/05/2010,Housing Benefit Admin,WWG HOUSING BENEFIT,COPELAND BOROUGH COUNCIL,2015259802,"49,697.00"
Department for Work and Pensions,Employment Programmes,20/05/2010,YOUNG PERSONS GUARANTEE (YPG) AND FUTURE JOBS FUND (FJF),EG EMPLOYMENT PROGRAMMES,LUTON BOROUGH COUNCIL,2015358129,"49,694.75"
Department for Work and Pensions,Jobcentre Plus,13/05/2010,EMPLOYMENT PROGRAMMES,HQ BALANCE SHEET ,SEETEC BUSINESS TECHNOLOGY CENTRE LTD,2015249312,"49,688.36"
Department for Work and Pensions,Corporate,27/05/2010,ACCOMMODATION,GROUP FINANCE,TELEREAL TRILLIUM,2015473156,"49,663.16"
Department for Work and Pensions,Employment Programmes,10/05/2010,YOUNG PERSONS GUARANTEE (YPG) AND FUTURE JOBS FUND (FJF),EG EMPLOYMENT PROGRAMMES,CROYDON ECONOMIC DEVELOPMENT COMPANY,2015154329,"49,400.00"
Department for Work and Pensions,Employment Programmes,12/05/2010,YOUNG PERSONS GUARANTEE (YPG) AND FUTURE JOBS FUND (FJF),EG EMPLOYMENT PROGRAMMES,THANET DISTRICT COUNCIL,2015239041,"49,400.00"
Department for Work and Pensions,Employment Programmes,13/05/2010,YOUNG PERSONS GUARANTEE (YPG) AND FUTURE JOBS FUND (FJF),EG EMPLOYMENT PROGRAMMES,WESTMINSTER CITY COUNCIL,2015249782,"49,400.00"
Department for Work and Pensions,Housing Benefits,14/05/2010,Housing Benefit Admin,WWG HOUSING BENEFIT,LICHFIELD DISTRICT COUNCIL,2015259894,"49,288.00"
Department for Work and Pensions,Employment Programmes,28/05/2010,ND 50+,EG EMPLOYMENT PROGRAMMES,A4E LTD,2015487967,"49,140.00"
Department for Work and Pensions,Employment Programmes,28/05/2010,WORKSTEP,EG EMPLOYMENT PROGRAMMES,MENCAP NORTH,2015530443,"49,127.05"
Department for Work and Pensions,Employment Programmes,10/05/2010,NDDP,EG EMPLOYMENT PROGRAMMES,REED,2015157539,"49,089.17"
Department for Work and Pensions,Employment Programmes,19/05/2010,YOUNG PERSONS GUARANTEE (YPG) AND FUTURE JOBS FUND (FJF),EG EMPLOYMENT PROGRAMMES,SCOUT ENTERPRISES WESTERN LTD,2015344588,"49,050.00"
Department for Work and Pensions,Employment Programmes,19/05/2010,YOUNG PERSONS GUARANTEE (YPG) AND FUTURE JOBS FUND (FJF),EG EMPLOYMENT PROGRAMMES,BARNARDOS,2015288120,"49,027.59"
Department for Work and Pensions,Corporate,10/05/2010,OTHER DEBTORS,HQ BALANCE SHEET ,DCSF RM SHARED SERVICES,2015154490,"49,005.04"
Department for Work and Pensions,Employment Programmes,06/05/2010,YOUNG PERSONS GUARANTEE (YPG) AND FUTURE JOBS FUND (FJF),EG EMPLOYMENT PROGRAMMES,SCOTTISH WILDLIFE TRUST,2015143281,"48,974.79"
Department for Work and Pensions,Housing Benefits,14/05/2010,Housing Benefit Admin,WWG HOUSING BENEFIT,WOKING BOROUGH COUNCIL,2015260098,"48,958.00"
Department for Work and Pensions,Corporate,18/05/2010,TEMPORARY (TEMP) STAFF COSTS,GROUP FINANCE,CAPITA RESOURCING LIMITED,2015268856,"48,920.11"
Department for Work and Pensions,Housing Benefits,14/05/2010,Housing Benefit Admin,WWG HOUSING BENEFIT,STIRLING COUNCIL,2015260041,"48,894.00"
Department for Work and Pensions,Corporate,14/05/2010,TOTAL SUPPLIES & SERVICES,Corporate and Support Services,PROQUEST INFORMATION & LEARNING,551109,"48,892.50"
Department for Work and Pensions,Housing Benefits,14/05/2010,Housing Benefit Admin,WWG HOUSING BENEFIT,TAMWORTH BOROUGH COUNCIL,2015260054,"48,798.00"
Department for Work and Pensions,Jobcentre Plus,17/05/2010,APPS DEV,ISD,HP ENTERPRISE SERVICES UK LTD,2015262632,"48,394.72"
Department for Work and Pensions,Corporate,25/05/2010,COMPUTER SERVICES,CHANGE MANAGEMENT DIRECTORATE,ATOS ORIGIN IT SERVICES UK LTD,2015376340,"48,377.23"
Department for Work and Pensions,Housing Benefits,14/05/2010,Housing Benefit Admin,WWG HOUSING BENEFIT,ROSSENDALE BOROUGH COUNCIL,2015259991,"48,357.00"
Department for Work and Pensions,Corporate,17/05/2010,TOTAL SUPPLIES & SERVICES,Corporate and Support Services,ASE CORPORATE EYECARE LTD,2015260443,"48,333.76"
Department for Work and Pensions,Employment Programmes,20/05/2010,WORKSTEP,EG EMPLOYMENT PROGRAMMES,BOURNEMOUTH BOROUGH COUNCIL,2015353919,"48,011.55"
Department for Work and Pensions,Housing Benefits,14/05/2010,Housing Benefit Admin,WWG HOUSING BENEFIT,WINCHESTER CITY COUNCIL,2015260095,"47,974.00"
Department for Work and Pensions,"Pension, Disability Carers Services",20/05/2010,COMPUTER SERVICES,PDCS CHANGE ,ATOS ORIGIN IT SERVICES UK LTD,2015353796,"47,824.96"
Department for Work and Pensions,Employment Programmes,05/05/2010,YOUNG PERSONS GUARANTEE (YPG) AND FUTURE JOBS FUND (FJF),EG EMPLOYMENT PROGRAMMES,PROSPECT SERVICES LTD,2015136063,"47,800.00"
Department for Work and Pensions,Jobcentre Plus,28/05/2010,NI & OGDs,CHIEF OPERATING OFFICER,PASSPORT OFFICE,2015535698,"47,704.04"
Department for Work and Pensions,Employment Programmes,10/05/2010,YOUNG PERSONS GUARANTEE (YPG) AND FUTURE JOBS FUND (FJF),EG EMPLOYMENT PROGRAMMES,CAMDEN COUNCIL,2015154248,"47,633.80"
Department for Work and Pensions,Employment Programmes,26/05/2010,WORKSTEP,EG EMPLOYMENT PROGRAMMES,GLASGOW BLINDCRAFT,552268,"47,534.50"
Department for Work and Pensions,Housing Benefits,14/05/2010,Housing Benefit Admin,WWG HOUSING BENEFIT,SOUTH HAMS DISTRICT COUNCIL,2015260020,"47,487.00"
Department for Work and Pensions,Employment Programmes,24/05/2010,YOUNG PERSONS GUARANTEE (YPG) AND FUTURE JOBS FUND (FJF),EG EMPLOYMENT PROGRAMMES,COMMUNITY ENTERPRISE DERBY CIC,2015370402,"47,400.00"
Department for Work and Pensions,Employment Programmes,25/05/2010,WORKSTEP,EG EMPLOYMENT PROGRAMMES,HAVEN PRODUCTS LTD,2015380434,"47,073.00"
Department for Work and Pensions,European Social Fund,06/05/2010,MA ESF(D) COSTS,WWEG EUROPEAN SOCIAL FUND,IMPACT HOUSING ASSOCIATION,5000000178,"47,062.00"
Department for Work and Pensions,Employment Programmes,10/05/2010,YOUNG PERSONS GUARANTEE (YPG) AND FUTURE JOBS FUND (FJF),EG EMPLOYMENT PROGRAMMES,BRISTOL CITY COUNCIL,2015154064,"46,800.00"
Department for Work and Pensions,Employment Programmes,21/05/2010,WORKSTEP,EG EMPLOYMENT PROGRAMMES,AGORIAD CYF,2015369608,"46,796.85"
Department for Work and Pensions,Jobcentre Plus,27/05/2010,OTHER GOODS AND SERVICES,CHIEF OPERATING OFFICER,VALUATION OFFICE AGENCY,2015479490,"46,740.00"
Department for Work and Pensions,"Pension, Disability Carers Services",10/05/2010,PRINTING STATIONERY IT & CONSUMABLES,PDCS CORE,XEROX UK LIMITED,2015158288,"46,715.22"
Department for Work and Pensions,Housing Benefits,14/05/2010,Housing Benefit Admin,WWG HOUSING BENEFIT,MONMOUTHSHIRE COUNTY  COUNCIL,2015259942,"46,643.00"
Department for Work and Pensions,Corporate,18/05/2010,TEMPORARY (TEMP) STAFF COSTS,CORPORATE IT,CAPITA RESOURCING LIMITED,2015268856,"46,578.44"
Department for Work and Pensions,Jobcentre Plus,20/05/2010,ACCOMMODATION,CHIEF OPERATING OFFICER,TELEREAL TRILLIUM,2015358062,"46,452.81"
Department for Work and Pensions,Employment Programmes,10/05/2010,YOUNG PERSONS GUARANTEE (YPG) AND FUTURE JOBS FUND (FJF),EG EMPLOYMENT PROGRAMMES,ACTION FOR CHILDREN,2015153866,"46,361.95"
Department for Work and Pensions,Housing Benefits,14/05/2010,Housing Benefit Admin,WWG HOUSING BENEFIT,BOSTON BOROUGH COUNCIL,2015259757,"46,315.00"
Department for Work and Pensions,Corporate,06/05/2010,OTHER GOODS AND SERVICES,PENSIONS CLIENT DIRECTORATE,GOVERNMENT ACTUARIES DEPARTMENT GAD,2002001,"46,263.10"
Department for Work and Pensions,Housing Benefits,14/05/2010,Housing Benefit Admin,WWG HOUSING BENEFIT,CEREDIGION COUNTY COUNCIL,2015259782,"46,252.00"
Department for Work and Pensions,"Pension, Disability Carers Services",21/05/2010,MANAGEMENT CONSULTANCY,PDCS CORE,MORI SOCIAL RESEARCH INSTITUTE,2015366634,"46,212.00"
Department for Work and Pensions,Corporate,17/05/2010,APPS DEV,CHANGE MANAGEMENT DIRECTORATE,HP ENTERPRISE SERVICES UK LTD,2015262632,"46,147.14"
Department for Work and Pensions,Housing Benefits,14/05/2010,Housing Benefit Admin,WWG HOUSING BENEFIT,WOKINGHAM DISTRICT COUNCIL,2015260099,"45,970.00"
Department for Work and Pensions,Corporate,27/05/2010,PRIME CHARGES,GROUP FINANCE,TELEREAL TRILLIUM,2015473155,"45,955.86"
Department for Work and Pensions,Corporate,18/05/2010,APPS DEV,Corporate and Support Services,HP ENTERPRISE SERVICES UK LTD,2015272023,"45,804.32"
Department for Work and Pensions,Corporate,18/05/2010,POSTAGE,GROUP FINANCE,TNT UK LTD,2015278914,"45,740.74"
Department for Work and Pensions,Employment Programmes,26/05/2010,YOUNG PERSONS GUARANTEE (YPG) AND FUTURE JOBS FUND (FJF),EG EMPLOYMENT PROGRAMMES,SHROPSHIRE COUNCIL COUNTY TRAINING,2015454191,"45,691.80"
Department for Work and Pensions,Jobcentre Plus,13/05/2010,EMPLOYMENT PROGRAMMES,HQ BALANCE SHEET ,WORKING LINKS EMPLOYMENT LTD,2015249807,"45,598.44"
Department for Work and Pensions,Corporate,04/05/2010,TEMPORARY (TEMP) STAFF COSTS,Corporate and Support Services,PARTNERS ANDREWS ALDRIDGE,2015131356,"45,434.31"
Department for Work and Pensions,Housing Benefits,14/05/2010,Housing Benefit Admin,WWG HOUSING BENEFIT,THREE RIVERS DISTRICT COUNCIL,2015260063,"45,362.00"
Department for Work and Pensions,Employment Programmes,19/05/2010,YOUNG PERSONS GUARANTEE (YPG) AND FUTURE JOBS FUND (FJF),EG EMPLOYMENT PROGRAMMES,PLACES FOR PEOPLE NEIGHBOURHOODS,2015334076,"45,346.84"
Department for Work and Pensions,Corporate,18/05/2010,IS/IT,CORPORATE IT,COMPUTACENTER UK LTD,2015268971,"45,335.69"
Department for Work and Pensions,Housing Benefits,14/05/2010,Housing Benefit Admin,WWG HOUSING BENEFIT,ISLE OF ANGLESEY COUNTY COUNCIL,2015259883,"45,313.00"
Department for Work and Pensions,Corporate,26/05/2010,COMPUTER SERVICES,CHANGE MANAGEMENT DIRECTORATE,BT SYNTEGRA,2015396817,"45,272.00"
Department for Work and Pensions,Jobcentre Plus,27/05/2010,EMPLOYMENT PROGRAMMES,HQ BALANCE SHEET ,BISCOM RESOURCE MANAGEMENT,2015464517,"45,113.19"
Department for Work and Pensions,Employment Programmes,17/05/2010,WORK PREPARATION,EG EMPLOYMENT PROGRAMMES,ENHAM,2015262317,"45,100.00"
Department for Work and Pensions,Housing Benefits,14/05/2010,Housing Benefit Admin,WWG HOUSING BENEFIT,BABERGH DISTRICT COUNCIL,2015259739,"44,891.00"
Department for Work and Pensions,Jobcentre Plus,10/05/2010,ACCOMMODATION,CHIEF OPERATING OFFICER,TELEREAL TRILLIUM,2015156724,"44,859.93"
Department for Work and Pensions,Jobcentre Plus,20/05/2010,EMPLOYMENT PROGRAMMES,HQ BALANCE SHEET ,TRAINING WEST LANCASHIRE LTD,2015360067,"44,818.96"
Department for Work and Pensions,Corporate,27/05/2010,CONTRACTED OUT OFFICE SERVICES,GROUP FINANCE,ABCUL,2015464037,"44,775.00"
Department for Work and Pensions,Corporate,17/05/2010,TOTAL IT & EQUIPMENT COSTS,DIRECTGOV ,SYSTEM CONCEPTS,2015264801,"44,720.00"
Department for Work and Pensions,Employment Programmes,04/05/2010,YOUNG PERSONS GUARANTEE (YPG) AND FUTURE JOBS FUND (FJF),EG EMPLOYMENT PROGRAMMES,NEWPORT CITY COUNCIL,2015133539,"44,700.00"
Department for Work and Pensions,Jobcentre Plus,20/05/2010,EMPLOYMENT PROGRAMMES,HQ BALANCE SHEET ,PERTEMPS EMPLOYMENT ALLIANCE,2015359021,"44,694.00"
Department for Work and Pensions,Corporate,13/05/2010,COMPUTER SERVICES,CORPORATE IT,HP ENTERPRISE SERVICES UK LTD,2015246835,"44,643.15"
Department for Work and Pensions,Housing Benefits,14/05/2010,Housing Benefit Admin,WWG HOUSING BENEFIT,COTSWOLD DISTRICT COUNCIL,2015259806,"44,639.00"
Department for Work and Pensions,Housing Benefits,14/05/2010,Housing Benefit Admin,WWG HOUSING BENEFIT,STAFFORDSHIRE MOORLANDS DISTRICT COUNCIL,2015260039,"44,637.00"
Department for Work and Pensions,Housing Benefits,14/05/2010,Housing Benefit Admin,WWG HOUSING BENEFIT,EAST NORTHANTS DISTRICT COUNCIL,2015259834,"44,618.00"
Department for Work and Pensions,Housing Benefits,14/05/2010,Housing Benefit Admin,WWG HOUSING BENEFIT,FAREHAM BOROUGH COUNCIL,2015259848,"44,401.00"
Department for Work and Pensions,Housing Benefits,14/05/2010,Housing Benefit Admin,WWG HOUSING BENEFIT,SOUTH LAKELAND DISTRICT COUNCIL,2015260023,"44,315.00"
Department for Work and Pensions,Housing Benefits,14/05/2010,Housing Benefit Admin,WWG HOUSING BENEFIT,TEWKESBURY BOROUGH COUNCIL,2015260060,"44,289.00"
Department for Work and Pensions,Employment Programmes,25/05/2010,YOUNG PERSONS GUARANTEE (YPG) AND FUTURE JOBS FUND (FJF),EG EMPLOYMENT PROGRAMMES,STRIDE SHARP TRADING LEICESTER LTD,2015386912,"44,250.00"
Department for Work and Pensions,Corporate,18/05/2010,APPS DEV,CORPORATE IT,HP ENTERPRISE SERVICES UK LTD,2015272023,"44,193.56"
Department for Work and Pensions,Employment Programmes,13/05/2010,NDDP,EG EMPLOYMENT PROGRAMMES,INGEUS UK LTD,2015246905,"44,015.72"
Department for Work and Pensions,Employment Programmes,19/05/2010,YOUNG PERSONS GUARANTEE (YPG) AND FUTURE JOBS FUND (FJF),EG EMPLOYMENT PROGRAMMES,TRAX ENERGY SOLUTIONS,2015347964,"43,800.00"
Department for Work and Pensions,Employment Programmes,06/05/2010,YOUNG PERSONS GUARANTEE (YPG) AND FUTURE JOBS FUND (FJF),EG EMPLOYMENT PROGRAMMES,SOCIAL ENTERPRISE LONDON,2015143339,"43,650.00"
Department for Work and Pensions,Housing Benefits,14/05/2010,Housing Benefit Admin,WWG HOUSING BENEFIT,TORRIDGE DISTRICT COUNCIL,2015260068,"43,549.00"
Department for Work and Pensions,Employment Programmes,12/05/2010,EMPLOYMENT ZONES,EG EMPLOYMENT PROGRAMMES,EAST MIDLANDS DEVELOPMENT AGENCY,1004202,"43,500.00"
Department for Work and Pensions,Jobcentre Plus,07/05/2010,EMPLOYMENT PROGRAMMES,HQ BALANCE SHEET ,SCOUT ENTERPRISES WESTERN LTD,2015150575,"43,429.52"
Department for Work and Pensions,Employment Programmes,26/05/2010,YOUNG PERSONS GUARANTEE (YPG) AND FUTURE JOBS FUND (FJF),EG EMPLOYMENT PROGRAMMES,HCT GROUP FUTURE JOBS FUND,2015414395,"43,200.00"
Department for Work and Pensions,Employment Programmes,10/05/2010,NDDP,EG EMPLOYMENT PROGRAMMES,WORKING LINKS,2015158279,"43,165.51"
Department for Work and Pensions,Employment Programmes,10/05/2010,YOUNG PERSONS GUARANTEE (YPG) AND FUTURE JOBS FUND (FJF),EG EMPLOYMENT PROGRAMMES,NEWPORT CITY COUNCIL,2015159994,"42,900.00"
Department for Work and Pensions,Employment Programmes,12/05/2010,YOUNG PERSONS GUARANTEE (YPG) AND FUTURE JOBS FUND (FJF),EG EMPLOYMENT PROGRAMMES,CREATIVE & CULTURAL SKILLS,2015185710,"42,900.00"
Department for Work and Pensions,Housing Benefits,14/05/2010,Housing Benefit Admin,WWG HOUSING BENEFIT,EAST CAMBRIDGESHIRE DISTRICT COUNCIL,2015259826,"42,841.00"
Department for Work and Pensions,Housing Benefits,14/05/2010,Housing Benefit Admin,WWG HOUSING BENEFIT,CLACKMANNANSHIRE COUNCIL,2015259798,"42,818.00"
Department for Work and Pensions,Jobcentre Plus,27/05/2010,EMPLOYMENT PROGRAMMES,HQ BALANCE SHEET ,NORTH WESSEX TRAINING,2015475256,"42,804.75"
Department for Work and Pensions,Housing Benefits,14/05/2010,Housing Benefit Admin,WWG HOUSING BENEFIT,MID DEVON DISTRICT COUNCIL,2015259935,"42,780.00"
Department for Work and Pensions,Employment Programmes,11/05/2010,YOUNG PERSONS GUARANTEE (YPG) AND FUTURE JOBS FUND (FJF),EG EMPLOYMENT PROGRAMMES,WILTSHIRE COUNCIL,2015171827,"42,735.00"
Department for Work and Pensions,"Pension, Disability Carers Services",18/05/2010,COMPUTER SERVICES,PDCS CHANGE ,BT SYNTEGRA,2015268169,"42,632.50"
Department for Work and Pensions,Jobcentre Plus,07/05/2010,EMPLOYMENT PROGRAMMES,HQ BALANCE SHEET ,WORKSTREAM CONSULTANCY LTD,2015151057,"42,600.00"
Department for Work and Pensions,Employment Programmes,20/05/2010,YOUNG PERSONS GUARANTEE (YPG) AND FUTURE JOBS FUND (FJF),EG EMPLOYMENT PROGRAMMES,HARLOW DISTRICT COUNCIL,2015356958,"42,600.00"
Department for Work and Pensions,Corporate,07/05/2010,TOTAL IT & EQUIPMENT COSTS,DIRECTGOV ,TELETEXT LTD,2015150812,"42,583.33"
Department for Work and Pensions,Corporate,24/05/2010,TOTAL IT & EQUIPMENT COSTS,DIRECTGOV ,TELETEXT LTD,2015373666,"42,583.33"
Department for Work and Pensions,Jobcentre Plus,14/05/2010,APPS DEV,TPM PROGRAMMES,HP ENTERPRISE SERVICES UK LTD,2015255016,"42,454.50"
Department for Work and Pensions,Corporate,27/05/2010,PRIME CHARGES,GROUP FINANCE,TELEREAL TRILLIUM,2015473155,"42,419.55"
Department for Work and Pensions,Jobcentre Plus,13/05/2010,EMPLOYMENT PROGRAMMES,HQ BALANCE SHEET ,TNG LTD,2015249610,"42,348.57"
Department for Work and Pensions,Housing Benefits,14/05/2010,Housing Benefit Admin,WWG HOUSING BENEFIT,SOUTH DERBYSHIRE DISTRICT COUNCIL,2015260018,"42,247.00"
Department for Work and Pensions,"Pension, Disability Carers Services",05/05/2010,PUBLICITY,PDCS CORE,COI COMMUNICATIONS,2015133912,"42,239.80"
Department for Work and Pensions,Employment Programmes,17/05/2010,DAF,EG EMPLOYMENT PROGRAMMES,GLASGOW PATHFINDER,2015262515,"42,160.00"
Department for Work and Pensions,Employment Programmes,18/05/2010,DAF,EG EMPLOYMENT PROGRAMMES,COMMISSION FOR THE NEW ECONOMY,2015268968,"42,160.00"
Department for Work and Pensions,Corporate,10/05/2010,BANK COMMISSIONS,GROUP FINANCE,HSBC BANK PLC,2015156059,"42,154.90"
Department for Work and Pensions,Housing Benefits,14/05/2010,Housing Benefit Admin,WWG HOUSING BENEFIT,RUNNYMEDE BOROUGH COUNCIL,2015259996,"42,100.00"
Department for Work and Pensions,Jobcentre Plus,27/05/2010,ACCOMMODATION,CHIEF OPERATING OFFICER,TELEREAL TRILLIUM,2015473158,"41,910.93"
Department for Work and Pensions,Employment Programmes,25/05/2010,YOUNG PERSONS GUARANTEE (YPG) AND FUTURE JOBS FUND (FJF),EG EMPLOYMENT PROGRAMMES,EDS NW LTD,2015379629,"41,850.00"
Department for Work and Pensions,Corporate,17/05/2010,TOTAL IT & EQUIPMENT COSTS,DIRECTGOV ,SYSTEM ASSOCIATES LTD,2015264800,"41,750.00"
Department for Work and Pensions,Employment Programmes,12/05/2010,YOUNG PERSONS GUARANTEE (YPG) AND FUTURE JOBS FUND (FJF),EG EMPLOYMENT PROGRAMMES,RENAISI LTD,2015228248,"41,600.00"
Department for Work and Pensions,Jobcentre Plus,21/05/2010,PRINTING STATIONERY IT & CONSUMABLES,TPMD,COMPUTACENTER UK LTD,2015363564,"41,559.56"
Department for Work and Pensions,Employment Programmes,19/05/2010,YOUNG PERSONS GUARANTEE (YPG) AND FUTURE JOBS FUND (FJF),EG EMPLOYMENT PROGRAMMES,WARWICKSHIRE COUNTY COUNCIL,2015349751,"41,550.00"
Department for Work and Pensions,Employment Programmes,12/05/2010,DAF,EG EMPLOYMENT PROGRAMMES,LONDON DEVELOPMENT AGENCY,2015214913,"41,500.00"
Department for Work and Pensions,Employment Programmes,18/05/2010,DAF,EG EMPLOYMENT PROGRAMMES,GREATER MANCHESTER PATHFINDER,2015271763,"41,500.00"
Department for Work and Pensions,Employment Programmes,18/05/2010,DAF,EG EMPLOYMENT PROGRAMMES,SOUTH YORKSHIRE PATHFINDER,2015278409,"41,500.00"
Department for Work and Pensions,Corporate,25/05/2010,COMPUTER SERVICES,CHANGE MANAGEMENT DIRECTORATE,ATOS ORIGIN IT SERVICES UK LTD,2015376340,"41,485.91"
Department for Work and Pensions,Corporate,07/05/2010,IS/IT,CORPORATE IT,COMPUTACENTER UK LTD,2015146660,"41,304.67"
Department for Work and Pensions,Corporate,27/05/2010,PRIME CHARGES,GROUP FINANCE,TELEREAL TRILLIUM,2015473155,"41,293.39"
Department for Work and Pensions,Employment Programmes,06/05/2010,YOUNG PERSONS GUARANTEE (YPG) AND FUTURE JOBS FUND (FJF),EG EMPLOYMENT PROGRAMMES,BE TOTALLY YOU,2015138698,"41,280.00"
Department for Work and Pensions,Housing Benefits,14/05/2010,Housing Benefit Admin,WWG HOUSING BENEFIT,RUSHCLIFFE BOROUGH COUNCIL,2015259997,"41,183.00"
Department for Work and Pensions,Corporate,18/05/2010,COMPUTER SERVICES,Corporate and Support Services,HP ENTERPRISE SERVICES UK LTD,2015272023,"40,910.63"
Department for Work and Pensions,Employment Programmes,24/05/2010,ACCESS TO WORK,EG EMPLOYMENT PROGRAMMES,DEAFABILITY PRODUCTIONS LTD,2015370617,"40,817.00"
Department for Work and Pensions,Housing Benefits,14/05/2010,Housing Benefit Admin,WWG HOUSING BENEFIT,EAST DORSET DISTRICT COUNCIL,2015259828,"40,747.00"
Department for Work and Pensions,Employment Programmes,13/05/2010,YOUNG PERSONS GUARANTEE (YPG) AND FUTURE JOBS FUND (FJF),EG EMPLOYMENT PROGRAMMES,DUMFRIES & GALLOWAY COUNCIL,2015246356,"40,650.00"
Department for Work and Pensions,Corporate,27/05/2010,ACCOMMODATION,GROUP FINANCE,TELEREAL TRILLIUM,2015473158,"40,601.22"
Department for Work and Pensions,Housing Benefits,14/05/2010,Housing Benefit Admin,WWG HOUSING BENEFIT,CHILTERN DISTRICT COUNCIL,2015259791,"40,556.00"
Department for Work and Pensions,Corporate,18/05/2010,APPS DEV,Corporate and Support Services,HP ENTERPRISE SERVICES UK LTD,2015272023,"40,501.99"
Department for Work and Pensions,Corporate,14/05/2010,MANAGEMENT CONSULTANCY,GROUP FINANCE,DELOITTE LLP,2015252779,"40,501.88"
Department for Work and Pensions,"Pension, Disability Carers Services",27/05/2010,STAFF COSTS,PDCS CORE,HS/UK LTD,2015469658,"40,500.00"
Department for Work and Pensions,Employment Programmes,19/05/2010,JSP ESF DEL P COSTS,EG EMPLOYMENT PROGRAMMES,SEETEC BUSINESS TECHNOLOGY CENTRE LTD,2015344653,"40,465.03"
Department for Work and Pensions,Housing Benefits,14/05/2010,Housing Benefit Admin,WWG HOUSING BENEFIT,SELBY DISTRICT COUNCIL,2015260007,"40,450.00"
Department for Work and Pensions,Jobcentre Plus,20/05/2010,APPS DEV,CHIEF OPERATING OFFICER,HP ENTERPRISE SERVICES UK LTD,2015356991,"40,379.78"
Department for Work and Pensions,Employment Programmes,12/05/2010,YOUNG PERSONS GUARANTEE (YPG) AND FUTURE JOBS FUND (FJF),EG EMPLOYMENT PROGRAMMES,SWINDON BOROUGH COUNCIL,2015236333,"40,300.00"
Department for Work and Pensions,Employment Programmes,14/05/2010,YOUNG PERSONS GUARANTEE (YPG) AND FUTURE JOBS FUND (FJF),EG EMPLOYMENT PROGRAMMES,SIKH COMMUNITY & YOUTH SERVICE UK,2015257196,"40,300.00"
Department for Work and Pensions,Employment Programmes,26/05/2010,YOUNG PERSONS GUARANTEE (YPG) AND FUTURE JOBS FUND (FJF),EG EMPLOYMENT PROGRAMMES,BRIGHTON & HOVE CITY COUNCIL,2015396797,"40,200.00"
Department for Work and Pensions,Corporate,18/05/2010,CONTRACTED OUT OFFICE SERVICES,SHARED SERVICES ,CAPITA BUSINESS SERVICES LTD,2015268855,"40,098.46"
Department for Work and Pensions,Corporate,05/05/2010,NON PRIME CHARGES,GROUP FINANCE,SKANSKA RASLEIGH WEATHERFOIL LTD,549918,"40,000.00"
Department for Work and Pensions,Corporate,20/05/2010,EMPLOYMENT ZONES,WWG ,DEPARTMENT OF HEALTH,1004216,"40,000.00"
Department for Work and Pensions,Corporate,27/05/2010,ACCOMMODATION,GROUP FINANCE,TELEREAL TRILLIUM,2015473158,"39,911.41"
Department for Work and Pensions,Employment Programmes,11/05/2010,ND 50+,EG EMPLOYMENT PROGRAMMES,SERCO LTD,2015170940,"39,825.00"
Department for Work and Pensions,Employment Programmes,25/05/2010,WORKSTEP,EG EMPLOYMENT PROGRAMMES,CHESHIRE EAST BOROUGH COUNCIL,2015377388,"39,685.55"
Department for Work and Pensions,Corporate,28/05/2010,COMPUTER SERVICES,CORPORATE IT,HP ENTERPRISE SERVICES UK LTD,1004234,"39,568.62"
Department for Work and Pensions,Jobcentre Plus,20/05/2010,EMPLOYMENT PROGRAMMES,HQ BALANCE SHEET ,SKILLS TRAINING UK LTD,2015359752,"39,557.06"
Department for Work and Pensions,Housing Benefits,14/05/2010,Housing Benefit Admin,WWG HOUSING BENEFIT,HAMBLETON DISTRICT COUNCIL,2015259865,"39,530.00"
Department for Work and Pensions,Corporate,24/05/2010,TEMPORARY (TEMP) STAFF COSTS,DIRECTGOV ,CADENCE PARTNERSHIP LLP,2015370328,"39,510.55"
Department for Work and Pensions,Housing Benefits,14/05/2010,Housing Benefit Admin,WWG HOUSING BENEFIT,MID SUFFOLK DISTRICT COUNCIL,2015259936,"39,487.00"
Department for Work and Pensions,Housing Benefits,14/05/2010,Housing Benefit Admin,WWG HOUSING BENEFIT,MALVERN HILLS DISTRICT COUNCIL,2015259928,"39,486.00"
Department for Work and Pensions,Jobcentre Plus,27/05/2010,EMPLOYMENT PROGRAMMES,HQ BALANCE SHEET ,CALIBRE SEARCH & SELECTION,2015465541,"39,450.00"
Department for Work and Pensions,Corporate,27/05/2010,PRIME CHARGES,GROUP FINANCE,TELEREAL TRILLIUM,2015473155,"39,371.98"
Department for Work and Pensions,Employment Programmes,24/05/2010,WORKSTEP,EG EMPLOYMENT PROGRAMMES,RBLI WORKWISE,2015373127,"39,243.30"
Department for Work and Pensions,Corporate,12/05/2010,STAFF COSTS,Corporate and Support Services,ELISHA TRAINING LTD,2015193265,"39,230.00"
Department for Work and Pensions,Employment Programmes,18/05/2010,YOUNG PERSONS GUARANTEE (YPG) AND FUTURE JOBS FUND (FJF),EG EMPLOYMENT PROGRAMMES,CAMDEN COUNCIL,2015268852,"39,217.20"
Department for Work and Pensions,Housing Benefits,14/05/2010,Housing Benefit Admin,WWG HOUSING BENEFIT,FYLDE BOROUGH COUNCIL,2015259854,"39,163.00"
Department for Work and Pensions,Corporate,21/05/2010,COMPUTER SERVICES,CORPORATE IT,ATOS ORIGIN IT SERVICES UK LTD,2015363168,"39,036.78"
Department for Work and Pensions,Employment Programmes,06/05/2010,YOUNG PERSONS GUARANTEE (YPG) AND FUTURE JOBS FUND (FJF),EG EMPLOYMENT PROGRAMMES,CARMARTHENSHIRE COUNTY COUNCIL,2015143762,"39,000.00"
Department for Work and Pensions,Employment Programmes,07/05/2010,YOUNG PERSONS GUARANTEE (YPG) AND FUTURE JOBS FUND (FJF),EG EMPLOYMENT PROGRAMMES,CITY OF EDINBURGH COUNCIL,2015146633,"39,000.00"
Department for Work and Pensions,Employment Programmes,10/05/2010,YOUNG PERSONS GUARANTEE (YPG) AND FUTURE JOBS FUND (FJF),EG EMPLOYMENT PROGRAMMES,INVERCLYDE COUNCIL,2015156117,"39,000.00"
Department for Work and Pensions,Employment Programmes,12/05/2010,YOUNG PERSONS GUARANTEE (YPG) AND FUTURE JOBS FUND (FJF),EG EMPLOYMENT PROGRAMMES,ASPIRE FOUNDATION,2015179378,"39,000.00"
Department for Work and Pensions,Corporate,11/05/2010,APPS DEV,SHARED SERVICES ,HP ENTERPRISE SERVICES UK LTD,2015164950,"38,786.01"
Department for Work and Pensions,Employment Programmes,06/05/2010,YOUNG PERSONS GUARANTEE (YPG) AND FUTURE JOBS FUND (FJF),EG EMPLOYMENT PROGRAMMES,NEWPORT CITY COUNCIL,2015143834,"38,550.00"
Department for Work and Pensions,Housing Benefits,14/05/2010,Housing Benefit Admin,WWG HOUSING BENEFIT,BROMSGROVE DISTRICT COUNCIL,2015259768,"38,478.00"
Department for Work and Pensions,Corporate,25/05/2010,MANAGEMENT CONSULTANCY,GROUP FINANCE,PRICEWATERHOUSE COOPERS LLP,2015384995,"38,316.72"
Department for Work and Pensions,Employment Programmes,07/05/2010,WORK PREPARATION,EG EMPLOYMENT PROGRAMMES,MENCAP IN WALES,2015149651,"38,233.10"
Department for Work and Pensions,Jobcentre Plus,27/05/2010,EMPLOYMENT PROGRAMMES,HQ BALANCE SHEET ,SKILLS TRAINING UK LTD,2015478556,"38,085.41"
Department for Work and Pensions,Housing Benefits,14/05/2010,Housing Benefit Admin,WWG HOUSING BENEFIT,BLABY DISTRICT COUNCIL,2015259748,"37,876.00"
Department for Work and Pensions,Jobcentre Plus,27/05/2010,NON PRIME CHARGES,CHIEF OPERATING OFFICER,COPELAND BOROUGH COUNCIL,2015465675,"37,723.12"
Department for Work and Pensions,Employment Programmes,10/05/2010,YOUNG PERSONS GUARANTEE (YPG) AND FUTURE JOBS FUND (FJF),EG EMPLOYMENT PROGRAMMES,HANTA ASSOCIATES LTD,2015156019,"37,700.00"
Department for Work and Pensions,Employment Programmes,06/05/2010,WORKSTEP,EG EMPLOYMENT PROGRAMMES,HAVEN PRODUCTS LTD,2015141177,"37,658.40"
Department for Work and Pensions,Employment Programmes,10/05/2010,ACCESS TO WORK,EG EMPLOYMENT PROGRAMMES,DAVID NABARRO,2015154483,"37,614.45"
Department for Work and Pensions,Housing Benefits,14/05/2010,Housing Benefit Admin,WWG HOUSING BENEFIT,ROCHFORD DISTRICT COUNCIL,2015259990,"37,532.00"
Department for Work and Pensions,Corporate,19/05/2010,NETWORK,CHANGE MANAGEMENT DIRECTORATE,BT SYNTEGRA,2015288232,"37,517.75"
Department for Work and Pensions,Housing Benefits,14/05/2010,Housing Benefit Admin,WWG HOUSING BENEFIT,ADUR DISTRICT COUNCIL,2015259730,"37,480.00"
Department for Work and Pensions,Employment Programmes,26/05/2010,WORKSTEP,EG EMPLOYMENT PROGRAMMES,CORNWALL COUNTY COUNCIL,2015402013,"37,443.20"
Department for Work and Pensions,Housing Benefits,14/05/2010,Housing Benefit Admin,WWG HOUSING BENEFIT,DAVENTRY DISTRICT COUNCIL,2015259815,"37,415.00"
Department for Work and Pensions,Corporate,12/05/2010,TEMPORARY (TEMP) STAFF COSTS,CORPORATE IT,SPECIALIST COMPUTER CENTRES PLC,2015236260,"37,389.88"
Department for Work and Pensions,Jobcentre Plus,07/05/2010,EMPLOYMENT PROGRAMMES,HQ BALANCE SHEET ,GR RECRUITMENT,2015148379,"37,350.00"
Department for Work and Pensions,Corporate,27/05/2010,ACCOMMODATION,GROUP FINANCE,TELEREAL TRILLIUM,2015473158,"37,277.14"
Department for Work and Pensions,Jobcentre Plus,13/05/2010,EMPLOYMENT PROGRAMMES,HQ BALANCE SHEET ,TRAINING WEST LANCASHIRE LTD,2015249628,"37,221.64"
Department for Work and Pensions,Corporate,27/05/2010,EMPLOYMENT ZONES,WWG ,DEPARTMENT OF HEALTH,1004227,"37,000.00"
Department for Work and Pensions,Housing Benefits,14/05/2010,Housing Benefit Admin,WWG HOUSING BENEFIT,NORTH WARWICKSHIRE DISTRICT COUNCIL,2015259961,"36,918.00"
Department for Work and Pensions,Corporate,27/05/2010,PRIME CHARGES,GROUP FINANCE,TELEREAL TRILLIUM,2015473155,"36,884.78"
Department for Work and Pensions,Corporate,19/05/2010,COMPUTER SERVICES,CHANGE MANAGEMENT DIRECTORATE,BT SYNTEGRA,2015288232,"36,858.30"
Department for Work and Pensions,Corporate,24/05/2010,TEMPORARY (TEMP) STAFF COSTS,DIRECTGOV ,CADENCE PARTNERSHIP LLP,2015370328,"36,833.31"
Department for Work and Pensions,Corporate,28/05/2010,COMPUTER SERVICES,CORPORATE IT,TESCO MOBILE LTD,2015549673,"36,696.88"
Department for Work and Pensions,Corporate,10/05/2010,EMPLOYMENT ZONES,GROUP FINANCE,KENT SAVERS,2015156543,"36,328.00"
Department for Work and Pensions,Employment Programmes,14/05/2010,WORKSTEP,EG EMPLOYMENT PROGRAMMES,PETERBOROUGH CITY COUNCIL,2015256521,"36,273.90"
Department for Work and Pensions,Employment Programmes,13/05/2010,YOUNG PERSONS GUARANTEE (YPG) AND FUTURE JOBS FUND (FJF),EG EMPLOYMENT PROGRAMMES,CROYDON COLLEGE,2015245185,"36,266.12"
Department for Work and Pensions,Employment Programmes,24/05/2010,ND 50+,EG EMPLOYMENT PROGRAMMES,MAXIMUS EMPLOYMENT UK LTD,2015372607,"36,234.00"
Department for Work and Pensions,Housing Benefits,14/05/2010,Housing Benefit Admin,WWG HOUSING BENEFIT,EAST RENFREWSHIRE COUNCIL,2015259835,"36,204.00"
Department for Work and Pensions,Housing Benefits,14/05/2010,Housing Benefit Admin,WWG HOUSING BENEFIT,TANDRIDGE DISTRICT COUNCIL,2015260055,"36,176.00"
Department for Work and Pensions,Housing Benefits,14/05/2010,Housing Benefit Admin,WWG HOUSING BENEFIT,FOREST HEATH DISTRICT COUNCIL,2015259852,"36,143.00"
Department for Work and Pensions,Corporate,19/05/2010,TEMPORARY (TEMP) STAFF COSTS,GROUP FINANCE,SOUTH TYNESIDE COUNCIL,2015345019,"36,093.00"
Department for Work and Pensions,Jobcentre Plus,20/05/2010,EMPLOYMENT PROGRAMMES,HQ BALANCE SHEET ,SEETEC,2015359710,"36,029.11"
Department for Work and Pensions,Corporate,17/05/2010,TEMPORARY (TEMP) STAFF COSTS,DIRECTGOV ,RETHINK RECRUITMENT SOLUTIONS LTD,2015264365,"36,004.35"
Department for Work and Pensions,Jobcentre Plus,21/05/2010,JOBCENTRE PLUS PATHWAYS TO WORK,CHIEF OPERATING OFFICER,GATESHEAD PRIMARY CARE TRUST,2015365362,"35,950.00"
Department for Work and Pensions,Jobcentre Plus,20/05/2010,EMPLOYMENT PROGRAMMES,HQ BALANCE SHEET ,TNG LTD,2015360055,"35,900.80"
Department for Work and Pensions,Housing Benefits,14/05/2010,Housing Benefit Admin,WWG HOUSING BENEFIT,SURREY HEATH BOROUGH COUNCIL,2015260049,"35,889.00"
Department for Work and Pensions,Employment Programmes,19/05/2010,YOUNG PERSONS GUARANTEE (YPG) AND FUTURE JOBS FUND (FJF),EG EMPLOYMENT PROGRAMMES,PROJECT SCOTLAND,2015334117,"35,850.00"
Department for Work and Pensions,European Social Fund,06/05/2010,MA ESF(D) COSTS,WWEG EUROPEAN SOCIAL FUND,SOCIAL ENTERPRISE EAST MIDLANDS LTD,5000000181,"35,805.00"
Department for Work and Pensions,Corporate,13/05/2010,STAFF COSTS,Corporate and Support Services,ITRAIN EDUCATION LTD,2015246919,"35,750.00"
Department for Work and Pensions,Housing Benefits,14/05/2010,Housing Benefit Admin,WWG HOUSING BENEFIT,MOLE VALLEY DISTRICT COUNCIL,2015259941,"35,602.00"
Department for Work and Pensions,Employment Programmes,18/05/2010,WORKSTEP,EG EMPLOYMENT PROGRAMMES,HIGHLAND COUNCIL,2015271997,"35,593.25"
Department for Work and Pensions,Employment Programmes,26/05/2010,YOUNG PERSONS GUARANTEE (YPG) AND FUTURE JOBS FUND (FJF),EG EMPLOYMENT PROGRAMMES,COPELAND BOROUGH COUNCIL,2015462779,"35,550.00"
Department for Work and Pensions,Jobcentre Plus,07/05/2010,EMPLOYMENT PROGRAMMES,HQ BALANCE SHEET ,BIRMINGHAM CHAMBER TRAINING,2015146323,"35,454.07"
Department for Work and Pensions,Jobcentre Plus,07/05/2010,EMPLOYMENT PROGRAMMES,HQ BALANCE SHEET ,SKILLS TRAINING UK LTD,2015150619,"35,435.43"
Department for Work and Pensions,Jobcentre Plus,20/05/2010,EMPLOYMENT PROGRAMMES,HQ BALANCE SHEET ,WALES COUNCIL FOR VOLUNTARY,2015362853,"35,419.50"
Department for Work and Pensions,Jobcentre Plus,20/05/2010,EMPLOYMENT PROGRAMMES,HQ BALANCE SHEET ,BISCOM RESOURCE MANAGEMENT,2015353899,"35,328.72"
Department for Work and Pensions,Jobcentre Plus,27/05/2010,EMPLOYMENT PROGRAMMES,HQ BALANCE SHEET ,KENNEDY SCOTT LTD,2015472175,"35,305.52"
Department for Work and Pensions,Corporate,17/05/2010,TEMPORARY (TEMP) STAFF COSTS,DIRECTGOV ,RETHINK RECRUITMENT SOLUTIONS LTD,2015264365,"35,193.94"
Department for Work and Pensions,Employment Programmes,19/05/2010,YOUNG PERSONS GUARANTEE (YPG) AND FUTURE JOBS FUND (FJF),EG EMPLOYMENT PROGRAMMES,NORTH YORKSHIRE COUNTY COUNCIL,2015331543,"35,100.00"
Department for Work and Pensions,Employment Programmes,20/05/2010,YOUNG PERSONS GUARANTEE (YPG) AND FUTURE JOBS FUND (FJF),EG EMPLOYMENT PROGRAMMES,SOUTH AYRSHIRE COUNCIL,2015359776,"35,046.18"
Department for Work and Pensions,Jobcentre Plus,20/05/2010,STAFF COSTS,CHIEF OPERATING OFFICER,ELIESHA TRAINING LTD,2015356578,"35,024.54"
Department for Work and Pensions,Corporate,27/05/2010,EMPLOYMENT ZONES,GROUP FINANCE,PARK ROAD COMMUNITY CREDIT UNION LTD,2015475938,"35,000.00"
Department for Work and Pensions,Jobcentre Plus,07/05/2010,EMPLOYMENT PROGRAMMES,HQ BALANCE SHEET ,JHP GROUP LTD,2015148862,"34,915.40"
Department for Work and Pensions,Corporate,17/05/2010,STAFF COSTS,Corporate and Support Services,ASE CORPORATE EYECARE LTD,2015260443,"34,815.04"
Department for Work and Pensions,Corporate,18/05/2010,APPS DEV,Corporate and Support Services,HP ENTERPRISE SERVICES UK LTD,2015272023,"34,745.90"
Department for Work and Pensions,Jobcentre Plus,20/05/2010,EMPLOYMENT PROGRAMMES,HQ BALANCE SHEET ,ASL RECRUITMENT LTD,2015353790,"34,650.00"
Department for Work and Pensions,Corporate,10/05/2010,TEMPORARY (TEMP) STAFF COSTS,GROUP FINANCE,CAPITA RESOURCING LIMITED,2015154252,"34,538.48"
Department for Work and Pensions,Employment Programmes,26/05/2010,YOUNG PERSONS GUARANTEE (YPG) AND FUTURE JOBS FUND (FJF),EG EMPLOYMENT PROGRAMMES,WEST SUSSEX COUNTY COUNCIL,2015459400,"34,500.00"
Department for Work and Pensions,Employment Programmes,27/05/2010,ND 50+,EG EMPLOYMENT PROGRAMMES,WORKING LINKS,2015479725,"34,298.00"
Department for Work and Pensions,Corporate,10/05/2010,TEMPORARY (TEMP) STAFF COSTS,Corporate and Support Services,CAPITA RESOURCING LIMITED,2015154252,"34,186.14"
Department for Work and Pensions,Employment Programmes,27/05/2010,ND 50+,EG EMPLOYMENT PROGRAMMES,WORKING LINKS,2015479725,"34,125.00"
Department for Work and Pensions,Jobcentre Plus,17/05/2010,APPS DEV,TPM PROGRAMMES,HP ENTERPRISE SERVICES UK LTD,2015262632,"34,112.09"
Department for Work and Pensions,Employment Programmes,24/05/2010,ACCESS TO WORK,EG EMPLOYMENT PROGRAMMES,UNIVERSITY OF CENTRAL LANCASHIRE,2015373754,"34,018.23"
Department for Work and Pensions,Housing Benefits,14/05/2010,Housing Benefit Admin,WWG HOUSING BENEFIT,MALDON DISTRICT COUNCIL,2015259927,"33,831.00"
Department for Work and Pensions,Employment Programmes,27/05/2010,YOUNG PERSONS GUARANTEE (YPG) AND FUTURE JOBS FUND (FJF),EG EMPLOYMENT PROGRAMMES,PEMBROKESHIRE COUNTY COUNCIL,2015480155,"33,750.00"
Department for Work and Pensions,"Pension, Disability Carers Services",07/05/2010,PRINTING STATIONERY IT & CONSUMABLES,PDCS CORE,XEROX UK LIMITED 3W,2015151064,"33,603.25"
Department for Work and Pensions,Employment Programmes,06/05/2010,PROGRESS TO WORK,EG EMPLOYMENT PROGRAMMES,WORKING LINKS,2015143703,"33,414.49"
Department for Work and Pensions,Employment Programmes,24/05/2010,WORKSTEP,EG EMPLOYMENT PROGRAMMES,ABERDEEN CITY COUNCIL,2015369918,"33,409.90"
Department for Work and Pensions,Employment Programmes,13/05/2010,DAF,EG EMPLOYMENT PROGRAMMES,CELTIC FC LTD,2015245119,"33,370.22"
Department for Work and Pensions,Jobcentre Plus,13/05/2010,EMPLOYMENT PROGRAMMES,HQ BALANCE SHEET ,MAY & STEPHENS LTD,2015248172,"33,300.00"
Department for Work and Pensions,Employment Programmes,19/05/2010,RESIDENTIAL TRAINING,EG EMPLOYMENT PROGRAMMES,ENHAM,2015301215,"33,127.08"
Department for Work and Pensions,Jobcentre Plus,18/05/2010,APPS DEV,ISD,HP ENTERPRISE SERVICES UK LTD,2015272023,"33,031.71"
Department for Work and Pensions,Employment Programmes,12/05/2010,YOUNG PERSONS GUARANTEE (YPG) AND FUTURE JOBS FUND (FJF),EG EMPLOYMENT PROGRAMMES,ARTSWORK LTD,2015179363,"32,994.00"
Department for Work and Pensions,Housing Benefits,14/05/2010,Housing Benefit Admin,WWG HOUSING BENEFIT,BRENTWOOD DISTRICT COUNCIL,2015259763,"32,976.00"
Department for Work and Pensions,Corporate,27/05/2010,COMPUTER SERVICES,GROUP FINANCE,COMPUTACENTER UK LTD,2015465671,"32,975.45"
Department for Work and Pensions,Jobcentre Plus,10/05/2010,MANAGEMENT CONSULTANCY, STRATEGY AND PLANNING,FDS INTERNATIONAL LTD,2015155798,"32,906.50"
Department for Work and Pensions,Housing Benefits,14/05/2010,Housing Benefit Admin,WWG HOUSING BENEFIT,NORTH DORSET DISTRICT COUNCIL,2015259951,"32,884.00"
Department for Work and Pensions,Employment Programmes,04/05/2010,WORKSTEP,EG EMPLOYMENT PROGRAMMES,CARMARTHENSHIRE COUNTY COUNCIL,2015133466,"32,882.00"
Department for Work and Pensions,Employment Programmes,26/05/2010,YOUNG PERSONS GUARANTEE (YPG) AND FUTURE JOBS FUND (FJF),EG EMPLOYMENT PROGRAMMES,CALL BRITANNIA,2015401676,"32,700.00"
Department for Work and Pensions,"Pension, Disability Carers Services",17/05/2010,COMMUNICATIONS & PUBLICITY,PDCS CORE,MORI SOCIAL RESEARCH INSTITUTE,2015263833,"32,525.00"
Department for Work and Pensions,Corporate,27/05/2010,TOTAL SUPPLIES & SERVICES,GROUP FINANCE,UK MAIL,2015479310,"32,515.82"
Department for Work and Pensions,Employment Programmes,12/05/2010,YOUNG PERSONS GUARANTEE (YPG) AND FUTURE JOBS FUND (FJF),EG EMPLOYMENT PROGRAMMES,RCT HOMES,2015228228,"32,500.00"
Department for Work and Pensions,Corporate,19/05/2010,IS/IT,CORPORATE IT,COMPUTACENTER UK LTD,2015293308,"32,422.95"
Department for Work and Pensions,Employment Programmes,07/05/2010,YOUNG PERSONS GUARANTEE (YPG) AND FUTURE JOBS FUND (FJF),EG EMPLOYMENT PROGRAMMES,NOVAS SCARMAN GROUP LTD,2015149828,"32,400.00"
Department for Work and Pensions,Jobcentre Plus,20/05/2010,ACCOMMODATION,CHIEF OPERATING OFFICER,TELEREAL TRILLIUM,2015358062,"32,121.49"
Department for Work and Pensions,Employment Programmes,17/05/2010,ACCESS TO WORK,EG EMPLOYMENT PROGRAMMES,ROYAL BRITISH LEGION INDUSTRIES,2015264391,"31,918.28"
Department for Work and Pensions,Corporate,20/05/2010,MARKETING,Corporate and Support Services,COI CENTRAL OFFICE OF INFORMATION,2015354312,"31,903.00"
Department for Work and Pensions,Housing Benefits,14/05/2010,Housing Benefit Admin,WWG HOUSING BENEFIT,EPSOM & EWELL BOROUGH COUNCIL,2015259844,"31,561.00"
Department for Work and Pensions,Employment Programmes,12/05/2010,YOUNG PERSONS GUARANTEE (YPG) AND FUTURE JOBS FUND (FJF),EG EMPLOYMENT PROGRAMMES,THE BAMBURY,2015239044,"31,533.70"
Department for Work and Pensions,Employment Programmes,25/05/2010,WORKSTEP,EG EMPLOYMENT PROGRAMMES,BARROWMORE INDUSTRIES,2015376573,"31,512.80"
Department for Work and Pensions,Jobcentre Plus,07/05/2010,EMPLOYMENT PROGRAMMES,HQ BALANCE SHEET ,GLOBAL SOLUTION SERVICES UK LTD,2015148373,"31,500.00"
Department for Work and Pensions,Housing Benefits,14/05/2010,Housing Benefit Admin,WWG HOUSING BENEFIT,UTTLESFORD DISTRICT COUNCIL,2015260071,"31,492.00"
Department for Work and Pensions,Jobcentre Plus,13/05/2010,EMPLOYMENT PROGRAMMES,HQ BALANCE SHEET ,VOLUNTEER DEVELOPMENT SCOTLAND,2015249728,"31,467.50"
Department for Work and Pensions,Employment Programmes,04/05/2010,YOUNG PERSONS GUARANTEE (YPG) AND FUTURE JOBS FUND (FJF),EG EMPLOYMENT PROGRAMMES,HERTFORDSHIRE COUNTY COUNCIL,2015130562,"31,350.00"
Department for Work and Pensions,Employment Programmes,21/05/2010,YOUNG PERSONS GUARANTEE (YPG) AND FUTURE JOBS FUND (FJF),EG EMPLOYMENT PROGRAMMES,LONDON BOROUGH OF LEWISHAM SOUTH BANK EMPLOYERS,2015366282,"31,339.42"
Department for Work and Pensions,Corporate,14/05/2010,ACCOMMODATION,SHARED SERVICES ,TELEREAL TRILLIUM,2015255769,"31,272.20"
Department for Work and Pensions,European Social Fund,27/05/2010,MA ESF(D) COSTS,WWEG EUROPEAN SOCIAL FUND,CASTLE COLLEGE NOTTINGHAM,5000000203,"31,042.00"
Department for Work and Pensions,"Pension, Disability Carers Services",18/05/2010,APPS DEV,PDCS CHANGE ,HP ENTERPRISE SERVICES UK LTD,2015272023,"31,033.70"
Department for Work and Pensions,Jobcentre Plus,14/05/2010,CONFERENCES AND MEETINGS,TPMD,SPEAKEASY PRODUCTIONS LIMITED,2015257239,"30,929.80"
Department for Work and Pensions,Employment Programmes,11/05/2010,ND 50+,EG EMPLOYMENT PROGRAMMES,MAXIMUS EMPLOYMENT UK LTD,2015168213,"30,866.00"
Department for Work and Pensions,Employment Programmes,21/05/2010,YOUNG PERSONS GUARANTEE (YPG) AND FUTURE JOBS FUND (FJF),EG EMPLOYMENT PROGRAMMES,CAMBRIDGESHIRE COUNTY COUNCIL,2015363516,"30,803.67"
Department for Work and Pensions,Employment Programmes,06/05/2010,YOUNG PERSONS GUARANTEE (YPG) AND FUTURE JOBS FUND (FJF),EG EMPLOYMENT PROGRAMMES,EDS NW LTD,2015140919,"30,750.00"
Department for Work and Pensions,Corporate,26/05/2010,PRINTING STATIONERY IT & CONSUMABLES,WWG ,PEARSON EDUCATION LIMITED,2015443257,"30,710.17"
Department for Work and Pensions,Corporate,10/05/2010,CONTRACTED OUT OFFICE SERVICES,SHARED SERVICES ,COMMERCIAL COLLECTION SERVICES LTD,2015154311,"30,689.96"
Department for Work and Pensions,Employment Programmes,10/05/2010,YOUNG PERSONS GUARANTEE (YPG) AND FUTURE JOBS FUND (FJF),EG EMPLOYMENT PROGRAMMES,PLACES FOR PEOPLE NEIGHBOURHOODS,2015157394,"30,624.00"
Department for Work and Pensions,Corporate,28/05/2010,PRINTING STATIONERY IT & CONSUMABLES,EG,XEROX UK LIMITED 3W,2015551737,"30,508.00"
Department for Work and Pensions,Employment Programmes,18/05/2010,YOUNG PERSONS GUARANTEE (YPG) AND FUTURE JOBS FUND (FJF),EG EMPLOYMENT PROGRAMMES,FUTURE JOBS SOUTH LONDON BUSINESS,2015271366,"30,450.00"
Department for Work and Pensions,Housing Benefits,14/05/2010,Housing Benefit Admin,WWG HOUSING BENEFIT,CHRISTCHURCH BOROUGH COUNCIL,2015259793,"30,359.00"
Department for Work and Pensions,Housing Benefits,14/05/2010,Housing Benefit Admin,WWG HOUSING BENEFIT,SOUTH NORTHANTS COUNCIL,2015260026,"30,357.00"
Department for Work and Pensions,Housing Benefits,14/05/2010,Housing Benefit Admin,WWG HOUSING BENEFIT,DERBYSHIRE DALES DISTRICT COUNCIL,2015259818,"30,340.00"
Department for Work and Pensions,Corporate,27/05/2010,TEMPORARY (TEMP) STAFF COSTS,DIRECTGOV ,LA INTERNATIONAL COMPUTER CONSULTANTS LTD,2015473138,"30,310.99"
Department for Work and Pensions,Corporate,28/05/2010,TOTAL SUPPLIES & SERVICES,GROUP FINANCE,G3 WORLDWIDE MAIL UK LTD,2015505519,"30,227.54"
Department for Work and Pensions,Employment Programmes,12/05/2010,YOUNG PERSONS GUARANTEE (YPG) AND FUTURE JOBS FUND (FJF),EG EMPLOYMENT PROGRAMMES,ROYAL BOROUGH KINGSTON UPON THAMES FUTURE JOB FUND,2015228379,"30,200.00"
Department for Work and Pensions,Employment Programmes,06/05/2010,PROGRESS TO WORK,EG EMPLOYMENT PROGRAMMES,THE LIVERPOOL SOCIAL PARTNERSHIP,2015143527,"30,197.75"
Department for Work and Pensions,Housing Benefits,14/05/2010,Housing Benefit Admin,WWG HOUSING BENEFIT,WEST DEVON BOROUGH COUNCIL,2015260084,"30,185.00"
Department for Work and Pensions,Jobcentre Plus,07/05/2010,EMPLOYMENT PROGRAMMES,HQ BALANCE SHEET ,STANDGUIDE LTD,2015150669,"30,164.63"
Department for Work and Pensions,Employment Programmes,04/05/2010,YOUNG PERSONS GUARANTEE (YPG) AND FUTURE JOBS FUND (FJF),EG EMPLOYMENT PROGRAMMES,RESOURCE PLUS FUTURE JOB FUND,2015131500,"30,092.48"
Department for Work and Pensions,Employment Programmes,20/05/2010,ND 50+,EG EMPLOYMENT PROGRAMMES,WORKING LINKS,2015360266,"30,030.00"
Department for Work and Pensions,Jobcentre Plus,13/05/2010,EMPLOYMENT PROGRAMMES,HQ BALANCE SHEET ,MACLEOD ASSOCIATES VIA INTERIM,2015248153,"30,000.00"
Department for Work and Pensions,"Pension, Disability Carers Services",17/05/2010,APPS DEV,PDCS CORE,HP ENTERPRISE SERVICES UK LTD,2015262632,"29,931.21"
Department for Work and Pensions,Employment Programmes,12/05/2010,YOUNG PERSONS GUARANTEE (YPG) AND FUTURE JOBS FUND (FJF),EG EMPLOYMENT PROGRAMMES,ROYAL BOROUGH OF KENSINGTON & CHELSEA,2015228380,"29,900.00"
Department for Work and Pensions,Employment Programmes,13/05/2010,YOUNG PERSONS GUARANTEE (YPG) AND FUTURE JOBS FUND (FJF),EG EMPLOYMENT PROGRAMMES,BARNARDOS,2015244756,"29,887.69"
Department for Work and Pensions,"Pension, Disability Carers Services",21/05/2010,NON PRIME CHARGES,PDCS CORE,EDF ENERGY,2015365175,"29,816.99"
Department for Work and Pensions,Corporate,27/05/2010,ACCOMMODATION,GROUP FINANCE,TELEREAL TRILLIUM,2015473158,"29,448.88"
Department for Work and Pensions,Corporate,17/05/2010,CONTRACTED OUT OFFICE SERVICES,SHARED SERVICES ,FAIRFAX SOLICITORS LTD,2015262366,"29,435.45"
Department for Work and Pensions,Jobcentre Plus,20/05/2010,EMPLOYMENT PROGRAMMES,HQ BALANCE SHEET ,EMPLACEMENT RECRUITMENT,2015356589,"29,400.00"
